{"text_format":"1","workbook":"xlsx","n_sheets":4,"sheets":["Solicitud","Salida_Solicitud","PARAMETROS","Validaciones"],"not_rendered":{"charts":0,"images":1,"macros":1,"external_links":0,"defined_names":1,"comments":0,"pivot_tables":0},"unopened":[],"bounds":{"document_bytes":16777216,"sheet_cells":100000,"rows_first":2000,"rows_last":500,"rows_between":2000,"halvings":0,"cell_chars":16384,"cell_head_chars":4096},"cells_cut":0,"cells_raw":0,"read":"whole","date_system":"1900"}

{"sheet":"Solicitud","index":0,"n_rows":544,"n_cols":9,"rows_kept":544,"cut":false,"hidden":false,"merged":[[42,2,42,7],[3,2,4,8]]}
[]
[]
[]
[null,null,"Ingrese los datos de Cotización"]
[]
[null,"Cantidad Reg act",{"$f":"I42","v":0},null,"Check general","Contador v2","Fecha","2021-05-31"]
[null,null,null,null,null,{"$f":"IF(E9>30000000,IF(COUNTIF(F9:F32,\"=ok\")>=7,\"ok\",\"\"),IF(COUNTIF(F9:F32,\"=ok\")=9,\"ok\",\"\"))","v":""}]
[null,null,"1. CONTRATANTE / EMPLEADOR",null,null,"Check",null,"precio final"]
[null,null,"RUT (SIN PUNTOS,SIN DV)",null,null,{"$f":"IF(dvrut(G25)=\"Incorrecto\", \"Rut o DV incorrecto\",\"ok\")","v":"Rut o DV incorrecto"}]
[null,null,"DIGITO VERIFICADOR",null,null,{"$f":"IF(E10=\"\",\"Favor completar datos\",\"ok\")","v":"Favor completar datos"}]
[null,null,"NOMBRE/RAZON SOCIAL",null,null,{"$f":"IF(E11=\"\",\"Favor completar datos\",\"ok\")","v":"Favor completar datos"}]
[null,null,"APELLIDO PATERNO",null,null,{"$f":"IF(E9>50000000,\"\",IF(E12=\"\",\"Favor completar datos\",\"ok\"))","v":"Favor completar datos"}]
[null,null,"APELLIDO MATERNO",null,null,{"$f":"IF(E9>50000000,\"\",IF(E13=\"\",\"Favor completar datos\",\"ok\"))","v":"Favor completar datos"}]
[null,null,"CALLE / DIRECCIÓN",null,null,{"$f":"IF(E14=\"\",\"Favor completar datos\",\"ok\")","v":"Favor completar datos"}]
[null,null,"COMUNA",null,null,{"$f":"IF(E15=\"\",\"Favor completar datos\",\"ok\")","v":"Favor completar datos"}]
[null,null,"E-MAIL CONTRATANTE",null,null,{"$f":"IF(E16=\"\",\"Favor completar datos\",\"ok\")","v":"Favor completar datos"}]
[]
[]
[null,null,null,null,null,null,"<- quitar"]
[]
[null,null,null,null,null,null,{"$f":"Validaciones!C35","v":-44357}]
[]
[]
[]
[null,null,null,null,null,null,{"$f":"_xlfn.CONCAT(E9,\"-\",E10)","v":"-"}]
[null,null,"2.TARIFA"]
[null,null,"TARIFA NETA UNITARIA UF",null,{"$f":"Validaciones!K40","v":0.38700000000000001}]
[null,null,"TARIFA FINAL (BRUTA) UF",null,{"$f":"ROUND((E27*0.57*1.19),3)+ROUND(E27*(1-0.57),3)","v":0.42900000000000005}]
[]
[null,null,"3.OTROS"]
[null,null,"FECHA DE INICIO",null,null,{"$f":"IF(AND(E31<>\"\",G21<0),\"Fecha invalida\",IF(G21>10,\"Revisar Inicio vigencia\",IF(E31=\"\",\"Favor completar datos\",\"ok\")))","v":"Favor completar datos"}]
[null,null,"FECHA DE TERMINO",null,{"$f":"IF(E31=\"\",\"\",E31+365)","v":""}]
[]
[null,null,"CANTIDAD DE ASEGURADOS",null,{"$f":"COUNTIF(I45:I544,\"Ok\")","v":0}]
[null,null,"PRIMA TOTAL A PAGAR UF",null,{"$f":"COUNTIF(I45:I544,\"Ok\")*E28","v":0}]
[null,null,"PRIMA TOTAL A TRANSFERIR $",null,{"$f":"IFERROR(ROUND(E35*VLOOKUP(E31,PARAMETROS!M:N,2,1),0),\"\")","v":""}]
[]
[null,null,null,null,{"$f":"IF(AND(F7=\"ok\",I43=\"ok\"), \"Formulario apto para ser enviado\", \"Revisar Validaciones\")","v":"Revisar Validaciones"}]
[]
[]
[]
[null,null,null,null,null,null,null,null,{"$f":"COUNTIF(I44:I93,\"=ok\")","v":0}]
[null,null,"ASEGURADO MULTIPLES",null,null,null,null,null,{"$f":"IF(AND(COUNTIF(I45:I144,\"=Datos erroneos o incompletos\")=0,COUNTIF(I45:I144,\"=ok\")>0),\"ok\",\"Revisar datos\")","v":"Revisar datos"}]
[null,"Check Rut","RUT","DV","Nombre","Apellido Paterno","Apellido Materno","Email Asegurado (Opcional)","Check Datos"]
[{"$f":"IF(C45<>\"\",_xlfn.CONCAT(C45,\"-\",D45),\"\")","v":""},{"$f":"IF(C45<>\"\",IF(dvrut(A45)=\"Incorrecto\", \"Rut o DV incorrecto\",\"ok\"),\"\")","v":""},null,null,null,null,null,null,{"$f":"IF(C45=\"\",\"\",IF(AND(C45=\"\",D45=\"\",E45=\"\",F45=\"\",G45=\"\"),\"Completar datos\",IF(AND(B45=\"ok\",C45<>\"\",D45<>\"\",E45<>\"\",F45<>\"\",G45<>\"\"),\"ok\",\"Datos erroneos o incompletos\")))","v":""}]
["",{"$f":"IF(C46<>\"\",IF(dvrut(A46)=\"Incorrecto\", \"Rut o DV incorrecto\",\"ok\"),\"\")","v":""},null,null,null,null,null,null,{"$f":"IF(C46=\"\",\"\",IF(AND(C46=\"\",D46=\"\",E46=\"\",F46=\"\",G46=\"\"),\"Completar datos\",IF(AND(B46=\"ok\",C46<>\"\",D46<>\"\",E46<>\"\",F46<>\"\",G46<>\"\"),\"ok\",\"Datos erroneos o incompletos\")))","v":""}]
["",{"$f":"IF(C47<>\"\",IF(dvrut(A47)=\"Incorrecto\", \"Rut o DV incorrecto\",\"ok\"),\"\")","v":""},null,null,null,null,null,null,""]
["",{"$f":"IF(C48<>\"\",IF(dvrut(A48)=\"Incorrecto\", \"Rut o DV incorrecto\",\"ok\"),\"\")","v":""},null,null,null,null,null,null,""]
["",{"$f":"IF(C49<>\"\",IF(dvrut(A49)=\"Incorrecto\", \"Rut o DV incorrecto\",\"ok\"),\"\")","v":""},null,null,null,null,null,null,""]
["",{"$f":"IF(C50<>\"\",IF(dvrut(A50)=\"Incorrecto\", \"Rut o DV incorrecto\",\"ok\"),\"\")","v":""},null,null,null,null,null,null,""]
["",{"$f":"IF(C51<>\"\",IF(dvrut(A51)=\"Incorrecto\", \"Rut o DV incorrecto\",\"ok\"),\"\")","v":""},null,null,null,null,null,null,""]
["",{"$f":"IF(C52<>\"\",IF(dvrut(A52)=\"Incorrecto\", \"Rut o DV incorrecto\",\"ok\"),\"\")","v":""},null,null,null,null,null,null,""]
["",{"$f":"IF(C53<>\"\",IF(dvrut(A53)=\"Incorrecto\", \"Rut o DV incorrecto\",\"ok\"),\"\")","v":""},null,null,null,null,null,null,""]
["",{"$f":"IF(C54<>\"\",IF(dvrut(A54)=\"Incorrecto\", \"Rut o DV incorrecto\",\"ok\"),\"\")","v":""},null,null,null,null,null,null,""]
["",{"$f":"IF(C55<>\"\",IF(dvrut(A55)=\"Incorrecto\", \"Rut o DV incorrecto\",\"ok\"),\"\")","v":""},null,null,null,null,null,null,""]
["",{"$f":"IF(C56<>\"\",IF(dvrut(A56)=\"Incorrecto\", \"Rut o DV incorrecto\",\"ok\"),\"\")","v":""},null,null,null,null,null,null,""]
["",{"$f":"IF(C57<>\"\",IF(dvrut(A57)=\"Incorrecto\", \"Rut o DV incorrecto\",\"ok\"),\"\")","v":""},null,null,null,null,null,null,""]
["",{"$f":"IF(C58<>\"\",IF(dvrut(A58)=\"Incorrecto\", \"Rut o DV incorrecto\",\"ok\"),\"\")","v":""},null,null,null,null,null,null,""]
["",{"$f":"IF(C59<>\"\",IF(dvrut(A59)=\"Incorrecto\", \"Rut o DV incorrecto\",\"ok\"),\"\")","v":""},null,null,null,null,null,null,""]
["",{"$f":"IF(C60<>\"\",IF(dvrut(A60)=\"Incorrecto\", \"Rut o DV incorrecto\",\"ok\"),\"\")","v":""},null,null,null,null,null,null,""]
["",{"$f":"IF(C61<>\"\",IF(dvrut(A61)=\"Incorrecto\", \"Rut o DV incorrecto\",\"ok\"),\"\")","v":""},null,null,null,null,null,null,""]
["",{"$f":"IF(C62<>\"\",IF(dvrut(A62)=\"Incorrecto\", \"Rut o DV incorrecto\",\"ok\"),\"\")","v":""},null,null,null,null,null,null,""]
["",{"$f":"IF(C63<>\"\",IF(dvrut(A63)=\"Incorrecto\", \"Rut o DV incorrecto\",\"ok\"),\"\")","v":""},null,null,null,null,null,null,""]
["",{"$f":"IF(C64<>\"\",IF(dvrut(A64)=\"Incorrecto\", \"Rut o DV incorrecto\",\"ok\"),\"\")","v":""},null,null,null,null,null,null,""]
["",{"$f":"IF(C65<>\"\",IF(dvrut(A65)=\"Incorrecto\", \"Rut o DV incorrecto\",\"ok\"),\"\")","v":""},null,null,null,null,null,null,""]
["",{"$f":"IF(C66<>\"\",IF(dvrut(A66)=\"Incorrecto\", \"Rut o DV incorrecto\",\"ok\"),\"\")","v":""},null,null,null,null,null,null,""]
["",{"$f":"IF(C67<>\"\",IF(dvrut(A67)=\"Incorrecto\", \"Rut o DV incorrecto\",\"ok\"),\"\")","v":""},null,null,null,null,null,null,""]
["",{"$f":"IF(C68<>\"\",IF(dvrut(A68)=\"Incorrecto\", \"Rut o DV incorrecto\",\"ok\"),\"\")","v":""},null,null,null,null,null,null,""]
["",{"$f":"IF(C69<>\"\",IF(dvrut(A69)=\"Incorrecto\", \"Rut o DV incorrecto\",\"ok\"),\"\")","v":""},null,null,null,null,null,null,""]
["",{"$f":"IF(C70<>\"\",IF(dvrut(A70)=\"Incorrecto\", \"Rut o DV incorrecto\",\"ok\"),\"\")","v":""},null,null,null,null,null,null,""]
["",{"$f":"IF(C71<>\"\",IF(dvrut(A71)=\"Incorrecto\", \"Rut o DV incorrecto\",\"ok\"),\"\")","v":""},null,null,null,null,null,null,""]
["",{"$f":"IF(C72<>\"\",IF(dvrut(A72)=\"Incorrecto\", \"Rut o DV incorrecto\",\"ok\"),\"\")","v":""},null,null,null,null,null,null,""]
["",{"$f":"IF(C73<>\"\",IF(dvrut(A73)=\"Incorrecto\", \"Rut o DV incorrecto\",\"ok\"),\"\")","v":""},null,null,null,null,null,null,""]
["",{"$f":"IF(C74<>\"\",IF(dvrut(A74)=\"Incorrecto\", \"Rut o DV incorrecto\",\"ok\"),\"\")","v":""},null,null,null,null,null,null,""]
["",{"$f":"IF(C75<>\"\",IF(dvrut(A75)=\"Incorrecto\", \"Rut o DV incorrecto\",\"ok\"),\"\")","v":""},null,null,null,null,null,null,""]
["",{"$f":"IF(C76<>\"\",IF(dvrut(A76)=\"Incorrecto\", \"Rut o DV incorrecto\",\"ok\"),\"\")","v":""},null,null,null,null,null,null,""]
[{"$f":"IF(C77<>\"\",_xlfn.CONCAT(C77,\"-\",D77),\"\")","v":""},{"$f":"IF(C77<>\"\",IF(dvrut(A77)=\"Incorrecto\", \"Rut o DV incorrecto\",\"ok\"),\"\")","v":""},null,null,null,null,null,null,""]
["",{"$f":"IF(C78<>\"\",IF(dvrut(A78)=\"Incorrecto\", \"Rut o DV incorrecto\",\"ok\"),\"\")","v":""},null,null,null,null,null,null,""]
["",{"$f":"IF(C79<>\"\",IF(dvrut(A79)=\"Incorrecto\", \"Rut o DV incorrecto\",\"ok\"),\"\")","v":""},null,null,null,null,null,null,""]
["",{"$f":"IF(C80<>\"\",IF(dvrut(A80)=\"Incorrecto\", \"Rut o DV incorrecto\",\"ok\"),\"\")","v":""},null,null,null,null,null,null,""]
["",{"$f":"IF(C81<>\"\",IF(dvrut(A81)=\"Incorrecto\", \"Rut o DV incorrecto\",\"ok\"),\"\")","v":""},null,null,null,null,null,null,""]
["",{"$f":"IF(C82<>\"\",IF(dvrut(A82)=\"Incorrecto\", \"Rut o DV incorrecto\",\"ok\"),\"\")","v":""},null,null,null,null,null,null,""]
["",{"$f":"IF(C83<>\"\",IF(dvrut(A83)=\"Incorrecto\", \"Rut o DV incorrecto\",\"ok\"),\"\")","v":""},null,null,null,null,null,null,""]
["",{"$f":"IF(C84<>\"\",IF(dvrut(A84)=\"Incorrecto\", \"Rut o DV incorrecto\",\"ok\"),\"\")","v":""},null,null,null,null,null,null,""]
["",{"$f":"IF(C85<>\"\",IF(dvrut(A85)=\"Incorrecto\", \"Rut o DV incorrecto\",\"ok\"),\"\")","v":""},null,null,null,null,null,null,""]
["",{"$f":"IF(C86<>\"\",IF(dvrut(A86)=\"Incorrecto\", \"Rut o DV incorrecto\",\"ok\"),\"\")","v":""},null,null,null,null,null,null,""]
["",{"$f":"IF(C87<>\"\",IF(dvrut(A87)=\"Incorrecto\", \"Rut o DV incorrecto\",\"ok\"),\"\")","v":""},null,null,null,null,null,null,""]
["",{"$f":"IF(C88<>\"\",IF(dvrut(A88)=\"Incorrecto\", \"Rut o DV incorrecto\",\"ok\"),\"\")","v":""},null,null,null,null,null,null,""]
["",{"$f":"IF(C89<>\"\",IF(dvrut(A89)=\"Incorrecto\", \"Rut o DV incorrecto\",\"ok\"),\"\")","v":""},null,null,null,null,null,null,""]
["",{"$f":"IF(C90<>\"\",IF(dvrut(A90)=\"Incorrecto\", \"Rut o DV incorrecto\",\"ok\"),\"\")","v":""},null,null,null,null,null,null,""]
["",{"$f":"IF(C91<>\"\",IF(dvrut(A91)=\"Incorrecto\", \"Rut o DV incorrecto\",\"ok\"),\"\")","v":""},null,null,null,null,null,null,""]
["",{"$f":"IF(C92<>\"\",IF(dvrut(A92)=\"Incorrecto\", \"Rut o DV incorrecto\",\"ok\"),\"\")","v":""},null,null,null,null,null,null,""]
["",{"$f":"IF(C93<>\"\",IF(dvrut(A93)=\"Incorrecto\", \"Rut o DV incorrecto\",\"ok\"),\"\")","v":""},null,null,null,null,null,null,""]
["",{"$f":"IF(C94<>\"\",IF(dvrut(A94)=\"Incorrecto\", \"Rut o DV incorrecto\",\"ok\"),\"\")","v":""},null,null,null,null,null,null,""]
["",{"$f":"IF(C95<>\"\",IF(dvrut(A95)=\"Incorrecto\", \"Rut o DV incorrecto\",\"ok\"),\"\")","v":""},null,null,null,null,null,null,""]
["",{"$f":"IF(C96<>\"\",IF(dvrut(A96)=\"Incorrecto\", \"Rut o DV incorrecto\",\"ok\"),\"\")","v":""},null,null,null,null,null,null,""]
["",{"$f":"IF(C97<>\"\",IF(dvrut(A97)=\"Incorrecto\", \"Rut o DV incorrecto\",\"ok\"),\"\")","v":""},null,null,null,null,null,null,""]
["",{"$f":"IF(C98<>\"\",IF(dvrut(A98)=\"Incorrecto\", \"Rut o DV incorrecto\",\"ok\"),\"\")","v":""},null,null,null,null,null,null,""]
["",{"$f":"IF(C99<>\"\",IF(dvrut(A99)=\"Incorrecto\", \"Rut o DV incorrecto\",\"ok\"),\"\")","v":""},null,null,null,null,null,null,""]
["",{"$f":"IF(C100<>\"\",IF(dvrut(A100)=\"Incorrecto\", \"Rut o DV incorrecto\",\"ok\"),\"\")","v":""},null,null,null,null,null,null,""]
["",{"$f":"IF(C101<>\"\",IF(dvrut(A101)=\"Incorrecto\", \"Rut o DV incorrecto\",\"ok\"),\"\")","v":""},null,null,null,null,null,null,""]
["",{"$f":"IF(C102<>\"\",IF(dvrut(A102)=\"Incorrecto\", \"Rut o DV incorrecto\",\"ok\"),\"\")","v":""},null,null,null,null,null,null,""]
["",{"$f":"IF(C103<>\"\",IF(dvrut(A103)=\"Incorrecto\", \"Rut o DV incorrecto\",\"ok\"),\"\")","v":""},null,null,null,null,null,null,""]
["",{"$f":"IF(C104<>\"\",IF(dvrut(A104)=\"Incorrecto\", \"Rut o DV incorrecto\",\"ok\"),\"\")","v":""},null,null,null,null,null,null,""]
["",{"$f":"IF(C105<>\"\",IF(dvrut(A105)=\"Incorrecto\", \"Rut o DV incorrecto\",\"ok\"),\"\")","v":""},null,null,null,null,null,null,""]
["",{"$f":"IF(C106<>\"\",IF(dvrut(A106)=\"Incorrecto\", \"Rut o DV incorrecto\",\"ok\"),\"\")","v":""},null,null,null,null,null,null,""]
["",{"$f":"IF(C107<>\"\",IF(dvrut(A107)=\"Incorrecto\", \"Rut o DV incorrecto\",\"ok\"),\"\")","v":""},null,null,null,null,null,null,""]
["",{"$f":"IF(C108<>\"\",IF(dvrut(A108)=\"Incorrecto\", \"Rut o DV incorrecto\",\"ok\"),\"\")","v":""},null,null,null,null,null,null,""]
["",{"$f":"IF(C109<>\"\",IF(dvrut(A109)=\"Incorrecto\", \"Rut o DV incorrecto\",\"ok\"),\"\")","v":""},null,null,null,null,null,null,""]
["",{"$f":"IF(C110<>\"\",IF(dvrut(A110)=\"Incorrecto\", \"Rut o DV incorrecto\",\"ok\"),\"\")","v":""},null,null,null,null,null,null,{"$f":"IF(C110=\"\",\"\",IF(AND(C110=\"\",D110=\"\",E110=\"\",F110=\"\",G110=\"\"),\"Completar datos\",IF(AND(B110=\"ok\",C110<>\"\",D110<>\"\",E110<>\"\",F110<>\"\",G110<>\"\"),\"ok\",\"Datos erroneos o incompletos\")))","v":""}]
["",{"$f":"IF(C111<>\"\",IF(dvrut(A111)=\"Incorrecto\", \"Rut o DV incorrecto\",\"ok\"),\"\")","v":""},null,null,null,null,null,null,""]
["",{"$f":"IF(C112<>\"\",IF(dvrut(A112)=\"Incorrecto\", \"Rut o DV incorrecto\",\"ok\"),\"\")","v":""},null,null,null,null,null,null,""]
["",{"$f":"IF(C113<>\"\",IF(dvrut(A113)=\"Incorrecto\", \"Rut o DV incorrecto\",\"ok\"),\"\")","v":""},null,null,null,null,null,null,""]
["",{"$f":"IF(C114<>\"\",IF(dvrut(A114)=\"Incorrecto\", \"Rut o DV incorrecto\",\"ok\"),\"\")","v":""},null,null,null,null,null,null,""]
["",{"$f":"IF(C115<>\"\",IF(dvrut(A115)=\"Incorrecto\", \"Rut o DV incorrecto\",\"ok\"),\"\")","v":""},null,null,null,null,null,null,""]
["",{"$f":"IF(C116<>\"\",IF(dvrut(A116)=\"Incorrecto\", \"Rut o DV incorrecto\",\"ok\"),\"\")","v":""},null,null,null,null,null,null,""]
["",{"$f":"IF(C117<>\"\",IF(dvrut(A117)=\"Incorrecto\", \"Rut o DV incorrecto\",\"ok\"),\"\")","v":""},null,null,null,null,null,null,""]
["",{"$f":"IF(C118<>\"\",IF(dvrut(A118)=\"Incorrecto\", \"Rut o DV incorrecto\",\"ok\"),\"\")","v":""},null,null,null,null,null,null,""]
["",{"$f":"IF(C119<>\"\",IF(dvrut(A119)=\"Incorrecto\", \"Rut o DV incorrecto\",\"ok\"),\"\")","v":""},null,null,null,null,null,null,""]
["",{"$f":"IF(C120<>\"\",IF(dvrut(A120)=\"Incorrecto\", \"Rut o DV incorrecto\",\"ok\"),\"\")","v":""},null,null,null,null,null,null,""]
["",{"$f":"IF(C121<>\"\",IF(dvrut(A121)=\"Incorrecto\", \"Rut o DV incorrecto\",\"ok\"),\"\")","v":""},null,null,null,null,null,null,""]
["",{"$f":"IF(C122<>\"\",IF(dvrut(A122)=\"Incorrecto\", \"Rut o DV incorrecto\",\"ok\"),\"\")","v":""},null,null,null,null,null,null,""]
["",{"$f":"IF(C123<>\"\",IF(dvrut(A123)=\"Incorrecto\", \"Rut o DV incorrecto\",\"ok\"),\"\")","v":""},null,null,null,null,null,null,""]
["",{"$f":"IF(C124<>\"\",IF(dvrut(A124)=\"Incorrecto\", \"Rut o DV incorrecto\",\"ok\"),\"\")","v":""},null,null,null,null,null,null,""]
["",{"$f":"IF(C125<>\"\",IF(dvrut(A125)=\"Incorrecto\", \"Rut o DV incorrecto\",\"ok\"),\"\")","v":""},null,null,null,null,null,null,""]
["",{"$f":"IF(C126<>\"\",IF(dvrut(A126)=\"Incorrecto\", \"Rut o DV incorrecto\",\"ok\"),\"\")","v":""},null,null,null,null,null,null,""]
["",{"$f":"IF(C127<>\"\",IF(dvrut(A127)=\"Incorrecto\", \"Rut o DV incorrecto\",\"ok\"),\"\")","v":""},null,null,null,null,null,null,""]
["",{"$f":"IF(C128<>\"\",IF(dvrut(A128)=\"Incorrecto\", \"Rut o DV incorrecto\",\"ok\"),\"\")","v":""},null,null,null,null,null,null,""]
["",{"$f":"IF(C129<>\"\",IF(dvrut(A129)=\"Incorrecto\", \"Rut o DV incorrecto\",\"ok\"),\"\")","v":""},null,null,null,null,null,null,""]
["",{"$f":"IF(C130<>\"\",IF(dvrut(A130)=\"Incorrecto\", \"Rut o DV incorrecto\",\"ok\"),\"\")","v":""},null,null,null,null,null,null,""]
["",{"$f":"IF(C131<>\"\",IF(dvrut(A131)=\"Incorrecto\", \"Rut o DV incorrecto\",\"ok\"),\"\")","v":""},null,null,null,null,null,null,""]
["",{"$f":"IF(C132<>\"\",IF(dvrut(A132)=\"Incorrecto\", \"Rut o DV incorrecto\",\"ok\"),\"\")","v":""},null,null,null,null,null,null,""]
["",{"$f":"IF(C133<>\"\",IF(dvrut(A133)=\"Incorrecto\", \"Rut o DV incorrecto\",\"ok\"),\"\")","v":""},null,null,null,null,null,null,""]
["",{"$f":"IF(C134<>\"\",IF(dvrut(A134)=\"Incorrecto\", \"Rut o DV incorrecto\",\"ok\"),\"\")","v":""},null,null,null,null,null,null,""]
["",{"$f":"IF(C135<>\"\",IF(dvrut(A135)=\"Incorrecto\", \"Rut o DV incorrecto\",\"ok\"),\"\")","v":""},null,null,null,null,null,null,""]
["",{"$f":"IF(C136<>\"\",IF(dvrut(A136)=\"Incorrecto\", \"Rut o DV incorrecto\",\"ok\"),\"\")","v":""},null,null,null,null,null,null,""]
["",{"$f":"IF(C137<>\"\",IF(dvrut(A137)=\"Incorrecto\", \"Rut o DV incorrecto\",\"ok\"),\"\")","v":""},null,null,null,null,null,null,""]
["",{"$f":"IF(C138<>\"\",IF(dvrut(A138)=\"Incorrecto\", \"Rut o DV incorrecto\",\"ok\"),\"\")","v":""},null,null,null,null,null,null,""]
["",{"$f":"IF(C139<>\"\",IF(dvrut(A139)=\"Incorrecto\", \"Rut o DV incorrecto\",\"ok\"),\"\")","v":""},null,null,null,null,null,null,""]
["",{"$f":"IF(C140<>\"\",IF(dvrut(A140)=\"Incorrecto\", \"Rut o DV incorrecto\",\"ok\"),\"\")","v":""},null,null,null,null,null,null,""]
[{"$f":"IF(C141<>\"\",_xlfn.CONCAT(C141,\"-\",D141),\"\")","v":""},{"$f":"IF(C141<>\"\",IF(dvrut(A141)=\"Incorrecto\", \"Rut o DV incorrecto\",\"ok\"),\"\")","v":""},null,null,null,null,null,null,""]
["",{"$f":"IF(C142<>\"\",IF(dvrut(A142)=\"Incorrecto\", \"Rut o DV incorrecto\",\"ok\"),\"\")","v":""},null,null,null,null,null,null,""]
["",{"$f":"IF(C143<>\"\",IF(dvrut(A143)=\"Incorrecto\", \"Rut o DV incorrecto\",\"ok\"),\"\")","v":""},null,null,null,null,null,null,""]
["",{"$f":"IF(C144<>\"\",IF(dvrut(A144)=\"Incorrecto\", \"Rut o DV incorrecto\",\"ok\"),\"\")","v":""},null,null,null,null,null,null,""]
[{"$f":"IF(C145<>\"\",_xlfn.CONCAT(C145,\"-\",D145),\"\")","v":""},{"$f":"IF(C145<>\"\",IF(dvrut(A145)=\"Incorrecto\", \"Rut o DV incorrecto\",\"ok\"),\"\")","v":""},null,null,null,null,null,null,""]
["",{"$f":"IF(C146<>\"\",IF(dvrut(A146)=\"Incorrecto\", \"Rut o DV incorrecto\",\"ok\"),\"\")","v":""},null,null,null,null,null,null,""]
["",{"$f":"IF(C147<>\"\",IF(dvrut(A147)=\"Incorrecto\", \"Rut o DV incorrecto\",\"ok\"),\"\")","v":""},null,null,null,null,null,null,""]
["",{"$f":"IF(C148<>\"\",IF(dvrut(A148)=\"Incorrecto\", \"Rut o DV incorrecto\",\"ok\"),\"\")","v":""},null,null,null,null,null,null,""]
["",{"$f":"IF(C149<>\"\",IF(dvrut(A149)=\"Incorrecto\", \"Rut o DV incorrecto\",\"ok\"),\"\")","v":""},null,null,null,null,null,null,""]
["",{"$f":"IF(C150<>\"\",IF(dvrut(A150)=\"Incorrecto\", \"Rut o DV incorrecto\",\"ok\"),\"\")","v":""},null,null,null,null,null,null,""]
["",{"$f":"IF(C151<>\"\",IF(dvrut(A151)=\"Incorrecto\", \"Rut o DV incorrecto\",\"ok\"),\"\")","v":""},null,null,null,null,null,null,""]
["",{"$f":"IF(C152<>\"\",IF(dvrut(A152)=\"Incorrecto\", \"Rut o DV incorrecto\",\"ok\"),\"\")","v":""},null,null,null,null,null,null,""]
["",{"$f":"IF(C153<>\"\",IF(dvrut(A153)=\"Incorrecto\", \"Rut o DV incorrecto\",\"ok\"),\"\")","v":""},null,null,null,null,null,null,""]
["",{"$f":"IF(C154<>\"\",IF(dvrut(A154)=\"Incorrecto\", \"Rut o DV incorrecto\",\"ok\"),\"\")","v":""},null,null,null,null,null,null,""]
["",{"$f":"IF(C155<>\"\",IF(dvrut(A155)=\"Incorrecto\", \"Rut o DV incorrecto\",\"ok\"),\"\")","v":""},null,null,null,null,null,null,""]
["",{"$f":"IF(C156<>\"\",IF(dvrut(A156)=\"Incorrecto\", \"Rut o DV incorrecto\",\"ok\"),\"\")","v":""},null,null,null,null,null,null,""]
["",{"$f":"IF(C157<>\"\",IF(dvrut(A157)=\"Incorrecto\", \"Rut o DV incorrecto\",\"ok\"),\"\")","v":""},null,null,null,null,null,null,""]
["",{"$f":"IF(C158<>\"\",IF(dvrut(A158)=\"Incorrecto\", \"Rut o DV incorrecto\",\"ok\"),\"\")","v":""},null,null,null,null,null,null,""]
["",{"$f":"IF(C159<>\"\",IF(dvrut(A159)=\"Incorrecto\", \"Rut o DV incorrecto\",\"ok\"),\"\")","v":""},null,null,null,null,null,null,""]
["",{"$f":"IF(C160<>\"\",IF(dvrut(A160)=\"Incorrecto\", \"Rut o DV incorrecto\",\"ok\"),\"\")","v":""},null,null,null,null,null,null,""]
["",{"$f":"IF(C161<>\"\",IF(dvrut(A161)=\"Incorrecto\", \"Rut o DV incorrecto\",\"ok\"),\"\")","v":""},null,null,null,null,null,null,""]
["",{"$f":"IF(C162<>\"\",IF(dvrut(A162)=\"Incorrecto\", \"Rut o DV incorrecto\",\"ok\"),\"\")","v":""},null,null,null,null,null,null,""]
["",{"$f":"IF(C163<>\"\",IF(dvrut(A163)=\"Incorrecto\", \"Rut o DV incorrecto\",\"ok\"),\"\")","v":""},null,null,null,null,null,null,""]
["",{"$f":"IF(C164<>\"\",IF(dvrut(A164)=\"Incorrecto\", \"Rut o DV incorrecto\",\"ok\"),\"\")","v":""},null,null,null,null,null,null,""]
["",{"$f":"IF(C165<>\"\",IF(dvrut(A165)=\"Incorrecto\", \"Rut o DV incorrecto\",\"ok\"),\"\")","v":""},null,null,null,null,null,null,""]
["",{"$f":"IF(C166<>\"\",IF(dvrut(A166)=\"Incorrecto\", \"Rut o DV incorrecto\",\"ok\"),\"\")","v":""},null,null,null,null,null,null,""]
["",{"$f":"IF(C167<>\"\",IF(dvrut(A167)=\"Incorrecto\", \"Rut o DV incorrecto\",\"ok\"),\"\")","v":""},null,null,null,null,null,null,""]
["",{"$f":"IF(C168<>\"\",IF(dvrut(A168)=\"Incorrecto\", \"Rut o DV incorrecto\",\"ok\"),\"\")","v":""},null,null,null,null,null,null,""]
["",{"$f":"IF(C169<>\"\",IF(dvrut(A169)=\"Incorrecto\", \"Rut o DV incorrecto\",\"ok\"),\"\")","v":""},null,null,null,null,null,null,""]
["",{"$f":"IF(C170<>\"\",IF(dvrut(A170)=\"Incorrecto\", \"Rut o DV incorrecto\",\"ok\"),\"\")","v":""},null,null,null,null,null,null,""]
["",{"$f":"IF(C171<>\"\",IF(dvrut(A171)=\"Incorrecto\", \"Rut o DV incorrecto\",\"ok\"),\"\")","v":""},null,null,null,null,null,null,""]
["",{"$f":"IF(C172<>\"\",IF(dvrut(A172)=\"Incorrecto\", \"Rut o DV incorrecto\",\"ok\"),\"\")","v":""},null,null,null,null,null,null,""]
["",{"$f":"IF(C173<>\"\",IF(dvrut(A173)=\"Incorrecto\", \"Rut o DV incorrecto\",\"ok\"),\"\")","v":""},null,null,null,null,null,null,""]
["",{"$f":"IF(C174<>\"\",IF(dvrut(A174)=\"Incorrecto\", \"Rut o DV incorrecto\",\"ok\"),\"\")","v":""},null,null,null,null,null,null,{"$f":"IF(C174=\"\",\"\",IF(AND(C174=\"\",D174=\"\",E174=\"\",F174=\"\",G174=\"\"),\"Completar datos\",IF(AND(B174=\"ok\",C174<>\"\",D174<>\"\",E174<>\"\",F174<>\"\",G174<>\"\"),\"ok\",\"Datos erroneos o incompletos\")))","v":""}]
["",{"$f":"IF(C175<>\"\",IF(dvrut(A175)=\"Incorrecto\", \"Rut o DV incorrecto\",\"ok\"),\"\")","v":""},null,null,null,null,null,null,""]
["",{"$f":"IF(C176<>\"\",IF(dvrut(A176)=\"Incorrecto\", \"Rut o DV incorrecto\",\"ok\"),\"\")","v":""},null,null,null,null,null,null,""]
["",{"$f":"IF(C177<>\"\",IF(dvrut(A177)=\"Incorrecto\", \"Rut o DV incorrecto\",\"ok\"),\"\")","v":""},null,null,null,null,null,null,""]
["",{"$f":"IF(C178<>\"\",IF(dvrut(A178)=\"Incorrecto\", \"Rut o DV incorrecto\",\"ok\"),\"\")","v":""},null,null,null,null,null,null,""]
["",{"$f":"IF(C179<>\"\",IF(dvrut(A179)=\"Incorrecto\", \"Rut o DV incorrecto\",\"ok\"),\"\")","v":""},null,null,null,null,null,null,""]
["",{"$f":"IF(C180<>\"\",IF(dvrut(A180)=\"Incorrecto\", \"Rut o DV incorrecto\",\"ok\"),\"\")","v":""},null,null,null,null,null,null,""]
["",{"$f":"IF(C181<>\"\",IF(dvrut(A181)=\"Incorrecto\", \"Rut o DV incorrecto\",\"ok\"),\"\")","v":""},null,null,null,null,null,null,""]
["",{"$f":"IF(C182<>\"\",IF(dvrut(A182)=\"Incorrecto\", \"Rut o DV incorrecto\",\"ok\"),\"\")","v":""},null,null,null,null,null,null,""]
["",{"$f":"IF(C183<>\"\",IF(dvrut(A183)=\"Incorrecto\", \"Rut o DV incorrecto\",\"ok\"),\"\")","v":""},null,null,null,null,null,null,""]
["",{"$f":"IF(C184<>\"\",IF(dvrut(A184)=\"Incorrecto\", \"Rut o DV incorrecto\",\"ok\"),\"\")","v":""},null,null,null,null,null,null,""]
["",{"$f":"IF(C185<>\"\",IF(dvrut(A185)=\"Incorrecto\", \"Rut o DV incorrecto\",\"ok\"),\"\")","v":""},null,null,null,null,null,null,""]
["",{"$f":"IF(C186<>\"\",IF(dvrut(A186)=\"Incorrecto\", \"Rut o DV incorrecto\",\"ok\"),\"\")","v":""},null,null,null,null,null,null,""]
["",{"$f":"IF(C187<>\"\",IF(dvrut(A187)=\"Incorrecto\", \"Rut o DV incorrecto\",\"ok\"),\"\")","v":""},null,null,null,null,null,null,""]
["",{"$f":"IF(C188<>\"\",IF(dvrut(A188)=\"Incorrecto\", \"Rut o DV incorrecto\",\"ok\"),\"\")","v":""},null,null,null,null,null,null,""]
["",{"$f":"IF(C189<>\"\",IF(dvrut(A189)=\"Incorrecto\", \"Rut o DV incorrecto\",\"ok\"),\"\")","v":""},null,null,null,null,null,null,""]
["",{"$f":"IF(C190<>\"\",IF(dvrut(A190)=\"Incorrecto\", \"Rut o DV incorrecto\",\"ok\"),\"\")","v":""},null,null,null,null,null,null,""]
["",{"$f":"IF(C191<>\"\",IF(dvrut(A191)=\"Incorrecto\", \"Rut o DV incorrecto\",\"ok\"),\"\")","v":""},null,null,null,null,null,null,""]
["",{"$f":"IF(C192<>\"\",IF(dvrut(A192)=\"Incorrecto\", \"Rut o DV incorrecto\",\"ok\"),\"\")","v":""},null,null,null,null,null,null,""]
["",{"$f":"IF(C193<>\"\",IF(dvrut(A193)=\"Incorrecto\", \"Rut o DV incorrecto\",\"ok\"),\"\")","v":""},null,null,null,null,null,null,""]
["",{"$f":"IF(C194<>\"\",IF(dvrut(A194)=\"Incorrecto\", \"Rut o DV incorrecto\",\"ok\"),\"\")","v":""},null,null,null,null,null,null,""]
["",{"$f":"IF(C195<>\"\",IF(dvrut(A195)=\"Incorrecto\", \"Rut o DV incorrecto\",\"ok\"),\"\")","v":""},null,null,null,null,null,null,""]
["",{"$f":"IF(C196<>\"\",IF(dvrut(A196)=\"Incorrecto\", \"Rut o DV incorrecto\",\"ok\"),\"\")","v":""},null,null,null,null,null,null,""]
["",{"$f":"IF(C197<>\"\",IF(dvrut(A197)=\"Incorrecto\", \"Rut o DV incorrecto\",\"ok\"),\"\")","v":""},null,null,null,null,null,null,""]
["",{"$f":"IF(C198<>\"\",IF(dvrut(A198)=\"Incorrecto\", \"Rut o DV incorrecto\",\"ok\"),\"\")","v":""},null,null,null,null,null,null,""]
["",{"$f":"IF(C199<>\"\",IF(dvrut(A199)=\"Incorrecto\", \"Rut o DV incorrecto\",\"ok\"),\"\")","v":""},null,null,null,null,null,null,""]
["",{"$f":"IF(C200<>\"\",IF(dvrut(A200)=\"Incorrecto\", \"Rut o DV incorrecto\",\"ok\"),\"\")","v":""},null,null,null,null,null,null,""]
["",{"$f":"IF(C201<>\"\",IF(dvrut(A201)=\"Incorrecto\", \"Rut o DV incorrecto\",\"ok\"),\"\")","v":""},null,null,null,null,null,null,""]
["",{"$f":"IF(C202<>\"\",IF(dvrut(A202)=\"Incorrecto\", \"Rut o DV incorrecto\",\"ok\"),\"\")","v":""},null,null,null,null,null,null,""]
["",{"$f":"IF(C203<>\"\",IF(dvrut(A203)=\"Incorrecto\", \"Rut o DV incorrecto\",\"ok\"),\"\")","v":""},null,null,null,null,null,null,""]
["",{"$f":"IF(C204<>\"\",IF(dvrut(A204)=\"Incorrecto\", \"Rut o DV incorrecto\",\"ok\"),\"\")","v":""},null,null,null,null,null,null,""]
["",{"$f":"IF(C205<>\"\",IF(dvrut(A205)=\"Incorrecto\", \"Rut o DV incorrecto\",\"ok\"),\"\")","v":""},null,null,null,null,null,null,""]
["",{"$f":"IF(C206<>\"\",IF(dvrut(A206)=\"Incorrecto\", \"Rut o DV incorrecto\",\"ok\"),\"\")","v":""},null,null,null,null,null,null,""]
["",{"$f":"IF(C207<>\"\",IF(dvrut(A207)=\"Incorrecto\", \"Rut o DV incorrecto\",\"ok\"),\"\")","v":""},null,null,null,null,null,null,""]
["",{"$f":"IF(C208<>\"\",IF(dvrut(A208)=\"Incorrecto\", \"Rut o DV incorrecto\",\"ok\"),\"\")","v":""},null,null,null,null,null,null,""]
[{"$f":"IF(C209<>\"\",_xlfn.CONCAT(C209,\"-\",D209),\"\")","v":""},{"$f":"IF(C209<>\"\",IF(dvrut(A209)=\"Incorrecto\", \"Rut o DV incorrecto\",\"ok\"),\"\")","v":""},null,null,null,null,null,null,""]
["",{"$f":"IF(C210<>\"\",IF(dvrut(A210)=\"Incorrecto\", \"Rut o DV incorrecto\",\"ok\"),\"\")","v":""},null,null,null,null,null,null,""]
["",{"$f":"IF(C211<>\"\",IF(dvrut(A211)=\"Incorrecto\", \"Rut o DV incorrecto\",\"ok\"),\"\")","v":""},null,null,null,null,null,null,""]
["",{"$f":"IF(C212<>\"\",IF(dvrut(A212)=\"Incorrecto\", \"Rut o DV incorrecto\",\"ok\"),\"\")","v":""},null,null,null,null,null,null,""]
["",{"$f":"IF(C213<>\"\",IF(dvrut(A213)=\"Incorrecto\", \"Rut o DV incorrecto\",\"ok\"),\"\")","v":""},null,null,null,null,null,null,""]
["",{"$f":"IF(C214<>\"\",IF(dvrut(A214)=\"Incorrecto\", \"Rut o DV incorrecto\",\"ok\"),\"\")","v":""},null,null,null,null,null,null,""]
["",{"$f":"IF(C215<>\"\",IF(dvrut(A215)=\"Incorrecto\", \"Rut o DV incorrecto\",\"ok\"),\"\")","v":""},null,null,null,null,null,null,""]
["",{"$f":"IF(C216<>\"\",IF(dvrut(A216)=\"Incorrecto\", \"Rut o DV incorrecto\",\"ok\"),\"\")","v":""},null,null,null,null,null,null,""]
["",{"$f":"IF(C217<>\"\",IF(dvrut(A217)=\"Incorrecto\", \"Rut o DV incorrecto\",\"ok\"),\"\")","v":""},null,null,null,null,null,null,""]
["",{"$f":"IF(C218<>\"\",IF(dvrut(A218)=\"Incorrecto\", \"Rut o DV incorrecto\",\"ok\"),\"\")","v":""},null,null,null,null,null,null,""]
["",{"$f":"IF(C219<>\"\",IF(dvrut(A219)=\"Incorrecto\", \"Rut o DV incorrecto\",\"ok\"),\"\")","v":""},null,null,null,null,null,null,""]
["",{"$f":"IF(C220<>\"\",IF(dvrut(A220)=\"Incorrecto\", \"Rut o DV incorrecto\",\"ok\"),\"\")","v":""},null,null,null,null,null,null,""]
["",{"$f":"IF(C221<>\"\",IF(dvrut(A221)=\"Incorrecto\", \"Rut o DV incorrecto\",\"ok\"),\"\")","v":""},null,null,null,null,null,null,""]
["",{"$f":"IF(C222<>\"\",IF(dvrut(A222)=\"Incorrecto\", \"Rut o DV incorrecto\",\"ok\"),\"\")","v":""},null,null,null,null,null,null,""]
["",{"$f":"IF(C223<>\"\",IF(dvrut(A223)=\"Incorrecto\", \"Rut o DV incorrecto\",\"ok\"),\"\")","v":""},null,null,null,null,null,null,""]
["",{"$f":"IF(C224<>\"\",IF(dvrut(A224)=\"Incorrecto\", \"Rut o DV incorrecto\",\"ok\"),\"\")","v":""},null,null,null,null,null,null,""]
["",{"$f":"IF(C225<>\"\",IF(dvrut(A225)=\"Incorrecto\", \"Rut o DV incorrecto\",\"ok\"),\"\")","v":""},null,null,null,null,null,null,""]
["",{"$f":"IF(C226<>\"\",IF(dvrut(A226)=\"Incorrecto\", \"Rut o DV incorrecto\",\"ok\"),\"\")","v":""},null,null,null,null,null,null,""]
["",{"$f":"IF(C227<>\"\",IF(dvrut(A227)=\"Incorrecto\", \"Rut o DV incorrecto\",\"ok\"),\"\")","v":""},null,null,null,null,null,null,""]
["",{"$f":"IF(C228<>\"\",IF(dvrut(A228)=\"Incorrecto\", \"Rut o DV incorrecto\",\"ok\"),\"\")","v":""},null,null,null,null,null,null,""]
["",{"$f":"IF(C229<>\"\",IF(dvrut(A229)=\"Incorrecto\", \"Rut o DV incorrecto\",\"ok\"),\"\")","v":""},null,null,null,null,null,null,""]
["",{"$f":"IF(C230<>\"\",IF(dvrut(A230)=\"Incorrecto\", \"Rut o DV incorrecto\",\"ok\"),\"\")","v":""},null,null,null,null,null,null,""]
["",{"$f":"IF(C231<>\"\",IF(dvrut(A231)=\"Incorrecto\", \"Rut o DV incorrecto\",\"ok\"),\"\")","v":""},null,null,null,null,null,null,""]
["",{"$f":"IF(C232<>\"\",IF(dvrut(A232)=\"Incorrecto\", \"Rut o DV incorrecto\",\"ok\"),\"\")","v":""},null,null,null,null,null,null,""]
["",{"$f":"IF(C233<>\"\",IF(dvrut(A233)=\"Incorrecto\", \"Rut o DV incorrecto\",\"ok\"),\"\")","v":""},null,null,null,null,null,null,""]
["",{"$f":"IF(C234<>\"\",IF(dvrut(A234)=\"Incorrecto\", \"Rut o DV incorrecto\",\"ok\"),\"\")","v":""},null,null,null,null,null,null,""]
["",{"$f":"IF(C235<>\"\",IF(dvrut(A235)=\"Incorrecto\", \"Rut o DV incorrecto\",\"ok\"),\"\")","v":""},null,null,null,null,null,null,""]
["",{"$f":"IF(C236<>\"\",IF(dvrut(A236)=\"Incorrecto\", \"Rut o DV incorrecto\",\"ok\"),\"\")","v":""},null,null,null,null,null,null,""]
["",{"$f":"IF(C237<>\"\",IF(dvrut(A237)=\"Incorrecto\", \"Rut o DV incorrecto\",\"ok\"),\"\")","v":""},null,null,null,null,null,null,""]
["",{"$f":"IF(C238<>\"\",IF(dvrut(A238)=\"Incorrecto\", \"Rut o DV incorrecto\",\"ok\"),\"\")","v":""},null,null,null,null,null,null,{"$f":"IF(C238=\"\",\"\",IF(AND(C238=\"\",D238=\"\",E238=\"\",F238=\"\",G238=\"\"),\"Completar datos\",IF(AND(B238=\"ok\",C238<>\"\",D238<>\"\",E238<>\"\",F238<>\"\",G238<>\"\"),\"ok\",\"Datos erroneos o incompletos\")))","v":""}]
["",{"$f":"IF(C239<>\"\",IF(dvrut(A239)=\"Incorrecto\", \"Rut o DV incorrecto\",\"ok\"),\"\")","v":""},null,null,null,null,null,null,""]
["",{"$f":"IF(C240<>\"\",IF(dvrut(A240)=\"Incorrecto\", \"Rut o DV incorrecto\",\"ok\"),\"\")","v":""},null,null,null,null,null,null,""]
["",{"$f":"IF(C241<>\"\",IF(dvrut(A241)=\"Incorrecto\", \"Rut o DV incorrecto\",\"ok\"),\"\")","v":""},null,null,null,null,null,null,""]
["",{"$f":"IF(C242<>\"\",IF(dvrut(A242)=\"Incorrecto\", \"Rut o DV incorrecto\",\"ok\"),\"\")","v":""},null,null,null,null,null,null,""]
["",{"$f":"IF(C243<>\"\",IF(dvrut(A243)=\"Incorrecto\", \"Rut o DV incorrecto\",\"ok\"),\"\")","v":""},null,null,null,null,null,null,""]
["",{"$f":"IF(C244<>\"\",IF(dvrut(A244)=\"Incorrecto\", \"Rut o DV incorrecto\",\"ok\"),\"\")","v":""},null,null,null,null,null,null,""]
["",{"$f":"IF(C245<>\"\",IF(dvrut(A245)=\"Incorrecto\", \"Rut o DV incorrecto\",\"ok\"),\"\")","v":""},null,null,null,null,null,null,""]
["",{"$f":"IF(C246<>\"\",IF(dvrut(A246)=\"Incorrecto\", \"Rut o DV incorrecto\",\"ok\"),\"\")","v":""},null,null,null,null,null,null,""]
["",{"$f":"IF(C247<>\"\",IF(dvrut(A247)=\"Incorrecto\", \"Rut o DV incorrecto\",\"ok\"),\"\")","v":""},null,null,null,null,null,null,""]
["",{"$f":"IF(C248<>\"\",IF(dvrut(A248)=\"Incorrecto\", \"Rut o DV incorrecto\",\"ok\"),\"\")","v":""},null,null,null,null,null,null,""]
["",{"$f":"IF(C249<>\"\",IF(dvrut(A249)=\"Incorrecto\", \"Rut o DV incorrecto\",\"ok\"),\"\")","v":""},null,null,null,null,null,null,""]
["",{"$f":"IF(C250<>\"\",IF(dvrut(A250)=\"Incorrecto\", \"Rut o DV incorrecto\",\"ok\"),\"\")","v":""},null,null,null,null,null,null,""]
["",{"$f":"IF(C251<>\"\",IF(dvrut(A251)=\"Incorrecto\", \"Rut o DV incorrecto\",\"ok\"),\"\")","v":""},null,null,null,null,null,null,""]
["",{"$f":"IF(C252<>\"\",IF(dvrut(A252)=\"Incorrecto\", \"Rut o DV incorrecto\",\"ok\"),\"\")","v":""},null,null,null,null,null,null,""]
["",{"$f":"IF(C253<>\"\",IF(dvrut(A253)=\"Incorrecto\", \"Rut o DV incorrecto\",\"ok\"),\"\")","v":""},null,null,null,null,null,null,""]
["",{"$f":"IF(C254<>\"\",IF(dvrut(A254)=\"Incorrecto\", \"Rut o DV incorrecto\",\"ok\"),\"\")","v":""},null,null,null,null,null,null,""]
["",{"$f":"IF(C255<>\"\",IF(dvrut(A255)=\"Incorrecto\", \"Rut o DV incorrecto\",\"ok\"),\"\")","v":""},null,null,null,null,null,null,""]
["",{"$f":"IF(C256<>\"\",IF(dvrut(A256)=\"Incorrecto\", \"Rut o DV incorrecto\",\"ok\"),\"\")","v":""},null,null,null,null,null,null,""]
["",{"$f":"IF(C257<>\"\",IF(dvrut(A257)=\"Incorrecto\", \"Rut o DV incorrecto\",\"ok\"),\"\")","v":""},null,null,null,null,null,null,""]
["",{"$f":"IF(C258<>\"\",IF(dvrut(A258)=\"Incorrecto\", \"Rut o DV incorrecto\",\"ok\"),\"\")","v":""},null,null,null,null,null,null,""]
["",{"$f":"IF(C259<>\"\",IF(dvrut(A259)=\"Incorrecto\", \"Rut o DV incorrecto\",\"ok\"),\"\")","v":""},null,null,null,null,null,null,""]
["",{"$f":"IF(C260<>\"\",IF(dvrut(A260)=\"Incorrecto\", \"Rut o DV incorrecto\",\"ok\"),\"\")","v":""},null,null,null,null,null,null,""]
["",{"$f":"IF(C261<>\"\",IF(dvrut(A261)=\"Incorrecto\", \"Rut o DV incorrecto\",\"ok\"),\"\")","v":""},null,null,null,null,null,null,""]
["",{"$f":"IF(C262<>\"\",IF(dvrut(A262)=\"Incorrecto\", \"Rut o DV incorrecto\",\"ok\"),\"\")","v":""},null,null,null,null,null,null,""]
["",{"$f":"IF(C263<>\"\",IF(dvrut(A263)=\"Incorrecto\", \"Rut o DV incorrecto\",\"ok\"),\"\")","v":""},null,null,null,null,null,null,""]
["",{"$f":"IF(C264<>\"\",IF(dvrut(A264)=\"Incorrecto\", \"Rut o DV incorrecto\",\"ok\"),\"\")","v":""},null,null,null,null,null,null,""]
["",{"$f":"IF(C265<>\"\",IF(dvrut(A265)=\"Incorrecto\", \"Rut o DV incorrecto\",\"ok\"),\"\")","v":""},null,null,null,null,null,null,""]
["",{"$f":"IF(C266<>\"\",IF(dvrut(A266)=\"Incorrecto\", \"Rut o DV incorrecto\",\"ok\"),\"\")","v":""},null,null,null,null,null,null,""]
["",{"$f":"IF(C267<>\"\",IF(dvrut(A267)=\"Incorrecto\", \"Rut o DV incorrecto\",\"ok\"),\"\")","v":""},null,null,null,null,null,null,""]
["",{"$f":"IF(C268<>\"\",IF(dvrut(A268)=\"Incorrecto\", \"Rut o DV incorrecto\",\"ok\"),\"\")","v":""},null,null,null,null,null,null,""]
["",{"$f":"IF(C269<>\"\",IF(dvrut(A269)=\"Incorrecto\", \"Rut o DV incorrecto\",\"ok\"),\"\")","v":""},null,null,null,null,null,null,""]
["",{"$f":"IF(C270<>\"\",IF(dvrut(A270)=\"Incorrecto\", \"Rut o DV incorrecto\",\"ok\"),\"\")","v":""},null,null,null,null,null,null,""]
["",{"$f":"IF(C271<>\"\",IF(dvrut(A271)=\"Incorrecto\", \"Rut o DV incorrecto\",\"ok\"),\"\")","v":""},null,null,null,null,null,null,""]
["",{"$f":"IF(C272<>\"\",IF(dvrut(A272)=\"Incorrecto\", \"Rut o DV incorrecto\",\"ok\"),\"\")","v":""},null,null,null,null,null,null,""]
[{"$f":"IF(C273<>\"\",_xlfn.CONCAT(C273,\"-\",D273),\"\")","v":""},{"$f":"IF(C273<>\"\",IF(dvrut(A273)=\"Incorrecto\", \"Rut o DV incorrecto\",\"ok\"),\"\")","v":""},null,null,null,null,null,null,""]
["",{"$f":"IF(C274<>\"\",IF(dvrut(A274)=\"Incorrecto\", \"Rut o DV incorrecto\",\"ok\"),\"\")","v":""},null,null,null,null,null,null,""]
["",{"$f":"IF(C275<>\"\",IF(dvrut(A275)=\"Incorrecto\", \"Rut o DV incorrecto\",\"ok\"),\"\")","v":""},null,null,null,null,null,null,""]
["",{"$f":"IF(C276<>\"\",IF(dvrut(A276)=\"Incorrecto\", \"Rut o DV incorrecto\",\"ok\"),\"\")","v":""},null,null,null,null,null,null,""]
["",{"$f":"IF(C277<>\"\",IF(dvrut(A277)=\"Incorrecto\", \"Rut o DV incorrecto\",\"ok\"),\"\")","v":""},null,null,null,null,null,null,""]
["",{"$f":"IF(C278<>\"\",IF(dvrut(A278)=\"Incorrecto\", \"Rut o DV incorrecto\",\"ok\"),\"\")","v":""},null,null,null,null,null,null,""]
["",{"$f":"IF(C279<>\"\",IF(dvrut(A279)=\"Incorrecto\", \"Rut o DV incorrecto\",\"ok\"),\"\")","v":""},null,null,null,null,null,null,""]
["",{"$f":"IF(C280<>\"\",IF(dvrut(A280)=\"Incorrecto\", \"Rut o DV incorrecto\",\"ok\"),\"\")","v":""},null,null,null,null,null,null,""]
["",{"$f":"IF(C281<>\"\",IF(dvrut(A281)=\"Incorrecto\", \"Rut o DV incorrecto\",\"ok\"),\"\")","v":""},null,null,null,null,null,null,""]
["",{"$f":"IF(C282<>\"\",IF(dvrut(A282)=\"Incorrecto\", \"Rut o DV incorrecto\",\"ok\"),\"\")","v":""},null,null,null,null,null,null,""]
["",{"$f":"IF(C283<>\"\",IF(dvrut(A283)=\"Incorrecto\", \"Rut o DV incorrecto\",\"ok\"),\"\")","v":""},null,null,null,null,null,null,""]
["",{"$f":"IF(C284<>\"\",IF(dvrut(A284)=\"Incorrecto\", \"Rut o DV incorrecto\",\"ok\"),\"\")","v":""},null,null,null,null,null,null,""]
["",{"$f":"IF(C285<>\"\",IF(dvrut(A285)=\"Incorrecto\", \"Rut o DV incorrecto\",\"ok\"),\"\")","v":""},null,null,null,null,null,null,""]
["",{"$f":"IF(C286<>\"\",IF(dvrut(A286)=\"Incorrecto\", \"Rut o DV incorrecto\",\"ok\"),\"\")","v":""},null,null,null,null,null,null,""]
["",{"$f":"IF(C287<>\"\",IF(dvrut(A287)=\"Incorrecto\", \"Rut o DV incorrecto\",\"ok\"),\"\")","v":""},null,null,null,null,null,null,""]
["",{"$f":"IF(C288<>\"\",IF(dvrut(A288)=\"Incorrecto\", \"Rut o DV incorrecto\",\"ok\"),\"\")","v":""},null,null,null,null,null,null,""]
["",{"$f":"IF(C289<>\"\",IF(dvrut(A289)=\"Incorrecto\", \"Rut o DV incorrecto\",\"ok\"),\"\")","v":""},null,null,null,null,null,null,""]
["",{"$f":"IF(C290<>\"\",IF(dvrut(A290)=\"Incorrecto\", \"Rut o DV incorrecto\",\"ok\"),\"\")","v":""},null,null,null,null,null,null,""]
["",{"$f":"IF(C291<>\"\",IF(dvrut(A291)=\"Incorrecto\", \"Rut o DV incorrecto\",\"ok\"),\"\")","v":""},null,null,null,null,null,null,""]
["",{"$f":"IF(C292<>\"\",IF(dvrut(A292)=\"Incorrecto\", \"Rut o DV incorrecto\",\"ok\"),\"\")","v":""},null,null,null,null,null,null,""]
["",{"$f":"IF(C293<>\"\",IF(dvrut(A293)=\"Incorrecto\", \"Rut o DV incorrecto\",\"ok\"),\"\")","v":""},null,null,null,null,null,null,""]
["",{"$f":"IF(C294<>\"\",IF(dvrut(A294)=\"Incorrecto\", \"Rut o DV incorrecto\",\"ok\"),\"\")","v":""},null,null,null,null,null,null,""]
["",{"$f":"IF(C295<>\"\",IF(dvrut(A295)=\"Incorrecto\", \"Rut o DV incorrecto\",\"ok\"),\"\")","v":""},null,null,null,null,null,null,""]
["",{"$f":"IF(C296<>\"\",IF(dvrut(A296)=\"Incorrecto\", \"Rut o DV incorrecto\",\"ok\"),\"\")","v":""},null,null,null,null,null,null,""]
["",{"$f":"IF(C297<>\"\",IF(dvrut(A297)=\"Incorrecto\", \"Rut o DV incorrecto\",\"ok\"),\"\")","v":""},null,null,null,null,null,null,""]
["",{"$f":"IF(C298<>\"\",IF(dvrut(A298)=\"Incorrecto\", \"Rut o DV incorrecto\",\"ok\"),\"\")","v":""},null,null,null,null,null,null,""]
["",{"$f":"IF(C299<>\"\",IF(dvrut(A299)=\"Incorrecto\", \"Rut o DV incorrecto\",\"ok\"),\"\")","v":""},null,null,null,null,null,null,""]
["",{"$f":"IF(C300<>\"\",IF(dvrut(A300)=\"Incorrecto\", \"Rut o DV incorrecto\",\"ok\"),\"\")","v":""},null,null,null,null,null,null,""]
["",{"$f":"IF(C301<>\"\",IF(dvrut(A301)=\"Incorrecto\", \"Rut o DV incorrecto\",\"ok\"),\"\")","v":""},null,null,null,null,null,null,""]
["",{"$f":"IF(C302<>\"\",IF(dvrut(A302)=\"Incorrecto\", \"Rut o DV incorrecto\",\"ok\"),\"\")","v":""},null,null,null,null,null,null,{"$f":"IF(C302=\"\",\"\",IF(AND(C302=\"\",D302=\"\",E302=\"\",F302=\"\",G302=\"\"),\"Completar datos\",IF(AND(B302=\"ok\",C302<>\"\",D302<>\"\",E302<>\"\",F302<>\"\",G302<>\"\"),\"ok\",\"Datos erroneos o incompletos\")))","v":""}]
["",{"$f":"IF(C303<>\"\",IF(dvrut(A303)=\"Incorrecto\", \"Rut o DV incorrecto\",\"ok\"),\"\")","v":""},null,null,null,null,null,null,""]
["",{"$f":"IF(C304<>\"\",IF(dvrut(A304)=\"Incorrecto\", \"Rut o DV incorrecto\",\"ok\"),\"\")","v":""},null,null,null,null,null,null,""]
["",{"$f":"IF(C305<>\"\",IF(dvrut(A305)=\"Incorrecto\", \"Rut o DV incorrecto\",\"ok\"),\"\")","v":""},null,null,null,null,null,null,""]
["",{"$f":"IF(C306<>\"\",IF(dvrut(A306)=\"Incorrecto\", \"Rut o DV incorrecto\",\"ok\"),\"\")","v":""},null,null,null,null,null,null,""]
["",{"$f":"IF(C307<>\"\",IF(dvrut(A307)=\"Incorrecto\", \"Rut o DV incorrecto\",\"ok\"),\"\")","v":""},null,null,null,null,null,null,""]
["",{"$f":"IF(C308<>\"\",IF(dvrut(A308)=\"Incorrecto\", \"Rut o DV incorrecto\",\"ok\"),\"\")","v":""},null,null,null,null,null,null,""]
["",{"$f":"IF(C309<>\"\",IF(dvrut(A309)=\"Incorrecto\", \"Rut o DV incorrecto\",\"ok\"),\"\")","v":""},null,null,null,null,null,null,""]
["",{"$f":"IF(C310<>\"\",IF(dvrut(A310)=\"Incorrecto\", \"Rut o DV incorrecto\",\"ok\"),\"\")","v":""},null,null,null,null,null,null,""]
["",{"$f":"IF(C311<>\"\",IF(dvrut(A311)=\"Incorrecto\", \"Rut o DV incorrecto\",\"ok\"),\"\")","v":""},null,null,null,null,null,null,""]
["",{"$f":"IF(C312<>\"\",IF(dvrut(A312)=\"Incorrecto\", \"Rut o DV incorrecto\",\"ok\"),\"\")","v":""},null,null,null,null,null,null,""]
["",{"$f":"IF(C313<>\"\",IF(dvrut(A313)=\"Incorrecto\", \"Rut o DV incorrecto\",\"ok\"),\"\")","v":""},null,null,null,null,null,null,""]
["",{"$f":"IF(C314<>\"\",IF(dvrut(A314)=\"Incorrecto\", \"Rut o DV incorrecto\",\"ok\"),\"\")","v":""},null,null,null,null,null,null,""]
["",{"$f":"IF(C315<>\"\",IF(dvrut(A315)=\"Incorrecto\", \"Rut o DV incorrecto\",\"ok\"),\"\")","v":""},null,null,null,null,null,null,""]
["",{"$f":"IF(C316<>\"\",IF(dvrut(A316)=\"Incorrecto\", \"Rut o DV incorrecto\",\"ok\"),\"\")","v":""},null,null,null,null,null,null,""]
["",{"$f":"IF(C317<>\"\",IF(dvrut(A317)=\"Incorrecto\", \"Rut o DV incorrecto\",\"ok\"),\"\")","v":""},null,null,null,null,null,null,""]
["",{"$f":"IF(C318<>\"\",IF(dvrut(A318)=\"Incorrecto\", \"Rut o DV incorrecto\",\"ok\"),\"\")","v":""},null,null,null,null,null,null,""]
["",{"$f":"IF(C319<>\"\",IF(dvrut(A319)=\"Incorrecto\", \"Rut o DV incorrecto\",\"ok\"),\"\")","v":""},null,null,null,null,null,null,""]
["",{"$f":"IF(C320<>\"\",IF(dvrut(A320)=\"Incorrecto\", \"Rut o DV incorrecto\",\"ok\"),\"\")","v":""},null,null,null,null,null,null,""]
["",{"$f":"IF(C321<>\"\",IF(dvrut(A321)=\"Incorrecto\", \"Rut o DV incorrecto\",\"ok\"),\"\")","v":""},null,null,null,null,null,null,""]
["",{"$f":"IF(C322<>\"\",IF(dvrut(A322)=\"Incorrecto\", \"Rut o DV incorrecto\",\"ok\"),\"\")","v":""},null,null,null,null,null,null,""]
["",{"$f":"IF(C323<>\"\",IF(dvrut(A323)=\"Incorrecto\", \"Rut o DV incorrecto\",\"ok\"),\"\")","v":""},null,null,null,null,null,null,""]
["",{"$f":"IF(C324<>\"\",IF(dvrut(A324)=\"Incorrecto\", \"Rut o DV incorrecto\",\"ok\"),\"\")","v":""},null,null,null,null,null,null,""]
["",{"$f":"IF(C325<>\"\",IF(dvrut(A325)=\"Incorrecto\", \"Rut o DV incorrecto\",\"ok\"),\"\")","v":""},null,null,null,null,null,null,""]
["",{"$f":"IF(C326<>\"\",IF(dvrut(A326)=\"Incorrecto\", \"Rut o DV incorrecto\",\"ok\"),\"\")","v":""},null,null,null,null,null,null,""]
["",{"$f":"IF(C327<>\"\",IF(dvrut(A327)=\"Incorrecto\", \"Rut o DV incorrecto\",\"ok\"),\"\")","v":""},null,null,null,null,null,null,""]
["",{"$f":"IF(C328<>\"\",IF(dvrut(A328)=\"Incorrecto\", \"Rut o DV incorrecto\",\"ok\"),\"\")","v":""},null,null,null,null,null,null,""]
["",{"$f":"IF(C329<>\"\",IF(dvrut(A329)=\"Incorrecto\", \"Rut o DV incorrecto\",\"ok\"),\"\")","v":""},null,null,null,null,null,null,""]
["",{"$f":"IF(C330<>\"\",IF(dvrut(A330)=\"Incorrecto\", \"Rut o DV incorrecto\",\"ok\"),\"\")","v":""},null,null,null,null,null,null,""]
["",{"$f":"IF(C331<>\"\",IF(dvrut(A331)=\"Incorrecto\", \"Rut o DV incorrecto\",\"ok\"),\"\")","v":""},null,null,null,null,null,null,""]
["",{"$f":"IF(C332<>\"\",IF(dvrut(A332)=\"Incorrecto\", \"Rut o DV incorrecto\",\"ok\"),\"\")","v":""},null,null,null,null,null,null,""]
["",{"$f":"IF(C333<>\"\",IF(dvrut(A333)=\"Incorrecto\", \"Rut o DV incorrecto\",\"ok\"),\"\")","v":""},null,null,null,null,null,null,""]
["",{"$f":"IF(C334<>\"\",IF(dvrut(A334)=\"Incorrecto\", \"Rut o DV incorrecto\",\"ok\"),\"\")","v":""},null,null,null,null,null,null,""]
["",{"$f":"IF(C335<>\"\",IF(dvrut(A335)=\"Incorrecto\", \"Rut o DV incorrecto\",\"ok\"),\"\")","v":""},null,null,null,null,null,null,""]
["",{"$f":"IF(C336<>\"\",IF(dvrut(A336)=\"Incorrecto\", \"Rut o DV incorrecto\",\"ok\"),\"\")","v":""},null,null,null,null,null,null,""]
[{"$f":"IF(C337<>\"\",_xlfn.CONCAT(C337,\"-\",D337),\"\")","v":""},{"$f":"IF(C337<>\"\",IF(dvrut(A337)=\"Incorrecto\", \"Rut o DV incorrecto\",\"ok\"),\"\")","v":""},null,null,null,null,null,null,""]
["",{"$f":"IF(C338<>\"\",IF(dvrut(A338)=\"Incorrecto\", \"Rut o DV incorrecto\",\"ok\"),\"\")","v":""},null,null,null,null,null,null,""]
["",{"$f":"IF(C339<>\"\",IF(dvrut(A339)=\"Incorrecto\", \"Rut o DV incorrecto\",\"ok\"),\"\")","v":""},null,null,null,null,null,null,""]
["",{"$f":"IF(C340<>\"\",IF(dvrut(A340)=\"Incorrecto\", \"Rut o DV incorrecto\",\"ok\"),\"\")","v":""},null,null,null,null,null,null,""]
["",{"$f":"IF(C341<>\"\",IF(dvrut(A341)=\"Incorrecto\", \"Rut o DV incorrecto\",\"ok\"),\"\")","v":""},null,null,null,null,null,null,""]
["",{"$f":"IF(C342<>\"\",IF(dvrut(A342)=\"Incorrecto\", \"Rut o DV incorrecto\",\"ok\"),\"\")","v":""},null,null,null,null,null,null,""]
["",{"$f":"IF(C343<>\"\",IF(dvrut(A343)=\"Incorrecto\", \"Rut o DV incorrecto\",\"ok\"),\"\")","v":""},null,null,null,null,null,null,""]
["",{"$f":"IF(C344<>\"\",IF(dvrut(A344)=\"Incorrecto\", \"Rut o DV incorrecto\",\"ok\"),\"\")","v":""},null,null,null,null,null,null,""]
["",{"$f":"IF(C345<>\"\",IF(dvrut(A345)=\"Incorrecto\", \"Rut o DV incorrecto\",\"ok\"),\"\")","v":""},null,null,null,null,null,null,""]
["",{"$f":"IF(C346<>\"\",IF(dvrut(A346)=\"Incorrecto\", \"Rut o DV incorrecto\",\"ok\"),\"\")","v":""},null,null,null,null,null,null,""]
["",{"$f":"IF(C347<>\"\",IF(dvrut(A347)=\"Incorrecto\", \"Rut o DV incorrecto\",\"ok\"),\"\")","v":""},null,null,null,null,null,null,""]
["",{"$f":"IF(C348<>\"\",IF(dvrut(A348)=\"Incorrecto\", \"Rut o DV incorrecto\",\"ok\"),\"\")","v":""},null,null,null,null,null,null,""]
["",{"$f":"IF(C349<>\"\",IF(dvrut(A349)=\"Incorrecto\", \"Rut o DV incorrecto\",\"ok\"),\"\")","v":""},null,null,null,null,null,null,""]
["",{"$f":"IF(C350<>\"\",IF(dvrut(A350)=\"Incorrecto\", \"Rut o DV incorrecto\",\"ok\"),\"\")","v":""},null,null,null,null,null,null,""]
["",{"$f":"IF(C351<>\"\",IF(dvrut(A351)=\"Incorrecto\", \"Rut o DV incorrecto\",\"ok\"),\"\")","v":""},null,null,null,null,null,null,""]
["",{"$f":"IF(C352<>\"\",IF(dvrut(A352)=\"Incorrecto\", \"Rut o DV incorrecto\",\"ok\"),\"\")","v":""},null,null,null,null,null,null,""]
["",{"$f":"IF(C353<>\"\",IF(dvrut(A353)=\"Incorrecto\", \"Rut o DV incorrecto\",\"ok\"),\"\")","v":""},null,null,null,null,null,null,""]
["",{"$f":"IF(C354<>\"\",IF(dvrut(A354)=\"Incorrecto\", \"Rut o DV incorrecto\",\"ok\"),\"\")","v":""},null,null,null,null,null,null,""]
["",{"$f":"IF(C355<>\"\",IF(dvrut(A355)=\"Incorrecto\", \"Rut o DV incorrecto\",\"ok\"),\"\")","v":""},null,null,null,null,null,null,""]
["",{"$f":"IF(C356<>\"\",IF(dvrut(A356)=\"Incorrecto\", \"Rut o DV incorrecto\",\"ok\"),\"\")","v":""},null,null,null,null,null,null,""]
["",{"$f":"IF(C357<>\"\",IF(dvrut(A357)=\"Incorrecto\", \"Rut o DV incorrecto\",\"ok\"),\"\")","v":""},null,null,null,null,null,null,""]
["",{"$f":"IF(C358<>\"\",IF(dvrut(A358)=\"Incorrecto\", \"Rut o DV incorrecto\",\"ok\"),\"\")","v":""},null,null,null,null,null,null,""]
["",{"$f":"IF(C359<>\"\",IF(dvrut(A359)=\"Incorrecto\", \"Rut o DV incorrecto\",\"ok\"),\"\")","v":""},null,null,null,null,null,null,""]
["",{"$f":"IF(C360<>\"\",IF(dvrut(A360)=\"Incorrecto\", \"Rut o DV incorrecto\",\"ok\"),\"\")","v":""},null,null,null,null,null,null,""]
["",{"$f":"IF(C361<>\"\",IF(dvrut(A361)=\"Incorrecto\", \"Rut o DV incorrecto\",\"ok\"),\"\")","v":""},null,null,null,null,null,null,""]
["",{"$f":"IF(C362<>\"\",IF(dvrut(A362)=\"Incorrecto\", \"Rut o DV incorrecto\",\"ok\"),\"\")","v":""},null,null,null,null,null,null,""]
["",{"$f":"IF(C363<>\"\",IF(dvrut(A363)=\"Incorrecto\", \"Rut o DV incorrecto\",\"ok\"),\"\")","v":""},null,null,null,null,null,null,""]
["",{"$f":"IF(C364<>\"\",IF(dvrut(A364)=\"Incorrecto\", \"Rut o DV incorrecto\",\"ok\"),\"\")","v":""},null,null,null,null,null,null,""]
["",{"$f":"IF(C365<>\"\",IF(dvrut(A365)=\"Incorrecto\", \"Rut o DV incorrecto\",\"ok\"),\"\")","v":""},null,null,null,null,null,null,""]
["",{"$f":"IF(C366<>\"\",IF(dvrut(A366)=\"Incorrecto\", \"Rut o DV incorrecto\",\"ok\"),\"\")","v":""},null,null,null,null,null,null,{"$f":"IF(C366=\"\",\"\",IF(AND(C366=\"\",D366=\"\",E366=\"\",F366=\"\",G366=\"\"),\"Completar datos\",IF(AND(B366=\"ok\",C366<>\"\",D366<>\"\",E366<>\"\",F366<>\"\",G366<>\"\"),\"ok\",\"Datos erroneos o incompletos\")))","v":""}]
["",{"$f":"IF(C367<>\"\",IF(dvrut(A367)=\"Incorrecto\", \"Rut o DV incorrecto\",\"ok\"),\"\")","v":""},null,null,null,null,null,null,""]
["",{"$f":"IF(C368<>\"\",IF(dvrut(A368)=\"Incorrecto\", \"Rut o DV incorrecto\",\"ok\"),\"\")","v":""},null,null,null,null,null,null,""]
["",{"$f":"IF(C369<>\"\",IF(dvrut(A369)=\"Incorrecto\", \"Rut o DV incorrecto\",\"ok\"),\"\")","v":""},null,null,null,null,null,null,""]
["",{"$f":"IF(C370<>\"\",IF(dvrut(A370)=\"Incorrecto\", \"Rut o DV incorrecto\",\"ok\"),\"\")","v":""},null,null,null,null,null,null,""]
["",{"$f":"IF(C371<>\"\",IF(dvrut(A371)=\"Incorrecto\", \"Rut o DV incorrecto\",\"ok\"),\"\")","v":""},null,null,null,null,null,null,""]
["",{"$f":"IF(C372<>\"\",IF(dvrut(A372)=\"Incorrecto\", \"Rut o DV incorrecto\",\"ok\"),\"\")","v":""},null,null,null,null,null,null,""]
["",{"$f":"IF(C373<>\"\",IF(dvrut(A373)=\"Incorrecto\", \"Rut o DV incorrecto\",\"ok\"),\"\")","v":""},null,null,null,null,null,null,""]
["",{"$f":"IF(C374<>\"\",IF(dvrut(A374)=\"Incorrecto\", \"Rut o DV incorrecto\",\"ok\"),\"\")","v":""},null,null,null,null,null,null,""]
["",{"$f":"IF(C375<>\"\",IF(dvrut(A375)=\"Incorrecto\", \"Rut o DV incorrecto\",\"ok\"),\"\")","v":""},null,null,null,null,null,null,""]
["",{"$f":"IF(C376<>\"\",IF(dvrut(A376)=\"Incorrecto\", \"Rut o DV incorrecto\",\"ok\"),\"\")","v":""},null,null,null,null,null,null,""]
["",{"$f":"IF(C377<>\"\",IF(dvrut(A377)=\"Incorrecto\", \"Rut o DV incorrecto\",\"ok\"),\"\")","v":""},null,null,null,null,null,null,""]
["",{"$f":"IF(C378<>\"\",IF(dvrut(A378)=\"Incorrecto\", \"Rut o DV incorrecto\",\"ok\"),\"\")","v":""},null,null,null,null,null,null,""]
["",{"$f":"IF(C379<>\"\",IF(dvrut(A379)=\"Incorrecto\", \"Rut o DV incorrecto\",\"ok\"),\"\")","v":""},null,null,null,null,null,null,""]
["",{"$f":"IF(C380<>\"\",IF(dvrut(A380)=\"Incorrecto\", \"Rut o DV incorrecto\",\"ok\"),\"\")","v":""},null,null,null,null,null,null,""]
["",{"$f":"IF(C381<>\"\",IF(dvrut(A381)=\"Incorrecto\", \"Rut o DV incorrecto\",\"ok\"),\"\")","v":""},null,null,null,null,null,null,""]
["",{"$f":"IF(C382<>\"\",IF(dvrut(A382)=\"Incorrecto\", \"Rut o DV incorrecto\",\"ok\"),\"\")","v":""},null,null,null,null,null,null,""]
["",{"$f":"IF(C383<>\"\",IF(dvrut(A383)=\"Incorrecto\", \"Rut o DV incorrecto\",\"ok\"),\"\")","v":""},null,null,null,null,null,null,""]
["",{"$f":"IF(C384<>\"\",IF(dvrut(A384)=\"Incorrecto\", \"Rut o DV incorrecto\",\"ok\"),\"\")","v":""},null,null,null,null,null,null,""]
["",{"$f":"IF(C385<>\"\",IF(dvrut(A385)=\"Incorrecto\", \"Rut o DV incorrecto\",\"ok\"),\"\")","v":""},null,null,null,null,null,null,""]
["",{"$f":"IF(C386<>\"\",IF(dvrut(A386)=\"Incorrecto\", \"Rut o DV incorrecto\",\"ok\"),\"\")","v":""},null,null,null,null,null,null,""]
["",{"$f":"IF(C387<>\"\",IF(dvrut(A387)=\"Incorrecto\", \"Rut o DV incorrecto\",\"ok\"),\"\")","v":""},null,null,null,null,null,null,""]
["",{"$f":"IF(C388<>\"\",IF(dvrut(A388)=\"Incorrecto\", \"Rut o DV incorrecto\",\"ok\"),\"\")","v":""},null,null,null,null,null,null,""]
["",{"$f":"IF(C389<>\"\",IF(dvrut(A389)=\"Incorrecto\", \"Rut o DV incorrecto\",\"ok\"),\"\")","v":""},null,null,null,null,null,null,""]
["",{"$f":"IF(C390<>\"\",IF(dvrut(A390)=\"Incorrecto\", \"Rut o DV incorrecto\",\"ok\"),\"\")","v":""},null,null,null,null,null,null,""]
["",{"$f":"IF(C391<>\"\",IF(dvrut(A391)=\"Incorrecto\", \"Rut o DV incorrecto\",\"ok\"),\"\")","v":""},null,null,null,null,null,null,""]
["",{"$f":"IF(C392<>\"\",IF(dvrut(A392)=\"Incorrecto\", \"Rut o DV incorrecto\",\"ok\"),\"\")","v":""},null,null,null,null,null,null,""]
["",{"$f":"IF(C393<>\"\",IF(dvrut(A393)=\"Incorrecto\", \"Rut o DV incorrecto\",\"ok\"),\"\")","v":""},null,null,null,null,null,null,""]
["",{"$f":"IF(C394<>\"\",IF(dvrut(A394)=\"Incorrecto\", \"Rut o DV incorrecto\",\"ok\"),\"\")","v":""},null,null,null,null,null,null,""]
["",{"$f":"IF(C395<>\"\",IF(dvrut(A395)=\"Incorrecto\", \"Rut o DV incorrecto\",\"ok\"),\"\")","v":""},null,null,null,null,null,null,""]
["",{"$f":"IF(C396<>\"\",IF(dvrut(A396)=\"Incorrecto\", \"Rut o DV incorrecto\",\"ok\"),\"\")","v":""},null,null,null,null,null,null,""]
["",{"$f":"IF(C397<>\"\",IF(dvrut(A397)=\"Incorrecto\", \"Rut o DV incorrecto\",\"ok\"),\"\")","v":""},null,null,null,null,null,null,""]
["",{"$f":"IF(C398<>\"\",IF(dvrut(A398)=\"Incorrecto\", \"Rut o DV incorrecto\",\"ok\"),\"\")","v":""},null,null,null,null,null,null,""]
["",{"$f":"IF(C399<>\"\",IF(dvrut(A399)=\"Incorrecto\", \"Rut o DV incorrecto\",\"ok\"),\"\")","v":""},null,null,null,null,null,null,""]
["",{"$f":"IF(C400<>\"\",IF(dvrut(A400)=\"Incorrecto\", \"Rut o DV incorrecto\",\"ok\"),\"\")","v":""},null,null,null,null,null,null,""]
[{"$f":"IF(C401<>\"\",_xlfn.CONCAT(C401,\"-\",D401),\"\")","v":""},{"$f":"IF(C401<>\"\",IF(dvrut(A401)=\"Incorrecto\", \"Rut o DV incorrecto\",\"ok\"),\"\")","v":""},null,null,null,null,null,null,""]
["",{"$f":"IF(C402<>\"\",IF(dvrut(A402)=\"Incorrecto\", \"Rut o DV incorrecto\",\"ok\"),\"\")","v":""},null,null,null,null,null,null,""]
["",{"$f":"IF(C403<>\"\",IF(dvrut(A403)=\"Incorrecto\", \"Rut o DV incorrecto\",\"ok\"),\"\")","v":""},null,null,null,null,null,null,""]
["",{"$f":"IF(C404<>\"\",IF(dvrut(A404)=\"Incorrecto\", \"Rut o DV incorrecto\",\"ok\"),\"\")","v":""},null,null,null,null,null,null,""]
["",{"$f":"IF(C405<>\"\",IF(dvrut(A405)=\"Incorrecto\", \"Rut o DV incorrecto\",\"ok\"),\"\")","v":""},null,null,null,null,null,null,""]
["",{"$f":"IF(C406<>\"\",IF(dvrut(A406)=\"Incorrecto\", \"Rut o DV incorrecto\",\"ok\"),\"\")","v":""},null,null,null,null,null,null,""]
["",{"$f":"IF(C407<>\"\",IF(dvrut(A407)=\"Incorrecto\", \"Rut o DV incorrecto\",\"ok\"),\"\")","v":""},null,null,null,null,null,null,""]
["",{"$f":"IF(C408<>\"\",IF(dvrut(A408)=\"Incorrecto\", \"Rut o DV incorrecto\",\"ok\"),\"\")","v":""},null,null,null,null,null,null,""]
["",{"$f":"IF(C409<>\"\",IF(dvrut(A409)=\"Incorrecto\", \"Rut o DV incorrecto\",\"ok\"),\"\")","v":""},null,null,null,null,null,null,""]
["",{"$f":"IF(C410<>\"\",IF(dvrut(A410)=\"Incorrecto\", \"Rut o DV incorrecto\",\"ok\"),\"\")","v":""},null,null,null,null,null,null,""]
["",{"$f":"IF(C411<>\"\",IF(dvrut(A411)=\"Incorrecto\", \"Rut o DV incorrecto\",\"ok\"),\"\")","v":""},null,null,null,null,null,null,""]
["",{"$f":"IF(C412<>\"\",IF(dvrut(A412)=\"Incorrecto\", \"Rut o DV incorrecto\",\"ok\"),\"\")","v":""},null,null,null,null,null,null,""]
["",{"$f":"IF(C413<>\"\",IF(dvrut(A413)=\"Incorrecto\", \"Rut o DV incorrecto\",\"ok\"),\"\")","v":""},null,null,null,null,null,null,""]
["",{"$f":"IF(C414<>\"\",IF(dvrut(A414)=\"Incorrecto\", \"Rut o DV incorrecto\",\"ok\"),\"\")","v":""},null,null,null,null,null,null,""]
["",{"$f":"IF(C415<>\"\",IF(dvrut(A415)=\"Incorrecto\", \"Rut o DV incorrecto\",\"ok\"),\"\")","v":""},null,null,null,null,null,null,""]
["",{"$f":"IF(C416<>\"\",IF(dvrut(A416)=\"Incorrecto\", \"Rut o DV incorrecto\",\"ok\"),\"\")","v":""},null,null,null,null,null,null,""]
["",{"$f":"IF(C417<>\"\",IF(dvrut(A417)=\"Incorrecto\", \"Rut o DV incorrecto\",\"ok\"),\"\")","v":""},null,null,null,null,null,null,""]
["",{"$f":"IF(C418<>\"\",IF(dvrut(A418)=\"Incorrecto\", \"Rut o DV incorrecto\",\"ok\"),\"\")","v":""},null,null,null,null,null,null,""]
["",{"$f":"IF(C419<>\"\",IF(dvrut(A419)=\"Incorrecto\", \"Rut o DV incorrecto\",\"ok\"),\"\")","v":""},null,null,null,null,null,null,""]
["",{"$f":"IF(C420<>\"\",IF(dvrut(A420)=\"Incorrecto\", \"Rut o DV incorrecto\",\"ok\"),\"\")","v":""},null,null,null,null,null,null,""]
["",{"$f":"IF(C421<>\"\",IF(dvrut(A421)=\"Incorrecto\", \"Rut o DV incorrecto\",\"ok\"),\"\")","v":""},null,null,null,null,null,null,""]
["",{"$f":"IF(C422<>\"\",IF(dvrut(A422)=\"Incorrecto\", \"Rut o DV incorrecto\",\"ok\"),\"\")","v":""},null,null,null,null,null,null,""]
["",{"$f":"IF(C423<>\"\",IF(dvrut(A423)=\"Incorrecto\", \"Rut o DV incorrecto\",\"ok\"),\"\")","v":""},null,null,null,null,null,null,""]
["",{"$f":"IF(C424<>\"\",IF(dvrut(A424)=\"Incorrecto\", \"Rut o DV incorrecto\",\"ok\"),\"\")","v":""},null,null,null,null,null,null,""]
["",{"$f":"IF(C425<>\"\",IF(dvrut(A425)=\"Incorrecto\", \"Rut o DV incorrecto\",\"ok\"),\"\")","v":""},null,null,null,null,null,null,""]
["",{"$f":"IF(C426<>\"\",IF(dvrut(A426)=\"Incorrecto\", \"Rut o DV incorrecto\",\"ok\"),\"\")","v":""},null,null,null,null,null,null,""]
["",{"$f":"IF(C427<>\"\",IF(dvrut(A427)=\"Incorrecto\", \"Rut o DV incorrecto\",\"ok\"),\"\")","v":""},null,null,null,null,null,null,""]
["",{"$f":"IF(C428<>\"\",IF(dvrut(A428)=\"Incorrecto\", \"Rut o DV incorrecto\",\"ok\"),\"\")","v":""},null,null,null,null,null,null,""]
["",{"$f":"IF(C429<>\"\",IF(dvrut(A429)=\"Incorrecto\", \"Rut o DV incorrecto\",\"ok\"),\"\")","v":""},null,null,null,null,null,null,""]
["",{"$f":"IF(C430<>\"\",IF(dvrut(A430)=\"Incorrecto\", \"Rut o DV incorrecto\",\"ok\"),\"\")","v":""},null,null,null,null,null,null,{"$f":"IF(C430=\"\",\"\",IF(AND(C430=\"\",D430=\"\",E430=\"\",F430=\"\",G430=\"\"),\"Completar datos\",IF(AND(B430=\"ok\",C430<>\"\",D430<>\"\",E430<>\"\",F430<>\"\",G430<>\"\"),\"ok\",\"Datos erroneos o incompletos\")))","v":""}]
["",{"$f":"IF(C431<>\"\",IF(dvrut(A431)=\"Incorrecto\", \"Rut o DV incorrecto\",\"ok\"),\"\")","v":""},null,null,null,null,null,null,""]
["",{"$f":"IF(C432<>\"\",IF(dvrut(A432)=\"Incorrecto\", \"Rut o DV incorrecto\",\"ok\"),\"\")","v":""},null,null,null,null,null,null,""]
["",{"$f":"IF(C433<>\"\",IF(dvrut(A433)=\"Incorrecto\", \"Rut o DV incorrecto\",\"ok\"),\"\")","v":""},null,null,null,null,null,null,""]
["",{"$f":"IF(C434<>\"\",IF(dvrut(A434)=\"Incorrecto\", \"Rut o DV incorrecto\",\"ok\"),\"\")","v":""},null,null,null,null,null,null,""]
["",{"$f":"IF(C435<>\"\",IF(dvrut(A435)=\"Incorrecto\", \"Rut o DV incorrecto\",\"ok\"),\"\")","v":""},null,null,null,null,null,null,""]
["",{"$f":"IF(C436<>\"\",IF(dvrut(A436)=\"Incorrecto\", \"Rut o DV incorrecto\",\"ok\"),\"\")","v":""},null,null,null,null,null,null,""]
["",{"$f":"IF(C437<>\"\",IF(dvrut(A437)=\"Incorrecto\", \"Rut o DV incorrecto\",\"ok\"),\"\")","v":""},null,null,null,null,null,null,""]
["",{"$f":"IF(C438<>\"\",IF(dvrut(A438)=\"Incorrecto\", \"Rut o DV incorrecto\",\"ok\"),\"\")","v":""},null,null,null,null,null,null,""]
["",{"$f":"IF(C439<>\"\",IF(dvrut(A439)=\"Incorrecto\", \"Rut o DV incorrecto\",\"ok\"),\"\")","v":""},null,null,null,null,null,null,""]
["",{"$f":"IF(C440<>\"\",IF(dvrut(A440)=\"Incorrecto\", \"Rut o DV incorrecto\",\"ok\"),\"\")","v":""},null,null,null,null,null,null,""]
["",{"$f":"IF(C441<>\"\",IF(dvrut(A441)=\"Incorrecto\", \"Rut o DV incorrecto\",\"ok\"),\"\")","v":""},null,null,null,null,null,null,""]
["",{"$f":"IF(C442<>\"\",IF(dvrut(A442)=\"Incorrecto\", \"Rut o DV incorrecto\",\"ok\"),\"\")","v":""},null,null,null,null,null,null,""]
["",{"$f":"IF(C443<>\"\",IF(dvrut(A443)=\"Incorrecto\", \"Rut o DV incorrecto\",\"ok\"),\"\")","v":""},null,null,null,null,null,null,""]
["",{"$f":"IF(C444<>\"\",IF(dvrut(A444)=\"Incorrecto\", \"Rut o DV incorrecto\",\"ok\"),\"\")","v":""},null,null,null,null,null,null,""]
["",{"$f":"IF(C445<>\"\",IF(dvrut(A445)=\"Incorrecto\", \"Rut o DV incorrecto\",\"ok\"),\"\")","v":""},null,null,null,null,null,null,""]
["",{"$f":"IF(C446<>\"\",IF(dvrut(A446)=\"Incorrecto\", \"Rut o DV incorrecto\",\"ok\"),\"\")","v":""},null,null,null,null,null,null,""]
["",{"$f":"IF(C447<>\"\",IF(dvrut(A447)=\"Incorrecto\", \"Rut o DV incorrecto\",\"ok\"),\"\")","v":""},null,null,null,null,null,null,""]
["",{"$f":"IF(C448<>\"\",IF(dvrut(A448)=\"Incorrecto\", \"Rut o DV incorrecto\",\"ok\"),\"\")","v":""},null,null,null,null,null,null,""]
["",{"$f":"IF(C449<>\"\",IF(dvrut(A449)=\"Incorrecto\", \"Rut o DV incorrecto\",\"ok\"),\"\")","v":""},null,null,null,null,null,null,""]
["",{"$f":"IF(C450<>\"\",IF(dvrut(A450)=\"Incorrecto\", \"Rut o DV incorrecto\",\"ok\"),\"\")","v":""},null,null,null,null,null,null,""]
["",{"$f":"IF(C451<>\"\",IF(dvrut(A451)=\"Incorrecto\", \"Rut o DV incorrecto\",\"ok\"),\"\")","v":""},null,null,null,null,null,null,""]
["",{"$f":"IF(C452<>\"\",IF(dvrut(A452)=\"Incorrecto\", \"Rut o DV incorrecto\",\"ok\"),\"\")","v":""},null,null,null,null,null,null,""]
["",{"$f":"IF(C453<>\"\",IF(dvrut(A453)=\"Incorrecto\", \"Rut o DV incorrecto\",\"ok\"),\"\")","v":""},null,null,null,null,null,null,""]
["",{"$f":"IF(C454<>\"\",IF(dvrut(A454)=\"Incorrecto\", \"Rut o DV incorrecto\",\"ok\"),\"\")","v":""},null,null,null,null,null,null,""]
["",{"$f":"IF(C455<>\"\",IF(dvrut(A455)=\"Incorrecto\", \"Rut o DV incorrecto\",\"ok\"),\"\")","v":""},null,null,null,null,null,null,""]
["",{"$f":"IF(C456<>\"\",IF(dvrut(A456)=\"Incorrecto\", \"Rut o DV incorrecto\",\"ok\"),\"\")","v":""},null,null,null,null,null,null,""]
["",{"$f":"IF(C457<>\"\",IF(dvrut(A457)=\"Incorrecto\", \"Rut o DV incorrecto\",\"ok\"),\"\")","v":""},null,null,null,null,null,null,""]
["",{"$f":"IF(C458<>\"\",IF(dvrut(A458)=\"Incorrecto\", \"Rut o DV incorrecto\",\"ok\"),\"\")","v":""},null,null,null,null,null,null,""]
["",{"$f":"IF(C459<>\"\",IF(dvrut(A459)=\"Incorrecto\", \"Rut o DV incorrecto\",\"ok\"),\"\")","v":""},null,null,null,null,null,null,""]
["",{"$f":"IF(C460<>\"\",IF(dvrut(A460)=\"Incorrecto\", \"Rut o DV incorrecto\",\"ok\"),\"\")","v":""},null,null,null,null,null,null,""]
["",{"$f":"IF(C461<>\"\",IF(dvrut(A461)=\"Incorrecto\", \"Rut o DV incorrecto\",\"ok\"),\"\")","v":""},null,null,null,null,null,null,""]
["",{"$f":"IF(C462<>\"\",IF(dvrut(A462)=\"Incorrecto\", \"Rut o DV incorrecto\",\"ok\"),\"\")","v":""},null,null,null,null,null,null,""]
["",{"$f":"IF(C463<>\"\",IF(dvrut(A463)=\"Incorrecto\", \"Rut o DV incorrecto\",\"ok\"),\"\")","v":""},null,null,null,null,null,null,""]
["",{"$f":"IF(C464<>\"\",IF(dvrut(A464)=\"Incorrecto\", \"Rut o DV incorrecto\",\"ok\"),\"\")","v":""},null,null,null,null,null,null,""]
[{"$f":"IF(C465<>\"\",_xlfn.CONCAT(C465,\"-\",D465),\"\")","v":""},{"$f":"IF(C465<>\"\",IF(dvrut(A465)=\"Incorrecto\", \"Rut o DV incorrecto\",\"ok\"),\"\")","v":""},null,null,null,null,null,null,""]
["",{"$f":"IF(C466<>\"\",IF(dvrut(A466)=\"Incorrecto\", \"Rut o DV incorrecto\",\"ok\"),\"\")","v":""},null,null,null,null,null,null,""]
["",{"$f":"IF(C467<>\"\",IF(dvrut(A467)=\"Incorrecto\", \"Rut o DV incorrecto\",\"ok\"),\"\")","v":""},null,null,null,null,null,null,""]
["",{"$f":"IF(C468<>\"\",IF(dvrut(A468)=\"Incorrecto\", \"Rut o DV incorrecto\",\"ok\"),\"\")","v":""},null,null,null,null,null,null,""]
["",{"$f":"IF(C469<>\"\",IF(dvrut(A469)=\"Incorrecto\", \"Rut o DV incorrecto\",\"ok\"),\"\")","v":""},null,null,null,null,null,null,""]
["",{"$f":"IF(C470<>\"\",IF(dvrut(A470)=\"Incorrecto\", \"Rut o DV incorrecto\",\"ok\"),\"\")","v":""},null,null,null,null,null,null,""]
["",{"$f":"IF(C471<>\"\",IF(dvrut(A471)=\"Incorrecto\", \"Rut o DV incorrecto\",\"ok\"),\"\")","v":""},null,null,null,null,null,null,""]
["",{"$f":"IF(C472<>\"\",IF(dvrut(A472)=\"Incorrecto\", \"Rut o DV incorrecto\",\"ok\"),\"\")","v":""},null,null,null,null,null,null,""]
["",{"$f":"IF(C473<>\"\",IF(dvrut(A473)=\"Incorrecto\", \"Rut o DV incorrecto\",\"ok\"),\"\")","v":""},null,null,null,null,null,null,""]
["",{"$f":"IF(C474<>\"\",IF(dvrut(A474)=\"Incorrecto\", \"Rut o DV incorrecto\",\"ok\"),\"\")","v":""},null,null,null,null,null,null,""]
["",{"$f":"IF(C475<>\"\",IF(dvrut(A475)=\"Incorrecto\", \"Rut o DV incorrecto\",\"ok\"),\"\")","v":""},null,null,null,null,null,null,""]
["",{"$f":"IF(C476<>\"\",IF(dvrut(A476)=\"Incorrecto\", \"Rut o DV incorrecto\",\"ok\"),\"\")","v":""},null,null,null,null,null,null,""]
["",{"$f":"IF(C477<>\"\",IF(dvrut(A477)=\"Incorrecto\", \"Rut o DV incorrecto\",\"ok\"),\"\")","v":""},null,null,null,null,null,null,""]
["",{"$f":"IF(C478<>\"\",IF(dvrut(A478)=\"Incorrecto\", \"Rut o DV incorrecto\",\"ok\"),\"\")","v":""},null,null,null,null,null,null,""]
["",{"$f":"IF(C479<>\"\",IF(dvrut(A479)=\"Incorrecto\", \"Rut o DV incorrecto\",\"ok\"),\"\")","v":""},null,null,null,null,null,null,""]
["",{"$f":"IF(C480<>\"\",IF(dvrut(A480)=\"Incorrecto\", \"Rut o DV incorrecto\",\"ok\"),\"\")","v":""},null,null,null,null,null,null,""]
["",{"$f":"IF(C481<>\"\",IF(dvrut(A481)=\"Incorrecto\", \"Rut o DV incorrecto\",\"ok\"),\"\")","v":""},null,null,null,null,null,null,""]
["",{"$f":"IF(C482<>\"\",IF(dvrut(A482)=\"Incorrecto\", \"Rut o DV incorrecto\",\"ok\"),\"\")","v":""},null,null,null,null,null,null,""]
["",{"$f":"IF(C483<>\"\",IF(dvrut(A483)=\"Incorrecto\", \"Rut o DV incorrecto\",\"ok\"),\"\")","v":""},null,null,null,null,null,null,""]
["",{"$f":"IF(C484<>\"\",IF(dvrut(A484)=\"Incorrecto\", \"Rut o DV incorrecto\",\"ok\"),\"\")","v":""},null,null,null,null,null,null,""]
["",{"$f":"IF(C485<>\"\",IF(dvrut(A485)=\"Incorrecto\", \"Rut o DV incorrecto\",\"ok\"),\"\")","v":""},null,null,null,null,null,null,""]
["",{"$f":"IF(C486<>\"\",IF(dvrut(A486)=\"Incorrecto\", \"Rut o DV incorrecto\",\"ok\"),\"\")","v":""},null,null,null,null,null,null,""]
["",{"$f":"IF(C487<>\"\",IF(dvrut(A487)=\"Incorrecto\", \"Rut o DV incorrecto\",\"ok\"),\"\")","v":""},null,null,null,null,null,null,""]
["",{"$f":"IF(C488<>\"\",IF(dvrut(A488)=\"Incorrecto\", \"Rut o DV incorrecto\",\"ok\"),\"\")","v":""},null,null,null,null,null,null,""]
["",{"$f":"IF(C489<>\"\",IF(dvrut(A489)=\"Incorrecto\", \"Rut o DV incorrecto\",\"ok\"),\"\")","v":""},null,null,null,null,null,null,""]
["",{"$f":"IF(C490<>\"\",IF(dvrut(A490)=\"Incorrecto\", \"Rut o DV incorrecto\",\"ok\"),\"\")","v":""},null,null,null,null,null,null,""]
["",{"$f":"IF(C491<>\"\",IF(dvrut(A491)=\"Incorrecto\", \"Rut o DV incorrecto\",\"ok\"),\"\")","v":""},null,null,null,null,null,null,""]
["",{"$f":"IF(C492<>\"\",IF(dvrut(A492)=\"Incorrecto\", \"Rut o DV incorrecto\",\"ok\"),\"\")","v":""},null,null,null,null,null,null,""]
["",{"$f":"IF(C493<>\"\",IF(dvrut(A493)=\"Incorrecto\", \"Rut o DV incorrecto\",\"ok\"),\"\")","v":""},null,null,null,null,null,null,""]
["",{"$f":"IF(C494<>\"\",IF(dvrut(A494)=\"Incorrecto\", \"Rut o DV incorrecto\",\"ok\"),\"\")","v":""},null,null,null,null,null,null,{"$f":"IF(C494=\"\",\"\",IF(AND(C494=\"\",D494=\"\",E494=\"\",F494=\"\",G494=\"\"),\"Completar datos\",IF(AND(B494=\"ok\",C494<>\"\",D494<>\"\",E494<>\"\",F494<>\"\",G494<>\"\"),\"ok\",\"Datos erroneos o incompletos\")))","v":""}]
["",{"$f":"IF(C495<>\"\",IF(dvrut(A495)=\"Incorrecto\", \"Rut o DV incorrecto\",\"ok\"),\"\")","v":""},null,null,null,null,null,null,""]
["",{"$f":"IF(C496<>\"\",IF(dvrut(A496)=\"Incorrecto\", \"Rut o DV incorrecto\",\"ok\"),\"\")","v":""},null,null,null,null,null,null,""]
["",{"$f":"IF(C497<>\"\",IF(dvrut(A497)=\"Incorrecto\", \"Rut o DV incorrecto\",\"ok\"),\"\")","v":""},null,null,null,null,null,null,""]
["",{"$f":"IF(C498<>\"\",IF(dvrut(A498)=\"Incorrecto\", \"Rut o DV incorrecto\",\"ok\"),\"\")","v":""},null,null,null,null,null,null,""]
["",{"$f":"IF(C499<>\"\",IF(dvrut(A499)=\"Incorrecto\", \"Rut o DV incorrecto\",\"ok\"),\"\")","v":""},null,null,null,null,null,null,""]
["",{"$f":"IF(C500<>\"\",IF(dvrut(A500)=\"Incorrecto\", \"Rut o DV incorrecto\",\"ok\"),\"\")","v":""},null,null,null,null,null,null,""]
["",{"$f":"IF(C501<>\"\",IF(dvrut(A501)=\"Incorrecto\", \"Rut o DV incorrecto\",\"ok\"),\"\")","v":""},null,null,null,null,null,null,""]
["",{"$f":"IF(C502<>\"\",IF(dvrut(A502)=\"Incorrecto\", \"Rut o DV incorrecto\",\"ok\"),\"\")","v":""},null,null,null,null,null,null,""]
["",{"$f":"IF(C503<>\"\",IF(dvrut(A503)=\"Incorrecto\", \"Rut o DV incorrecto\",\"ok\"),\"\")","v":""},null,null,null,null,null,null,""]
["",{"$f":"IF(C504<>\"\",IF(dvrut(A504)=\"Incorrecto\", \"Rut o DV incorrecto\",\"ok\"),\"\")","v":""},null,null,null,null,null,null,""]
["",{"$f":"IF(C505<>\"\",IF(dvrut(A505)=\"Incorrecto\", \"Rut o DV incorrecto\",\"ok\"),\"\")","v":""},null,null,null,null,null,null,""]
["",{"$f":"IF(C506<>\"\",IF(dvrut(A506)=\"Incorrecto\", \"Rut o DV incorrecto\",\"ok\"),\"\")","v":""},null,null,null,null,null,null,""]
["",{"$f":"IF(C507<>\"\",IF(dvrut(A507)=\"Incorrecto\", \"Rut o DV incorrecto\",\"ok\"),\"\")","v":""},null,null,null,null,null,null,""]
["",{"$f":"IF(C508<>\"\",IF(dvrut(A508)=\"Incorrecto\", \"Rut o DV incorrecto\",\"ok\"),\"\")","v":""},null,null,null,null,null,null,""]
["",{"$f":"IF(C509<>\"\",IF(dvrut(A509)=\"Incorrecto\", \"Rut o DV incorrecto\",\"ok\"),\"\")","v":""},null,null,null,null,null,null,""]
["",{"$f":"IF(C510<>\"\",IF(dvrut(A510)=\"Incorrecto\", \"Rut o DV incorrecto\",\"ok\"),\"\")","v":""},null,null,null,null,null,null,""]
["",{"$f":"IF(C511<>\"\",IF(dvrut(A511)=\"Incorrecto\", \"Rut o DV incorrecto\",\"ok\"),\"\")","v":""},null,null,null,null,null,null,""]
["",{"$f":"IF(C512<>\"\",IF(dvrut(A512)=\"Incorrecto\", \"Rut o DV incorrecto\",\"ok\"),\"\")","v":""},null,null,null,null,null,null,""]
["",{"$f":"IF(C513<>\"\",IF(dvrut(A513)=\"Incorrecto\", \"Rut o DV incorrecto\",\"ok\"),\"\")","v":""},null,null,null,null,null,null,""]
["",{"$f":"IF(C514<>\"\",IF(dvrut(A514)=\"Incorrecto\", \"Rut o DV incorrecto\",\"ok\"),\"\")","v":""},null,null,null,null,null,null,""]
["",{"$f":"IF(C515<>\"\",IF(dvrut(A515)=\"Incorrecto\", \"Rut o DV incorrecto\",\"ok\"),\"\")","v":""},null,null,null,null,null,null,""]
["",{"$f":"IF(C516<>\"\",IF(dvrut(A516)=\"Incorrecto\", \"Rut o DV incorrecto\",\"ok\"),\"\")","v":""},null,null,null,null,null,null,""]
["",{"$f":"IF(C517<>\"\",IF(dvrut(A517)=\"Incorrecto\", \"Rut o DV incorrecto\",\"ok\"),\"\")","v":""},null,null,null,null,null,null,""]
["",{"$f":"IF(C518<>\"\",IF(dvrut(A518)=\"Incorrecto\", \"Rut o DV incorrecto\",\"ok\"),\"\")","v":""},null,null,null,null,null,null,""]
["",{"$f":"IF(C519<>\"\",IF(dvrut(A519)=\"Incorrecto\", \"Rut o DV incorrecto\",\"ok\"),\"\")","v":""},null,null,null,null,null,null,""]
["",{"$f":"IF(C520<>\"\",IF(dvrut(A520)=\"Incorrecto\", \"Rut o DV incorrecto\",\"ok\"),\"\")","v":""},null,null,null,null,null,null,""]
["",{"$f":"IF(C521<>\"\",IF(dvrut(A521)=\"Incorrecto\", \"Rut o DV incorrecto\",\"ok\"),\"\")","v":""},null,null,null,null,null,null,""]
["",{"$f":"IF(C522<>\"\",IF(dvrut(A522)=\"Incorrecto\", \"Rut o DV incorrecto\",\"ok\"),\"\")","v":""},null,null,null,null,null,null,""]
["",{"$f":"IF(C523<>\"\",IF(dvrut(A523)=\"Incorrecto\", \"Rut o DV incorrecto\",\"ok\"),\"\")","v":""},null,null,null,null,null,null,""]
["",{"$f":"IF(C524<>\"\",IF(dvrut(A524)=\"Incorrecto\", \"Rut o DV incorrecto\",\"ok\"),\"\")","v":""},null,null,null,null,null,null,""]
["",{"$f":"IF(C525<>\"\",IF(dvrut(A525)=\"Incorrecto\", \"Rut o DV incorrecto\",\"ok\"),\"\")","v":""},null,null,null,null,null,null,""]
["",{"$f":"IF(C526<>\"\",IF(dvrut(A526)=\"Incorrecto\", \"Rut o DV incorrecto\",\"ok\"),\"\")","v":""},null,null,null,null,null,null,""]
["",{"$f":"IF(C527<>\"\",IF(dvrut(A527)=\"Incorrecto\", \"Rut o DV incorrecto\",\"ok\"),\"\")","v":""},null,null,null,null,null,null,""]
["",{"$f":"IF(C528<>\"\",IF(dvrut(A528)=\"Incorrecto\", \"Rut o DV incorrecto\",\"ok\"),\"\")","v":""},null,null,null,null,null,null,""]
[{"$f":"IF(C529<>\"\",_xlfn.CONCAT(C529,\"-\",D529),\"\")","v":""},{"$f":"IF(C529<>\"\",IF(dvrut(A529)=\"Incorrecto\", \"Rut o DV incorrecto\",\"ok\"),\"\")","v":""},null,null,null,null,null,null,""]
["",{"$f":"IF(C530<>\"\",IF(dvrut(A530)=\"Incorrecto\", \"Rut o DV incorrecto\",\"ok\"),\"\")","v":""},null,null,null,null,null,null,""]
["",{"$f":"IF(C531<>\"\",IF(dvrut(A531)=\"Incorrecto\", \"Rut o DV incorrecto\",\"ok\"),\"\")","v":""},null,null,null,null,null,null,""]
["",{"$f":"IF(C532<>\"\",IF(dvrut(A532)=\"Incorrecto\", \"Rut o DV incorrecto\",\"ok\"),\"\")","v":""},null,null,null,null,null,null,""]
["",{"$f":"IF(C533<>\"\",IF(dvrut(A533)=\"Incorrecto\", \"Rut o DV incorrecto\",\"ok\"),\"\")","v":""},null,null,null,null,null,null,""]
["",{"$f":"IF(C534<>\"\",IF(dvrut(A534)=\"Incorrecto\", \"Rut o DV incorrecto\",\"ok\"),\"\")","v":""},null,null,null,null,null,null,""]
["",{"$f":"IF(C535<>\"\",IF(dvrut(A535)=\"Incorrecto\", \"Rut o DV incorrecto\",\"ok\"),\"\")","v":""},null,null,null,null,null,null,""]
["",{"$f":"IF(C536<>\"\",IF(dvrut(A536)=\"Incorrecto\", \"Rut o DV incorrecto\",\"ok\"),\"\")","v":""},null,null,null,null,null,null,""]
["",{"$f":"IF(C537<>\"\",IF(dvrut(A537)=\"Incorrecto\", \"Rut o DV incorrecto\",\"ok\"),\"\")","v":""},null,null,null,null,null,null,""]
["",{"$f":"IF(C538<>\"\",IF(dvrut(A538)=\"Incorrecto\", \"Rut o DV incorrecto\",\"ok\"),\"\")","v":""},null,null,null,null,null,null,""]
["",{"$f":"IF(C539<>\"\",IF(dvrut(A539)=\"Incorrecto\", \"Rut o DV incorrecto\",\"ok\"),\"\")","v":""},null,null,null,null,null,null,""]
["",{"$f":"IF(C540<>\"\",IF(dvrut(A540)=\"Incorrecto\", \"Rut o DV incorrecto\",\"ok\"),\"\")","v":""},null,null,null,null,null,null,""]
["",{"$f":"IF(C541<>\"\",IF(dvrut(A541)=\"Incorrecto\", \"Rut o DV incorrecto\",\"ok\"),\"\")","v":""},null,null,null,null,null,null,""]
["",{"$f":"IF(C542<>\"\",IF(dvrut(A542)=\"Incorrecto\", \"Rut o DV incorrecto\",\"ok\"),\"\")","v":""},null,null,null,null,null,null,""]
["",{"$f":"IF(C543<>\"\",IF(dvrut(A543)=\"Incorrecto\", \"Rut o DV incorrecto\",\"ok\"),\"\")","v":""},null,null,null,null,null,null,""]
["",{"$f":"IF(C544<>\"\",IF(dvrut(A544)=\"Incorrecto\", \"Rut o DV incorrecto\",\"ok\"),\"\")","v":""},null,null,null,null,null,null,""]

{"sheet":"Salida_Solicitud","index":1,"n_rows":144,"n_cols":9,"rows_kept":144,"cut":false,"hidden":true,"merged":[[3,2,4,8],[42,2,42,7]]}
[]
[]
[]
[null,null,"Ingrese los datos de Cotización"]
[]
[null,"Cantidad Reg act",0,null,"Check general","Contador v2","Fecha","2021-05-31"]
[null,null,null,null,null,""]
[null,null,"1. CONTRATANTE / EMPLEADOR",null,null,null,null,"precio final"]
[null,null,"RUT (SIN PUNTOS,SIN DV)"]
[null,null,"DIGITO VERIFICADOR"]
[null,null,"NOMBRE/RAZON SOCIAL"]
[null,null,"APELLIDO PATERNO"]
[null,null,"APELLIDO MATERNO"]
[null,null,"CALLE / DIRECCIÓN"]
[null,null,"COMUNA"]
[null,null,"E-MAIL CONTRATANTE"]
[]
[]
[]
[]
[]
[]
[]
[]
[null,null,null,null,null,null,"-"]
[null,null,"2.TARIFA"]
[null,null,"TARIFA NETA UNITARIA UF"]
[null,null,"TARIFA FINAL (BRUTA) UF"]
[]
[null,null,"3.OTROS"]
[null,null,"FECHA DE INICIO"]
[null,null,"FECHA DE TERMINO"]
[]
[null,null,"CANTIDAD DE ASEGURADOS"]
[null,null,"PRIMA TOTAL A PAGAR UF"]
[null,null,"PRIMA TOTAL A TRANSFERIR $"]
[]
[null,null,"CODIGO DE SOLICITUD"]
[]
[]
[]
[null,null,null,null,null,null,null,null,0]
[null,null,"ASEGURADO MULTIPLES"]
[null,null,"RUT","DV","Nombre","Apellido Paterno","Apellido Materno","Email Asegurado"]
[""]
[""]
[""]
[""]
[""]
[""]
[""]
[""]
[""]
[""]
[""]
[""]
[""]
[""]
[""]
[""]
[""]
[""]
[""]
[""]
[""]
[""]
[""]
[""]
[""]
[""]
[""]
[""]
[""]
[""]
[""]
[""]
[""]
[""]
[""]
[""]
[""]
[""]
[""]
[""]
[""]
[""]
[""]
[""]
[""]
[""]
[""]
[""]
[""]
[""]
[""]
[""]
[""]
[""]
[""]
[""]
[""]
[""]
[""]
[""]
[""]
[""]
[""]
[""]
[""]
[""]
[""]
[""]
[""]
[""]
[""]
[""]
[""]
[""]
[""]
[""]
[""]
[""]
[""]
[""]
[""]
[""]
[""]
[""]
[""]
[""]
[""]
[""]
[""]
[""]
[""]
[""]
[""]
[""]
[""]
[""]
[""]
[""]
[""]
[""]

{"sheet":"PARAMETROS","index":2,"n_rows":2151,"n_cols":14,"rows_kept":2151,"cut":false,"hidden":true,"merged":[]}
["COMUNA",null,"Codigo de Formulario",null,"Comisiones",null,null,"Codigo Intermediario","Intermediario","CODIGO DE SUCURSAL","Sucursal",null,"FECHA","VALOR UF"]
[null,null,1,null,0,null,null,null,"SERVICIO AL CLIENTE",23,"HDI.CL",null,"2021-06-01",29617.07]
[null,null,null,null,0.01,null,null,1002,"DIRECTO ANTOFAGASTA",3,"Antofagasta",null,{"$f":"M2+1","v":"2021-06-02"},29620.880000000001]
[null,null,null,null,0.02,null,null,1011,"DIRECTO LA FLORIDA",15,"HDI Santiago",null,{"$f":"M3+1","v":"2021-06-03"},29624.7]
[null,null,null,null,0.03,null,null,499,"PALMA ROSSEL,HECTOR MANUEL",1,"Advance",null,"2021-06-04",29628.51]
[null,null,null,null,0.04,null,null,500,"CERDA MUNOZ,LEONARDO PATRICIO",1,"Advance",null,"2021-06-05",29632.33]
[null,null,null,null,0.05,null,null,504,"MELA FARIAS,PATRICIA",1,"Advance",null,"2021-06-06",29636.15]
[null,null,null,null,{"$f":"E7+0.01","v":6.0000000000000005E-2},null,null,22,"ROTHENBURG VILLEGAS,GRETEL",1,"Advance",null,"2021-06-07",29639.96]
[null,null,null,null,{"$f":"E8+0.01","v":7.0000000000000007E-2},null,null,3,"QUIROZ LARREA,ARACELI ERNESTINA",1,"Advance",null,"2021-06-08",29643.78]
[null,null,null,null,0.08,null,null,40,"TORRES VIVANCO,GLORIA ELSA",1,"Advance",null,"2021-06-09",29647.599999999999]
[null,null,null,null,0.09,null,null,5,"VILLAGRAN NORAMBUENA,ERWIN WILSON",7,"Temuco",null,"2021-06-10",29650.560000000001]
[null,null,null,null,9.9999999999999992E-2,null,null,3343,"CALISTO SILVA,JOSE ORLANDO",9,"Puerto Montt",null,"2021-06-11",29653.52]
[null,null,null,null,null,null,null,7003,"ROTHENBURG VILLEGAS,GRETEL",1,"Advance",null,"2021-06-12",29656.48]
[null,null,null,null,null,null,null,3477,"MORENO OYARZUN,ANA XIMENA",31,"HDI Club",null,"2021-06-13",29659.439999999999]
[null,null,null,null,null,null,null,3718,"GONZALEZ SILVA,CARLOS ELIAS",4,"Viña del Mar",null,"2021-06-14",29662.41]
[null,null,null,null,null,null,null,3844,"ARRIOLA CORTEZ,NELLY DEL CARMEN",4,"Viña del Mar",null,"2021-06-15",29665.37]
[null,null,null,null,null,null,null,3228,"VERDUGO CAMPOS,ANA LUISA",31,"HDI Club",null,"2021-06-16",29668.33]
[null,null,null,null,null,null,null,4071,"CUMSILLE PIDDO,CARMEN GLORIA",41,"Rancagua",null,"2021-06-17",29671.29]
[null,null,null,null,null,null,null,4001,"CORNEJO HOFMANN,ANA MARIA",15,"HDI Santiago",null,"2021-06-18",29674.25]
[null,null,null,null,null,null,null,3561,"OJEDA ULLOA,JAIME ENRIQUE",15,"HDI Santiago",null,"2021-06-19",29677.22]
[null,null,null,null,null,null,null,2489,"CESAR VALLEJO MARTINOLLI Y CIA. LTDA.",1,"Advance",null,"2021-06-20",29680.18]
[null,null,null,null,null,null,null,3441,"BORDACHAR HENNING,DOMINGO ALFREDO",31,"HDI Club",null,"2021-06-21",29683.15]
[null,null,null,null,null,null,null,4313,"HERRERA MENDEZ,GASTON ANDRES",6,"Concepción",null,"2021-06-22",29686.11]
[null,null,null,null,null,null,null,3274,"MOREY LAZO,PEDRO JOSE",31,"HDI Club",null,"2021-06-23",29689.07]
[null,null,null,null,null,null,null,4057,"MOLL SUREDA,MARIA ELVIRA",3,"Antofagasta",null,"2021-06-24",29692.04]
[null,null,null,null,null,null,null,3720,"MOTTA YANEZ,ELIZABETH BERTA",2,"Iquique",null,"2021-06-25",29695]
[null,null,null,null,null,null,null,3973,"EDWARDS EDWARDS,JOSE MANUEL",53,"Partners",null,"2021-06-26",29697.97]
[null,null,null,null,null,null,null,3332,"JEREZ LAGOS,FERNANDO",31,"HDI Club",null,"2021-06-27",29700.93]
[null,null,null,null,null,null,null,3215,"VERCELLINO VRANCKEN,LUCIA ADELAIDA",31,"HDI Club",null,"2021-06-28",29703.9]
[null,null,null,null,null,null,null,3715,"POBLETE ROJAS,HERNAN",15,"HDI Santiago",null,"2021-06-29",29706.87]
[null,null,null,null,null,null,null,4449,"ANDRES TOLEDO,ARISTEO DOMINGO",15,"HDI Santiago",null,"2021-06-30",29709.83]
[null,null,null,null,null,null,null,3140,"PEREZ GARCIA,CARLOS JOAQUIN",31,"HDI Club",null,{"$f":"M31+1","v":"2021-07-01"},29712.799999999999]
[null,null,null,null,null,null,null,4264,"MONTENEGRO VERA,OMAR",45,"Osorno",null,"2021-07-02",29715.77]
[null,null,null,null,null,null,null,3724,"LLOYD ROCHA,NORA ROSA",2,"Iquique",null,{"$f":"M33+1","v":"2021-07-03"},29718.73]
[null,null,null,null,null,null,null,4195,"CORREA BRITO,HECTOR RAUL",4,"Viña del Mar",null,"2021-07-04",29721.7]
[null,null,null,null,null,null,null,4247,"TEKE PIERA,MIGUEL ALEJANDRO",9,"Puerto Montt",null,"2021-07-05",29724.67]
[null,null,null,null,null,null,null,3773,"BOHN SAUTEREL,BERTHOLD ERWIN",7,"Temuco",null,"2021-07-06",29727.64]
[null,null,null,null,null,null,null,3368,"ALDUNATE BOSSAY,CLIMENE MARIA",31,"HDI Club",null,"2021-07-07",29730.6]
[null,null,null,null,null,null,null,3862,"GONZALEZ VALDIVIA,MANUEL ASVILDO",2,"Iquique",null,"2021-07-08",29733.57]
[null,null,null,null,null,null,null,3900,"SIPPA OYARCE,GLADYS CECILIA",3,"Antofagasta",null,"2021-07-09",29736.54]
[null,null,null,null,null,null,null,4429,"SALINAS JIMENEZ,PABLO",17,"La Serena",null,{"$f":"M40+1","v":"2021-07-10"}]
[null,null,null,null,null,null,null,3207,"ZAMORA TORRES,LAUTARO DANIEL",41,"Rancagua",null,"2021-07-11"]
[null,null,null,null,null,null,null,4404,"PULGAR ROJAS,DAVID ORLANDO",80,"HDI Comercial",null,"2021-07-12"]
[null,null,null,null,null,null,null,4070,"BARBE ILIC,EDUARDO ALBERTO",15,"HDI Santiago",null,"2021-07-13"]
[null,null,null,null,null,null,null,3405,"TORRES ISLA,ANA AURORA",7,"Temuco",null,"2021-07-14"]
[null,null,null,null,null,null,null,3918,"SILVA KRAEMER,CESAR CARLOS",3,"Antofagasta",null,"2021-07-15"]
[null,null,null,null,null,null,null,3993,"ZLATAR CAMPILLAY,BLAS GREGORIO",3,"Antofagasta",null,"2021-07-16"]
[null,null,null,null,null,null,null,4401,"BUSTAMANTE VIDELA,ROGELIO SEGUNDO",6,"Concepción",null,"2021-07-17"]
[null,null,null,null,null,null,null,3421,"ARIAS ANTIVILO,ANDRES FERNANDO",3,"Antofagasta",null,"2021-07-18"]
[null,null,null,null,null,null,null,3825,"VELASQUEZ SALAH,ANTONIO SEGUNDO",31,"HDI Club",null,"2021-07-19"]
[null,null,null,null,null,null,null,4357,"ACORIA OLMOS,BERNARDO",15,"HDI Santiago",null,"2021-07-20"]
[null,null,null,null,null,null,null,4133,"RECABARREN PONCE,MARTA BEATRIZ",31,"HDI Club",null,"2021-07-21"]
[null,null,null,null,null,null,null,4108,"GONZALEZ REBOLLEDO,PEDRO VICENTE",7,"Temuco",null,"2021-07-22"]
[null,null,null,null,null,null,null,3875,"MUNOZ INFANTA,MARCO ARIEL",31,"HDI Club",null,"2021-07-23"]
[null,null,null,null,null,null,null,3912,"CARVAJAL WILSON,LINO DOMINGO",2,"Iquique",null,"2021-07-24"]
[null,null,null,null,null,null,null,4003,"URZUA BECERRA,NABOR OSVALDO",7,"Temuco",null,"2021-07-25"]
[null,null,null,null,null,null,null,3815,"INDO PONTIGO,OSCAR",3,"Antofagasta",null,"2021-07-26"]
[null,null,null,null,null,null,null,3702,"CASTRO BORQUEZ,ORESTES",7,"Temuco",null,"2021-07-27"]
[null,null,null,null,null,null,null,3422,"BERGER PALLOMARI,SERGIO GUILLERMO",3,"Antofagasta",null,"2021-07-28"]
[null,null,null,null,null,null,null,3887,"LYON OSSA,BARBARA",1,"Advance"]
[null,null,null,null,null,null,null,4084,"SAAVEDRA RODRIGUEZ,ERNESTO PATRICIO",15,"HDI Santiago"]
[null,null,null,null,null,null,null,3512,"HABERT CARRILLO,WALTER NELSON",7,"Temuco"]
[null,null,null,null,null,null,null,4297,"VELASQUEZ SALAH,GUSTAVO ALFONSO",31,"HDI Club"]
[null,null,null,null,null,null,null,3165,"SEPULVEDA MOYA,MANUEL GONZALO",4,"Viña del Mar"]
[null,null,null,null,null,null,null,3834,"GUAMAN CESPEDES,ANTONIO",3,"Antofagasta"]
[null,null,null,null,null,null,null,3807,"VASQUEZ ECHEVERRIA,ADRIANA ISABEL",4,"Viña del Mar"]
[null,null,null,null,null,null,null,3902,"PINCHEIRA SOTO,ARNALDO ALFONSO",7,"Temuco"]
[null,null,null,null,null,null,null,3831,"NUALART GONZALEZ,CARMEN MARIA ALEJAN",7,"Temuco"]
[null,null,null,null,null,null,null,4338,"JIMENEZ MARTIN,ANSELMO",7,"Temuco"]
[null,null,null,null,null,null,null,4002,"BARRENECHEA BARRIA,SANDRA ROSALBA",7,"Temuco"]
[null,null,null,null,null,null,null,3301,"MANTEROLA VALDES,JAIME ANDRES",15,"HDI Santiago"]
[null,null,null,null,null,null,null,4007,"MARTINEZ ASSMANN,SARA TERESA DE LOUR",15,"HDI Santiago"]
[null,null,null,null,null,null,null,4249,"VALDES MILLAN,SERGIO MANUEL",15,"HDI Santiago"]
[null,null,null,null,null,null,null,3728,"SILVA CHACON,NORMA ELENA",2,"Iquique"]
[null,null,null,null,null,null,null,4092,"HEVIA ALZERRECA,GLORIA MARISOL",31,"HDI Club"]
[null,null,null,null,null,null,null,3586,"FARIAS SALINAS,ALEJANDRA TEAMAR",3,"Antofagasta"]
[null,null,null,null,null,null,null,3243,"CASTELLANO BAHAMONDES,JOSE IGNACIO",31,"HDI Club"]
[null,null,null,null,null,null,null,4227,"DATTWYLER VIDAURRE,GLORIA ANGELICA",4,"Viña del Mar"]
[null,null,null,null,null,null,null,4061,"CORTES TORO,ROLANDO ALIRO",17,"La Serena"]
[null,null,null,null,null,null,null,4068,"CONTRERAS PEREZ,NELLA LUISA",15,"HDI Santiago"]
[null,null,null,null,null,null,null,4184,"CAMPOS GUTIERREZ,ALEJANDRO FELIX",15,"HDI Santiago"]
[null,null,null,null,null,null,null,3609,"ANDERS PEREZ,CLAUDIO HERNAN",7,"Temuco"]
[null,null,null,null,null,null,null,4406,"CAMPILLAY VITALI,SERGIO BERNARDO",17,"La Serena"]
[null,null,null,null,null,null,null,4331,"CERDA PARDO,SUSANA DE LAS MERCED",6,"Concepción"]
[null,null,null,null,null,null,null,3523,"CASTANEDA CUEVAS,ELENA DEL ROSARIO",3,"Antofagasta"]
[null,null,null,null,null,null,null,3936,"MARTI CONTRERAS,LLINOS ANTONIO",7,"Temuco"]
[null,null,null,null,null,null,null,3784,"ONELL LUCERO,SERGIO",2,"Iquique"]
[null,null,null,null,null,null,null,3882,"HENRIQUEZ DIAZ,CESAR ALEJANDRO",3,"Antofagasta"]
[null,null,null,null,null,null,null,4387,"GALLEGUILLOS AHUMADA,EMA ISABEL",6,"Concepción"]
[null,null,null,null,null,null,null,4189,"SUSPERREGUY ROBLES,BRUNILDA CARMEN",7,"Temuco"]
[null,null,null,null,null,null,null,3734,"ARENAS AGUILERA,HECTOR HERNAN",41,"Rancagua"]
[null,null,null,null,null,null,null,4022,"CANAS PINOCHET,CLAUDIA ANDREA",31,"HDI Club"]
[null,null,null,null,null,null,null,3979,"SOSSDORF GONZALEZ,SANDRA CECILIA",4,"Viña del Mar"]
[null,null,null,null,null,null,null,3714,"HOLVOET CASTILLO,MARIA SOLEDAD DEL T",17,"La Serena"]
[null,null,null,null,null,null,null,4274,"OBILINOVIC GONZALEZ,YASNA ANDREA",2,"Iquique"]
[null,null,null,null,null,null,null,3700,"VALLEJOS VALLEJOS,NADIA ANDREA",7,"Temuco"]
[null,null,null,null,null,null,null,4100,"ABBOTT SANCHEZ,JUAN CARLOS",4,"Viña del Mar"]
[null,null,null,null,null,null,null,3270,"SANCHEZ GRACIA,FERNANDO",15,"HDI Santiago"]
[null,null,null,null,null,null,null,3716,"LANDAETA ALVIAL,HUGO RENE",7,"Temuco"]
[null,null,null,null,null,null,null,4296,"SALAZAR LOPEZ,CLAUDIO DIEGO",3,"Antofagasta"]
[null,null,null,null,null,null,null,4326,"BORDONES DIAZ,DOMINGO ENRIQUE",3,"Antofagasta"]
[null,null,null,null,null,null,null,4241,"ZAMORANO DELUCCHI,GLORIA MARIA",31,"HDI Club"]
[null,null,null,null,null,null,null,3589,"ARANCIBIA OLIVARES,CARMEN DEL PILAR",4,"Viña del Mar"]
[null,null,null,null,null,null,null,3867,"BRUNA LAZARO,MIGUEL SEGUNDO",2,"Iquique"]
[null,null,null,null,null,null,null,3805,"ALVAREZ CASTANEDA,RAMONA MARLENE",4,"Viña del Mar"]
[null,null,null,null,null,null,null,4020,"CORONA VILLAR,NELSON CARLOS",2,"Iquique"]
[null,null,null,null,null,null,null,2437,"NEEDHAM & ASOCIADOS CORRED.DE SEGUROS",15,"HDI Santiago"]
[null,null,null,null,null,null,null,2448,"SANZ Y NEIRA CORREDORES DE SEGUROS LTDA.",9,"Puerto Montt"]
[null,null,null,null,null,null,null,2457,"SEGUROS FALABELLA CORREDORES LIMITADA",91,"CM Falabella"]
[null,null,null,null,null,null,null,2474,"BEL PRODUCTORES DE SEGUROS LIMITADA",7,"Temuco"]
[null,null,null,null,null,null,null,2459,"CORREDORES DE SEGUROS ALERCE LTDA.",31,"HDI Club"]
[null,null,null,null,null,null,null,2465,"CORRED. DE SEGUROS PORTFOLIO LTDA.",7,"Temuco"]
[null,null,null,null,null,null,null,2426,"SERVICIOS INTEGRALES Y CORRETAJES DE SEG",31,"HDI Club"]
[null,null,null,null,null,null,null,2315,"PROD. SEG. JORGE ACUÑA D Y COMPAÑIA LTDA",7,"Temuco"]
[null,null,null,null,null,null,null,2468,"OTTONE Y GUZMAN LTDA",15,"HDI Santiago"]
[null,null,null,null,null,null,null,2433,"CORREDORES DE SEGUROS VOIPIR LTDA.",7,"Temuco"]
[null,null,null,null,null,null,null,2452,"LUIS ARTURO IBARRA Y CIA. LTDA.",1,"Advance"]
[null,null,null,null,null,null,null,2350,"JOFRE Y GUZMAN LIMITADA",4,"Viña del Mar"]
[null,null,null,null,null,null,null,2359,"PROD.SEG.VERONICA FLETCHER Y CIA. LTDA.-",15,"HDI Santiago"]
[null,null,null,null,null,null,null,2341,"WALKER Y CIA LTDA.",15,"HDI Santiago"]
[null,null,null,null,null,null,null,2369,"GUILLERMO ACUNA M. Y CIA. LTDA.-",3,"Antofagasta"]
[null,null,null,null,null,null,null,2443,"JERIA Y CIA. CORREDORES DE SEGUROS LTDA.",2,"Iquique"]
[null,null,null,null,null,null,null,2420,"CORREDORA PROFESIONAL DE SEGUROS LTDA.",4,"Viña del Mar"]
[null,null,null,null,null,null,null,2425,"PRODUCTORA DE SEGUROS PIAMONTE LTDA.",7,"Temuco"]
[null,null,null,null,null,null,null,2430,"SOC. PRODUCTORA DE SEG. DEL SUR LTDA.",5,"Talca"]
[null,null,null,null,null,null,null,2169,"SOC.COM.PROD.DE SEG. VOLCAN LLAIMA LTDA.",7,"Temuco"]
[null,null,null,null,null,null,null,2434,"ASESORES DE SEG. CAYUL Y MARTINEZ LTDA",9,"Puerto Montt"]
[null,null,null,null,null,null,null,4044,"SCHORR SEPULVEDA,CLAUDIO ENRIQUE",5,"Talca"]
[null,null,null,null,null,null,null,3785,"BOOK ITURRIAGA,CIRO CESAR",6,"Concepción"]
[null,null,null,null,null,null,null,4165,"SPOERER O'REILLY,GUSTAVO ARTURO",6,"Concepción"]
[null,null,null,null,null,null,null,4021,"ROJAS CIFUENTES,ANGEL SEGUNDO",5,"Talca"]
[null,null,null,null,null,null,null,4124,"ACEVEDO DEL REAL,PEDRO ROBERTO",6,"Concepción"]
[null,null,null,null,null,null,null,3697,"CERDA BOYD,SERGIO MARIO",31,"HDI Club"]
[null,null,null,null,null,null,null,4085,"MORALES GUEVARA,ROBERTO BENITO",5,"Talca"]
[null,null,null,null,null,null,null,4155,"ZAPATA VALDERRAMA,LAURA",6,"Concepción"]
[null,null,null,null,null,null,null,4113,"BAHAMONDEZ LOPEZ,MARIO JACINTO",6,"Concepción"]
[null,null,null,null,null,null,null,4156,"GELMI SILVA,JAIME ENRIQUE",5,"Talca"]
[null,null,null,null,null,null,null,4121,"VALDERRAMA DEL PINO,RENATO ALBERTO",44,"Los Angeles"]
[null,null,null,null,null,null,null,3528,"REBOLLEDO ARRIAGADA,LUIS ADOLFO",6,"Concepción"]
[null,null,null,null,null,null,null,2358,"MELKONIAN PEREIRA,ALBERTO GASPAR",31,"HDI Club"]
[null,null,null,null,null,null,null,3848,"CERDA CANDIA,LUIS ALBERTO OMAR",6,"Concepción"]
[null,null,null,null,null,null,null,3969,"FUENTES BORQUEZ,EDUARDO ERNESTO",6,"Concepción"]
[null,null,null,null,null,null,null,2174,"PROD. SEGUROS GAETE Y CIA. LTDA.",4,"Viña del Mar"]
[null,null,null,null,null,null,null,2431,"CORREDORA DE SEGUROS A & C  LTDA.",6,"Concepción"]
[null,null,null,null,null,null,null,2206,"MARSH S.A. CORREDORES DE SEGUROS",38,"Corporate"]
[null,null,null,null,null,null,null,2009,"ARAYA Y MIRANDA PRODUCT. DE SEGUROS",31,"HDI Club"]
[null,null,null,null,null,null,null,2059,"PROD. DE SEG. ASOCIADOS LTDA. (PRODESA)",53,"Partners"]
[null,null,null,null,null,null,null,2301,"SOC PRODUCTORA DE SEGUROS OCTAVIO ARRATI",2,"Iquique"]
[null,null,null,null,null,null,null,2450,"SOC. PRODUCT. DE SEGUROS A. CIRAOLO Y CI",1,"Advance"]
[null,null,null,null,null,null,null,2446,"BCI CORREDORES DE SEGUROS S.A.",94,"Banca Seguros"]
[null,null,null,null,null,null,null,2414,"SOC AGRICOLA COMERCIAL Y DE SEGUROS CENT",45,"Osorno"]
[null,null,null,null,null,null,null,2219,"RSG RISK SOL GROUP CHILE CORR DE SEG S.A",38,"Corporate"]
[null,null,null,null,null,null,null,2234,"TAS CORREDORES DE SEGUROS S.A.",1,"Advance"]
[null,null,null,null,null,null,null,4097,"VEGA IMAS,LUIS ALFREDO",5,"Talca"]
[null,null,null,null,null,null,null,3911,"HERNANDEZ BENAVENTE,RICARDO BORIS",6,"Concepción"]
[null,null,null,null,null,null,null,3935,"CARTES OSORIO,HANS CAMILO",6,"Concepción"]
[null,null,null,null,null,null,null,3989,"DEL SOLAR DONOSO,ANITA MARIA",5,"Talca"]
[null,null,null,null,null,null,null,3594,"RODRIGUEZ GUERRERO,SONIA MARGARITA",41,"Rancagua"]
[null,null,null,null,null,null,null,3598,"GOMEZ BRAVO,CARMEN GLORIA",5,"Talca"]
[null,null,null,null,null,null,null,3976,"ROJAS MENDOZA,HECTOR EUGENIO",5,"Talca"]
[null,null,null,null,null,null,null,3642,"ESPINOZA GUTIERREZ,JORGE GABRIEL",5,"Talca"]
[null,null,null,null,null,null,null,3576,"HENNING FIGUEROA,FRANCISCO JAVIER",6,"Concepción"]
[null,null,null,null,null,null,null,3980,"MONTESINO PARRA,MARIA ENRIQUETA",6,"Concepción"]
[null,null,null,null,null,null,null,3981,"NEIRA WACHTENDORFF,JORGE ANTONIO",6,"Concepción"]
[null,null,null,null,null,null,null,2008,"JARA JORQUERA,JORGE ZENON",6,"Concepción"]
[null,null,null,null,null,null,null,2477,"HANNA CORREDORES DE SEGUROS CIA. LTDA.",1,"Advance"]
[null,null,null,null,null,null,null,2333,"LUIS HERNAN POBLETE F. Y ASOCIADOS",15,"HDI Santiago"]
[null,null,null,null,null,null,null,2295,"VERITA CORREDORES DE SEGUROS LTDA",15,"HDI Santiago"]
[null,null,null,null,null,null,null,2374,"PROD. Y CORR.SEG. MARÍA E. LARRAÍN LTDA.",5,"Talca"]
[null,null,null,null,null,null,null,2379,"SOC. MARIA EUGENIA CORREA Y CIA LTDA.",5,"Talca"]
[null,null,null,null,null,null,null,2428,"CSV CORREDORES DE SEGUROS LTDA.",15,"HDI Santiago"]
[null,null,null,null,null,null,null,2435,"ORBITAL JLT CORREDORES DE SEGUROS LTDA.",38,"Corporate"]
[null,null,null,null,null,null,null,2438,"BICE CORREDORES DE SEGUROS LTDA.",94,"Banca Seguros"]
[null,null,null,null,null,null,null,2178,"PRODUCTORA DE SEGUROS ACONCAGUA S.A.",1,"Advance"]
[null,null,null,null,null,null,null,2303,"CARLOS GLEISER LTDA.",15,"HDI Santiago"]
[null,null,null,null,null,null,null,2209,"ETCHEPARE Y HONORATO",53,"Partners"]
[null,null,null,null,null,null,null,2179,"MARIA CARMEN CORDERO Y CIA.",6,"Concepción"]
[null,null,null,null,null,null,null,2144,"LA POLAR CORREDORES DE SEGUROS LTDA.",16,"CM Compara Online"]
[null,null,null,null,null,null,null,2202,"DALY Y CIA. LTDA.",1,"Advance"]
[null,null,null,null,null,null,null,2156,"SOC. PRODUCTORA DE SEGUROS DEL CENTRO LT",5,"Talca"]
[null,null,null,null,null,null,null,2410,"SEGUROS   ZAVELEV LTDA.",31,"HDI Club"]
[null,null,null,null,null,null,null,2344,"GUSTAVO A MONTES Y CIA LIMITADA CORREDOR",1,"Advance"]
[null,null,null,null,null,null,null,2163,"ORTUZAR CORREDORES DE SEGUROS SPA",31,"HDI Club"]
[null,null,null,null,null,null,null,2339,"LUIS GIOVANI BUSTOS CIA. LTDA.",15,"HDI Santiago"]
[null,null,null,null,null,null,null,2216,"PROA-SEGUROS LIMITADA",1,"Advance"]
[null,null,null,null,null,null,null,2196,"SICURTA LTDA.",31,"HDI Club"]
[null,null,null,null,null,null,null,2056,"SERGIO POBLETE CORREDORES DE SEGUROS SPA",1,"Advance"]
[null,null,null,null,null,null,null,2032,"R. GARCIA DE LA HUERTA B. Y CIA LTDA.",53,"Partners"]
[null,null,null,null,null,null,null,2370,"LILIENFELD, CORREDORES DE SEGUROS LTDA.",38,"Corporate"]
[null,null,null,null,null,null,null,2347,"PROD DE SEGUROS MARIO MANTILLA LTD",15,"HDI Santiago"]
[null,null,null,null,null,null,null,2134,"MARIO CERNA Y CIA. LTDA.",6,"Concepción"]
[null,null,null,null,null,null,null,2114,"SOC. PROD. DE SEGUROS VIAL E HIJA LTDA.",41,"Rancagua"]
[null,null,null,null,null,null,null,2047,"PRODUCTORA DE SEGUROS LOHSE Y CIA. LTDA.",31,"HDI Club"]
[null,null,null,null,null,null,null,2351,"VORBEZA CORRED.DE SEGUROS",15,"HDI Santiago"]
[null,null,null,null,null,null,null,2165,"AGENCIAS BRINER CORRED. DE SEGUROS SPA",15,"HDI Santiago"]
[null,null,null,null,null,null,null,2380,"LIDIA NUÑEZ Y CIA. LTDA.",1,"Advance"]
[null,null,null,null,null,null,null,2035,"ASESORA DE SEGUROS HUELEN LTDA.",31,"HDI Club"]
[null,null,null,null,null,null,null,2019,"AON RISK SERVICES (CHILE) COR. SEG. LTD.",38,"Corporate"]
[null,null,null,null,null,null,null,3454,"REINOSO REINOSO,LUIS ARTURO",4,"Viña del Mar"]
[null,null,null,null,null,null,null,3291,"ACUNA CARMONA,JORGE ARTURO",6,"Concepción"]
[null,null,null,null,null,null,null,4037,"GALLEGUILLOS OSORIO,PATRICIA CARMEN",31,"HDI Club"]
[null,null,null,null,null,null,null,2335,"PRODUCTORA DE SEGUROS EULUFI LTDA.",6,"Concepción"]
[null,null,null,null,null,null,null,2119,"KRAMER ALDUNATE LTDA.",1,"Advance"]
[null,null,null,null,null,null,null,2073,"PRODUC. DE SEGUROS LAS CONDES LTDA.",1,"Advance"]
[null,null,null,null,null,null,null,3253,"AVENDAÑO CORDERO,RAMON",15,"HDI Santiago"]
[null,null,null,null,null,null,null,34,"BRAVO URETA,CARMEN GLORIA",53,"Partners"]
[null,null,null,null,null,null,null,2000,"GRANDI Y CIA. LTDA. CORR. DE SEGUROS",15,"HDI Santiago"]
[null,null,null,null,null,null,null,2492,"CIA. PRODUCTORA NACIONAL DE SEGUROS LTDA",80,"HDI Comercial"]
[null,null,null,null,null,null,null,1001,"SUCURSAL IQUIQUE",2,"Iquique"]
[null,null,null,null,null,null,null,1004,"DIRECTO VINA DEL MAR",4,"Viña del Mar"]
[null,null,null,null,null,null,null,1006,"TALCA .,DIRECTO",5,"Talca"]
[null,null,null,null,null,null,null,1007,"DIRECTO 3",6,"Concepción"]
[null,null,null,null,null,null,null,1008,"DIRECTO TEMUCO",7,"Temuco"]
[null,null,null,null,null,null,null,1010,"DIRECTO PUERTO MONTT",9,"Puerto Montt"]
[null,null,null,null,null,null,null,4454,"SCHIFFERLI COLOMA,SUSAN LISBETH",7,"Temuco"]
[null,null,null,null,null,null,null,4457,"MALAGUEÑO PEREZ,FERNANDO JAVIER",7,"Temuco"]
[null,null,null,null,null,null,null,4456,"CANESSA GARCIA,MARIO JORGE",1,"Advance"]
[null,null,null,null,null,null,null,497,"PARRAGUEZ GOMEZ,ISIDORO DE JESUS",5,"Talca"]
[null,null,null,null,null,null,null,7008,"VILLAGRAN NORAMBUENA,ERWIN WILSON",7,"Temuco"]
[null,null,null,null,null,null,null,7011,"CORREA ACEVEDO,ANA MARIA",15,"HDI Santiago"]
[null,null,null,null,null,null,null,1005,"DIRECTO EL BOSQUE",31,"HDI Club"]
[null,null,null,null,null,null,null,1014,"AGENTES DIRECTOS",31,"HDI Club"]
[null,null,null,null,null,null,null,1016,"DIRECTO HDI SANTIAGO",15,"HDI Santiago"]
[null,null,null,null,null,null,null,2086,"SOC. CORREDORA DE SEGUROS TOCONAO LTDA.",31,"HDI Club"]
[null,null,null,null,null,null,null,2098,"PROD.DE SEG.FERRECCIO Y FERRECCIO LT",1,"Advance"]
[null,null,null,null,null,null,null,2300,"JUAN MANUEL PEREZ Y CIA LTDA",41,"Rancagua"]
[null,null,null,null,null,null,null,3752,"ESPINOZA ARROYO,GONZALO OMAR",7,"Temuco"]
[null,null,null,null,null,null,null,4034,"PAREDES ROJAS,GASTON DAMIAN",4,"Viña del Mar"]
[null,null,null,null,null,null,null,4370,"AGURTO CONTRERAS,HECTOR ARNOLDO",6,"Concepción"]
[null,null,null,null,null,null,null,4388,"VINUELA SUAREZ,GUILLERMO SEGUNDO",7,"Temuco"]
[null,null,null,null,null,null,null,3824,"VASQUEZ ROJAS,JUAN ANGEL",4,"Viña del Mar"]
[null,null,null,null,null,null,null,2401,"PROGRESO CORR. DE SEGUROS LTDA.",1,"Advance"]
[null,null,null,null,null,null,null,2079,"FIERRO BUSTOS,HUMBERTO IVOR",7,"Temuco"]
[null,null,null,null,null,null,null,2117,"PRODUCTORA DE SEGUROS CENTINELA LTDA.",7,"Temuco"]
[null,null,null,null,null,null,null,2133,"JUAN ROSAS Y CIA. LTDA.",15,"HDI Santiago"]
[null,null,null,null,null,null,null,2142,"GUERRERO CORTES,SOFIA MARGARITA",4,"Viña del Mar"]
[null,null,null,null,null,null,null,2256,"CORREDORA DE SEG. PRAT LARROULET Y CIA.",6,"Concepción"]
[null,null,null,null,null,null,null,2261,"JORGE ARAYA PROD. DE SEG. LTDA.",31,"HDI Club"]
[null,null,null,null,null,null,null,2264,"CONS Y CORR DE SEG  LA CONCEPCION LTDA.",15,"HDI Santiago"]
[null,null,null,null,null,null,null,2272,"TORO ARREDONDO,MYRIAM PATRICIA",17,"La Serena"]
[null,null,null,null,null,null,null,2018,"OSSA TORRES,GONZALO ENRIQUE",15,"HDI Santiago"]
[null,null,null,null,null,null,null,2099,"BBVA CORREDORA TECNICA DE SEGUROS LTDA.",94,"Banca Seguros"]
[null,null,null,null,null,null,null,2024,"OSSA COVARRUBIAS Y CIA. LTDA.",1,"Advance"]
[null,null,null,null,null,null,null,2043,"CORREDORA DE SEGUROS SECURITY LTDA.",94,"Banca Seguros"]
[null,null,null,null,null,null,null,2055,"SOAZO SOAZO,MARIA SOLEDAD",15,"HDI Santiago"]
[null,null,null,null,null,null,null,2189,"VERGARA SANCHEZ,ALVARO LUIS",31,"HDI Club"]
[null,null,null,null,null,null,null,2229,"PRODUCTORA DE SEGUROS QUISAN LTDA.",4,"Viña del Mar"]
[null,null,null,null,null,null,null,2235,"RODRIGUEZ CASTELLON,JOSE MANUEL",31,"HDI Club"]
[null,null,null,null,null,null,null,2241,"ONATE GARRIDO,CARLOS EDUARDO",6,"Concepción"]
[null,null,null,null,null,null,null,400,"PALMA ROSSEL,HECTOR MANUEL",1,"Advance"]
[null,null,null,null,null,null,null,2242,"SALAS ESCOBAR,JUAN BERNARDO",2,"Iquique"]
[null,null,null,null,null,null,null,2464,"WILLIS TOWERS WATSON S.A CORR.DE SEGUROS",38,"Corporate"]
[null,null,null,null,null,null,null,7014,"RISOPATRON PEREIRA,DANIEL",4,"Viña del Mar"]
[null,null,null,null,null,null,null,2253,"WIENECKE CORREDORES DE SEGUROS LIMITADA",53,"Partners"]
[null,null,null,null,null,null,null,2284,"SALAZAR Y ASOC PROD Y CONSULT DE SEG LTD",4,"Viña del Mar"]
[null,null,null,null,null,null,null,1018,"DIRECTO LA SERENA",17,"La Serena"]
[null,null,null,null,null,null,null,7018,"SUPERVISOR AGENTES, LA SERENA",17,"La Serena"]
[null,null,null,null,null,null,null,2285,"BERNARDITA GSCHWIND Y CIA. LTDA.",44,"Los Angeles"]
[null,null,null,null,null,null,null,2569,"DIAZ CASTILLO,BERNARDA ELENA",3,"Antofagasta"]
[null,null,null,null,null,null,null,3615,"ZAMORA CEBALLOS,BERNARDO SEGUNDO",2,"Iquique"]
[null,null,null,null,null,null,null,2570,"FERNANDO PEÑA Y CIA. LTDA.",4,"Viña del Mar"]
[null,null,null,null,null,null,null,9795,"PAREDES GARCES,ANA MARIA",4,"Viña del Mar"]
[null,null,null,null,null,null,null,2356,"BELAUNDE HERCEG,RAUL CESAR",4,"Viña del Mar"]
[null,null,null,null,null,null,null,2439,"RIVEROS RODRIGUEZ,SERGIO ANTONIO",4,"Viña del Mar"]
[null,null,null,null,null,null,null,2449,"BRICEÑO & ASOCIADOS LTDA.",31,"HDI Club"]
[null,null,null,null,null,null,null,2495,"THB CHILE CORREDORES DE SEGUROS S.A.",38,"Corporate"]
[null,null,null,null,null,null,null,1017,"PRESCRIPTORES",16,"CM Compara Online"]
[null,null,null,null,null,null,null,2501,"LUEJE ARAYA,MARIA CAROLINA",31,"HDI Club"]
[null,null,null,null,null,null,null,2511,"VERA JIMENEZ,MARCELO PATRICIO",6,"Concepción"]
[null,null,null,null,null,null,null,3925,"ANDRADE ROJAS,PATRICIO ROBERTO",15,"HDI Santiago"]
[null,null,null,null,null,null,null,2514,"OSVALDO LARRAIN Y CIA. LTDA.",1,"Advance"]
[null,null,null,null,null,null,null,2529,"PATRICIA ALVAREZ Y  CIA. LTDA.",31,"HDI Club"]
[null,null,null,null,null,null,null,1144,"MUTUAL DE SEGURIDAD CCHC",95,"CM Asociaciones Medicas"]
[null,null,null,null,null,null,null,2072,"BRAVO KIRSINGER,JULIO ANTONIO",15,"HDI Santiago"]
[null,null,null,null,null,null,null,2481,"CORREDORES DE SEGUROS HOGER Y CIA LTDA.",7,"Temuco"]
[null,null,null,null,null,null,null,2556,"BANCHILE CORREDORES DE SEGUROS LIMITADA",94,"Banca Seguros"]
[null,null,null,null,null,null,null,2560,"PROINCE LTDA.",1,"Advance"]
[null,null,null,null,null,null,null,2565,"ECHEVERRIA BRAVO,MARIA VERONICA",15,"HDI Santiago"]
[null,null,null,null,null,null,null,2540,"LARENAS & COMPAÑIA LIMITADA",15,"HDI Santiago"]
[null,null,null,null,null,null,null,17,"PARRAGUEZ GOMEZ,ISIDORO DE JESUS",5,"Talca"]
[null,null,null,null,null,null,null,26,"VILLAGRAN NORAMBUENA,ERWIN WILSON",7,"Temuco"]
[null,null,null,null,null,null,null,2617,"CLAUDE & COMPAÑIA CORREDORES DE SEGUROS",31,"HDI Club"]
[null,null,null,null,null,null,null,2653,"BRITO ARAYA,CARMEN GLORIA",45,"Osorno"]
[null,null,null,null,null,null,null,2656,"RUZ OLMOS,MARISOL DEL CARMEN",41,"Rancagua"]
[null,null,null,null,null,null,null,2660,"MELLADO MORALES,ERIKA JACQUELINE",6,"Concepción"]
[null,null,null,null,null,null,null,9910,"PIZARRO CAMPOS,MANUEL ANGEL",31,"HDI Club"]
[null,null,null,null,null,null,null,2685,"CORREDORES DE SEGUROS SGN LTDA.",5,"Talca"]
[null,null,null,null,null,null,null,2688,"CAMPOS FUENTES,CHRISTIAN PATRICIO E",45,"Osorno"]
[null,null,null,null,null,null,null,2691,"OUTSOURCING INTERNACIONAL CORREDORES DE",15,"HDI Santiago"]
[null,null,null,null,null,null,null,2692,"TABORGA PIZARRO,ZOILA GLADYS",4,"Viña del Mar"]
[null,null,null,null,null,null,null,2693,"CALVO URIBE,JAIME ALFONSO",31,"HDI Club"]
[null,null,null,null,null,null,null,2694,"SCHWARZENBERG JUCHEM,KARIN IRMGARD",31,"HDI Club"]
[null,null,null,null,null,null,null,2698,"BANADOS ALVAREZ,VICTORIA ELISA",31,"HDI Club"]
[null,null,null,null,null,null,null,2675,"ARAYA MIRANDA,BERCAR",31,"HDI Club"]
[null,null,null,null,null,null,null,2573,"RAMIREZ MARTINEZ,ERNESTO JAVIER",31,"HDI Club"]
[null,null,null,null,null,null,null,2594,"COVARRUBIAS CALDERON,ALICIA MIRELLA",4,"Viña del Mar"]
[null,null,null,null,null,null,null,2595,"MICKELSEN BERTETTI,VERONICA ANGELA",7,"Temuco"]
[null,null,null,null,null,null,null,2596,"ABDE JAMIS,JUAN JOSE",4,"Viña del Mar"]
[null,null,null,null,null,null,null,2623,"MONTES CARVALLO,JUAN PABLO",80,"HDI Comercial"]
[null,null,null,null,null,null,null,2628,"SILVA DIAZ,MARIA CONSUELO",15,"HDI Santiago"]
[null,null,null,null,null,null,null,2630,"HUENTEQUEO SAEZ,CARLOS OMAR",7,"Temuco"]
[null,null,null,null,null,null,null,2633,"RECOVER AMERICA LTDA.",15,"HDI Santiago"]
[null,null,null,null,null,null,null,2634,"ITAU CORREDORES DE SEGUROS S.A.",94,"Banca Seguros"]
[null,null,null,null,null,null,null,2639,"ARTHUR J. GALLAGHER COR. DE SEGUROS S.A.",38,"Corporate"]
[null,null,null,null,null,null,null,2641,"UGARTE WOLFES,SUSANA ELENA",31,"HDI Club"]
[null,null,null,null,null,null,null,2645,"PRODUCTORA DE SEGUROS LOS ROBLES Y CIA.",17,"La Serena"]
[null,null,null,null,null,null,null,2850,"CORREDORA DE SEGUROS RIPLEY LTDA.",12,"CM Ripley"]
[null,null,null,null,null,null,null,48,"BRAVO URETA,CARMEN GLORIA",53,"Partners"]
[null,null,null,null,null,null,null,2855,"BERKHOFF HORNIG,JURGEN OLAF",7,"Temuco"]
[null,null,null,null,null,null,null,9393,"DESTEFANI ALARCON,DANIEL SERGIO",31,"HDI Club"]
[null,null,null,null,null,null,null,1023,"SUCURSAL HDI.CL",23,"HDI.CL"]
[null,null,null,null,null,null,null,2704,"ZUÑIGA TORO,ROBERTO",31,"HDI Club"]
[null,null,null,null,null,null,null,2710,"NAVARRO RIVEROS,ORLANDO ENRIQUE",31,"HDI Club"]
[null,null,null,null,null,null,null,2711,"ANTIVILO ROJAS,ELIANA DE LAS MERCED",17,"La Serena"]
[null,null,null,null,null,null,null,2714,"ASES.Y CORRED. DE SEGUROS VALDES Y CIA.",15,"HDI Santiago"]
[null,null,null,null,null,null,null,2719,"BRZOVIC & TELLERIA LTDA.",1,"Advance"]
[null,null,null,null,null,null,null,2727,"JATIP REYES,ELIAS",31,"HDI Club"]
[null,null,null,null,null,null,null,101,"NAVARRO EGAÑA,JUAN JOSE",1,"Advance"]
[null,null,null,null,null,null,null,103,"JOFRE ZUAZOLA,MARCELO",1,"Advance"]
[null,null,null,null,null,null,null,104,"PARRAGUEZ GOMEZ,ISIDORO DE JESUS",5,"Talca"]
[null,null,null,null,null,null,null,109,"PARRAGUEZ GOMEZ,ISIDORO DE JESUS",1,"Advance"]
[null,null,null,null,null,null,null,110,"NAVARRO EGAÑA,JUAN JOSE",1,"Advance"]
[null,null,null,null,null,null,null,2728,"HASCHE Y CIA. CORREDORES DE SEGUROS LTDA",15,"HDI Santiago"]
[null,null,null,null,null,null,null,2731,"BODELON & ASOCIADOS CORREDORES DE SEGURO",4,"Viña del Mar"]
[null,null,null,null,null,null,null,2742,"ALVAREZ ACOSTA,FRUCTUOSO EUGENIO",7,"Temuco"]
[null,null,null,null,null,null,null,2744,"OSCAR ANDRADE CORREDORES DE SEGUROS LIMI",31,"HDI Club"]
[null,null,null,null,null,null,null,2746,"ASESORIAS EMILIO SOTOMAYOR Y ASOC.  LTDA",15,"HDI Santiago"]
[null,null,null,null,null,null,null,2605,"MARIN MORALES,RICARDO",2,"Iquique"]
[null,null,null,null,null,null,null,2609,"MATURANA PODESTA,EVELYN CLAUDIA",4,"Viña del Mar"]
[null,null,null,null,null,null,null,2610,"NEXO CORREDORES DE SEGUROS S.A.",1,"Advance"]
[null,null,null,null,null,null,null,2781,"ALVAREZ SANTIBAÑEZ,ARIEL",17,"La Serena"]
[null,null,null,null,null,null,null,2786,"CORSEG CORREDORES DE SEGUROS LIMITADA",1,"Advance"]
[null,null,null,null,null,null,null,2789,"OYARZUN WEVAR,GLORIA",7,"Temuco"]
[null,null,null,null,null,null,null,2795,"VALDÉS GÓMEZ,BÁRBARA",15,"HDI Santiago"]
[null,null,null,null,null,null,null,7019,"COMPER RIZO,LUIGINA",1,"Advance"]
[null,null,null,null,null,null,null,2801,"ABCDIN CORREDORES DE SEGUROS LTDA.",20,"CM Din"]
[null,null,null,null,null,null,null,2805,"NAVARRO GONZALEZ,CARMEN ANDREA",7,"Temuco"]
[null,null,null,null,null,null,null,3426,"VASQUEZ PALMA,JORGE WILLIAMS",31,"HDI Club"]
[null,null,null,null,null,null,null,2810,"HALPERN GIMENEZ,MIRIAM",80,"HDI Comercial"]
[null,null,null,null,null,null,null,2822,"SERVICIOS FINANCIEROS Y DE SEGUROS S.A.",1,"Advance"]
[null,null,null,null,null,null,null,2825,"SEPULVEDA HERNANDEZ,JUAN FROILAN",7,"Temuco"]
[null,null,null,null,null,null,null,2832,"ZAMPILLO SEPULVEDA,IVONNE",7,"Temuco"]
[null,null,null,null,null,null,null,2843,"CURA SEDA,JUAN CRISTOBAL",6,"Concepción"]
[null,null,null,null,null,null,null,2844,"CONTRERAS MONTALVA,CRISTIAN LUIS",15,"HDI Santiago"]
[null,null,null,null,null,null,null,2845,"LOS MAITENES CORREDORES DE SEGUROS LTDA",15,"HDI Santiago"]
[null,null,null,null,null,null,null,2846,"RUIZ CORTES,AURA CAROLINA",31,"HDI Club"]
[null,null,null,null,null,null,null,2849,"BARRERA MORALES,PATRICIO EDGARDO",7,"Temuco"]
[null,null,null,null,null,null,null,2756,"INNOVA CORREDORES DE SEGUROS LTDA",1,"Advance"]
[null,null,null,null,null,null,null,2758,"GLOBAL RISK CHILE LTDA.",1,"Advance"]
[null,null,null,null,null,null,null,2759,"JERIA BUENO,ROBERTO HERNÁN",2,"Iquique"]
[null,null,null,null,null,null,null,2761,"BARRAZA RIVEROS,BRIGIDA",17,"La Serena"]
[null,null,null,null,null,null,null,2907,"PEÑA ROSALES,SANDRA PATRICIA",7,"Temuco"]
[null,null,null,null,null,null,null,2908,"AZOCAR CASTILLO,JUAN FIDEL",3,"Antofagasta"]
[null,null,null,null,null,null,null,2918,"SALAZAR SCHIFFERLI,RAMON",7,"Temuco"]
[null,null,null,null,null,null,null,2921,"ESPARZA GUERRERO,GLORIA ANGELICA",31,"HDI Club"]
[null,null,null,null,null,null,null,2925,"CORREA ROZAS,ROLANDO RAFAEL",6,"Concepción"]
[null,null,null,null,null,null,null,2927,"GLOBAL CORP CORREDORES DESEGUROS LTDA",6,"Concepción"]
[null,null,null,null,null,null,null,2926,"HERRERA OSSA,MANUEL JESUS",6,"Concepción"]
[null,null,null,null,null,null,null,2928,"DMG CORREDORA SE SEGUROS LTDA",31,"HDI Club"]
[null,null,null,null,null,null,null,2932,"CARO VARGAS,MARCELO ADRIAN",7,"Temuco"]
[null,null,null,null,null,null,null,2933,"ACEVEDO JARA,ELIZABETH ERNA",6,"Concepción"]
[null,null,null,null,null,null,null,2936,"JAVIER MAXIMILIANO FIGUEROA GONZALEZ",15,"HDI Santiago"]
[null,null,null,null,null,null,null,2943,"ROZAS SAENZ,MARIA PAZ",31,"HDI Club"]
[null,null,null,null,null,null,null,2945,"LE ROY APARICIO,CARLOS JORGE",6,"Concepción"]
[null,null,null,null,null,null,null,3044,"ROTHKEGEL SANHUEZA,JUAN CARLOS",6,"Concepción"]
[null,null,null,null,null,null,null,3058,"VICUÑA Y ASOCIADOS S.A.",1,"Advance"]
[null,null,null,null,null,null,null,2990,"OLAVARRIA LOPEZ,JAIME SERGIO",31,"HDI Club"]
[null,null,null,null,null,null,null,2991,"PINTO ECHEVERRIA,KENNETH HUMBERTO",4,"Viña del Mar"]
[null,null,null,null,null,null,null,2994,"CELEDON MANCILLA,JAIME EDUARDO",15,"HDI Santiago"]
[null,null,null,null,null,null,null,2996,"SEGUROS SANTA MARIA DE LOS ANGELES LTDA",2,"Iquique"]
[null,null,null,null,null,null,null,3002,"MORALES GALLEGOS,ARTURO NICOLAS",2,"Iquique"]
[null,null,null,null,null,null,null,3005,"GERALDO TORRICO,SERGIO ANTONIO",4,"Viña del Mar"]
[null,null,null,null,null,null,null,3009,"YACSICH Y CIA LTDA. MARCOS",9,"Puerto Montt"]
[null,null,null,null,null,null,null,3011,"TORRES LEYTON,PABLO DANIEL",6,"Concepción"]
[null,null,null,null,null,null,null,2861,"ROJAS JELVEZ,SONIA LUISA",15,"HDI Santiago"]
[null,null,null,null,null,null,null,2865,"ASESORIAS Y CORRETAJES DE SEGUROS LIMITA",1,"Advance"]
[null,null,null,null,null,null,null,2867,"RAMIREZ POBLETE,GUSTAVO",7,"Temuco"]
[null,null,null,null,null,null,null,511,"ROLDAN ESPINOZA,CARLOS ENRIQUE",1,"Advance"]
[null,null,null,null,null,null,null,512,"GAGO MUNOZ,DANIEL PABLO",1,"Advance"]
[null,null,null,null,null,null,null,2869,"ALIANZA CORREDORES DE SEGUROS LTDA.",1,"Advance"]
[null,null,null,null,null,null,null,51,"QUIROZ LARREA,ARACELI ERNESTINA",1,"Advance"]
[null,null,null,null,null,null,null,2871,"HARTMANN ROJAS,RODOLFO WILHELM",3,"Antofagasta"]
[null,null,null,null,null,null,null,2873,"AVS CONSUL. E INTERMED.DE SEG. LTDA",15,"HDI Santiago"]
[null,null,null,null,null,null,null,2876,"LIDER CORR DE SEG Y GEST FINANCIERA LTDA",28,"CM Presto"]
[null,null,null,null,null,null,null,2879,"GUTIERREZ DIAZ,EDUARDO ENRIQUE",31,"HDI Club"]
[null,null,null,null,null,null,null,2886,"LAU ESPARZA,GILBERTO RICARDO",3,"Antofagasta"]
[null,null,null,null,null,null,null,2949,"ROZAS LOPEZ,SILVANA DEL CARMEN",9,"Puerto Montt"]
[null,null,null,null,null,null,null,2953,"CARO HENRÍQUEZ,NANCY CLAUDIA",17,"La Serena"]
[null,null,null,null,null,null,null,2955,"SEGUMONT CORREDORES DE SEGUROS LTDA.",4,"Viña del Mar"]
[null,null,null,null,null,null,null,2964,"TRUAN LAFFONT,MARIETTA JACQUELINE",7,"Temuco"]
[null,null,null,null,null,null,null,2962,"PRAGMA CORREDORES DE SEGUROS LTDA.",15,"HDI Santiago"]
[null,null,null,null,null,null,null,60,"CORTES MOLINA,VIVIANA ALEJANDRA",3,"Antofagasta"]
[null,null,null,null,null,null,null,2969,"FRANCISCO RODRIGUEZ PRODUCT.DE SEG. LTDA",6,"Concepción"]
[null,null,null,null,null,null,null,2973,"ERLANDSEN PORTER,MARIA SOLEDAD",31,"HDI Club"]
[null,null,null,null,null,null,null,2976,"BORJA GONZALEZ,GONZALO ARTURO",6,"Concepción"]
[null,null,null,null,null,null,null,2977,"CASAGRANDE CORREDORES DE SEGUROS LTDA.",15,"HDI Santiago"]
[null,null,null,null,null,null,null,2978,"CONO SUR CORREDORES DE SEGUROS LTDA",38,"Corporate"]
[null,null,null,null,null,null,null,2980,"BROWN ESPINOSA,CARLOS RUBEN",31,"HDI Club"]
[null,null,null,null,null,null,null,2982,"TORNERIA MARTINEZ,LORENA MYRIAM",4,"Viña del Mar"]
[null,null,null,null,null,null,null,2983,"FREDES ECHEVERRIA,MARIO HUGO",41,"Rancagua"]
[null,null,null,null,null,null,null,2986,"FUENZALIDA LIZANA,RAUL",31,"HDI Club"]
[null,null,null,null,null,null,null,2988,"BORDACHAR SOTOMAYOR,ELIZABETH FRANCE",5,"Talca"]
[null,null,null,null,null,null,null,3022,"SAGUEZ VEGA,FRANCISCO JAVIER",17,"La Serena"]
[null,null,null,null,null,null,null,3027,"MORA MARTINEZ,PATRICIO",15,"HDI Santiago"]
[null,null,null,null,null,null,null,522,"DIAZ OLIVARES,SARA LASTENIA",15,"HDI Santiago"]
[null,null,null,null,null,null,null,68,"SANDOVAL MENDEZ,ROXANA ANDREA",23,"HDI.CL"]
[null,null,null,null,null,null,null,69,"SANDOVAL MENDEZ,ROXANA ANDREA",23,"HDI.CL"]
[null,null,null,null,null,null,null,4606,"PIZARRO OLMEDO,ISAÍAS RAMIRO",1,"Advance"]
[null,null,null,null,null,null,null,3328,"SALGADO SANCHEZ,DANIEL GUILLERMO",45,"Osorno"]
[null,null,null,null,null,null,null,532,"ESPINOSA FUENTES,MARIA BEATRIZ",6,"Concepción"]
[null,null,null,null,null,null,null,4610,"TAPIA BRICENO,SANDRA PAOLA",4,"Viña del Mar"]
[null,null,null,null,null,null,null,4611,"SOTO MAUREIRA,JULY ANDREA",4,"Viña del Mar"]
[null,null,null,null,null,null,null,4613,"MARIN VACCAREZZA,GUSTAVO ANTONIO",4,"Viña del Mar"]
[null,null,null,null,null,null,null,3377,"CORR. DE SEG.Y ASES.JUAN A. VALDES EIRL",15,"HDI Santiago"]
[null,null,null,null,null,null,null,3067,"ANDRADE MESSINA,ZOILA",3,"Antofagasta"]
[null,null,null,null,null,null,null,3074,"ACEVEDO Y ONETTO CORRED DE SEGUROS LTDA",1,"Advance"]
[null,null,null,null,null,null,null,525,"VERGARA HOYOS,ISABEL CAROLINA",3,"Antofagasta"]
[null,null,null,null,null,null,null,8223,"BRAVO ROJAS,ISABEL LORENA",31,"HDI Club"]
[null,null,null,null,null,null,null,3077,"GARCIA JAUREGUI,LUIS ENRIQUE",4,"Viña del Mar"]
[null,null,null,null,null,null,null,3079,"SAN MARTIN REBOLLEDO,HECTOR ALEXIS",6,"Concepción"]
[null,null,null,null,null,null,null,111,"VEAS BRAVO,GABRIELLA VERONICA",2,"Iquique"]
[null,null,null,null,null,null,null,3091,"RIOSECO VALENZUELA,MARCELA ALEJANDRA",31,"HDI Club"]
[null,null,null,null,null,null,null,54,"ROXANA ANDREA SANDOVAL MENDEZ",23,"HDI.CL"]
[null,null,null,null,null,null,null,3098,"IM&A CORREDORES DE SEGUROS LIMITADA",7,"Temuco"]
[null,null,null,null,null,null,null,3101,"RAMIREZ GONZALEZ,XIMENA JANINE",3,"Antofagasta"]
[null,null,null,null,null,null,null,3104,"PAZ FLORES VILCHES,MARIA",4,"Viña del Mar"]
[null,null,null,null,null,null,null,61,"AGUIRRE STEPHENS,CRISTIAN ALFONSO",17,"La Serena"]
[null,null,null,null,null,null,null,62,"AGUIRRE STEPHENS,CRISTIAN ALFONSO",17,"La Serena"]
[null,null,null,null,null,null,null,3106,"ESPINOZA CUETO,MARCELA MONICA",4,"Viña del Mar"]
[null,null,null,null,null,null,null,3108,"PIZARRO ACEITUNO,JUAN CARLOS",2,"Iquique"]
[null,null,null,null,null,null,null,3118,"GOMEZ SANTANA,GUSTAVO ALEXIS",4,"Viña del Mar"]
[null,null,null,null,null,null,null,3124,"SEGUEL TOLEDO,DIVA",15,"HDI Santiago"]
[null,null,null,null,null,null,null,3135,"MALDONADO CLAVERO,VICTOR MANUEL",15,"HDI Santiago"]
[null,null,null,null,null,null,null,1032,"SUCURSAL DIJON",32,"CM Dijon"]
[null,null,null,null,null,null,null,3142,"UNIONSEGUROS CORREDORES LTDA.",15,"HDI Santiago"]
[null,null,null,null,null,null,null,3146,"CARDENAS THIMEOS,SIXTO ROBERTO",7,"Temuco"]
[null,null,null,null,null,null,null,3147,"EDWARDS Y CIA. CORREDORES DE SEGUROS SPA",53,"Partners"]
[null,null,null,null,null,null,null,3149,"GONZALEZ HERNANDEZ,SIOMARA KARINA",4,"Viña del Mar"]
[null,null,null,null,null,null,null,65,"GUERRERO LEVANCINI,FRANCISCO",1,"Advance"]
[null,null,null,null,null,null,null,7012,"GUERRERO LEVANCINI,FRANCISCO",1,"Advance"]
[null,null,null,null,null,null,null,3159,"DECRYSTAL CORREDORES DE SEG. E INV. LTDA",15,"HDI Santiago"]
[null,null,null,null,null,null,null,66,"AGUIRRE STEPHENS,CRISTIAN ALFONSO",17,"La Serena"]
[null,null,null,null,null,null,null,528,"ARANCIBIA LAMAS,CARLOS JAVIER",17,"La Serena"]
[null,null,null,null,null,null,null,3166,"RIVAS SALAS,XIMENA ELIZABETH",4,"Viña del Mar"]
[null,null,null,null,null,null,null,3171,"VARGAS GODOY,ALEXIS PATRICIO",2,"Iquique"]
[null,null,null,null,null,null,null,2899,"GARCIA MORDOJOVICH,DAVID AURELIO",15,"HDI Santiago"]
[null,null,null,null,null,null,null,2900,"CONSULT Y CORRED DE SEG DEL NORTE LTDA",2,"Iquique"]
[null,null,null,null,null,null,null,3172,"CORDOBA ESPINOZA,DARDANE DEL CARMEN",7,"Temuco"]
[null,null,null,null,null,null,null,3193,"ZEBALLOS MARIN,BERNARDO ELIAS",3,"Antofagasta"]
[null,null,null,null,null,null,null,3214,"BANINTER CORREDORES DE SEGUROS LTDA.",94,"Banca Seguros"]
[null,null,null,null,null,null,null,3225,"GAJARDO BANEGAS,PATRICIA ELIANA",7,"Temuco"]
[null,null,null,null,null,null,null,3244,"ERRAZURIZ & CIA. CORRED. DE SEGUROS SPA.",53,"Partners"]
[null,null,null,null,null,null,null,3247,"MUNOZ FUENTES,JAIME ANTONIO",31,"HDI Club"]
[null,null,null,null,null,null,null,3249,"ANGEL ROMERO BARRA,DANIEL",15,"HDI Santiago"]
[null,null,null,null,null,null,null,3250,"RIQUELME VALDES,ERIC FERNANDO",4,"Viña del Mar"]
[null,null,null,null,null,null,null,3256,"CORREDORA DE SEGUROS LA CAMARA LTDA.",38,"Corporate"]
[null,null,null,null,null,null,null,3200,"OLIVARES VALENZUELA,PAMELA TRINIDAD",15,"HDI Santiago"]
[null,null,null,null,null,null,null,530,"SILVA FUENZALIDA,MARGARITA ISABEL",1,"Advance"]
[null,null,null,null,null,null,null,3262,"ARANCIBIA PONCE,CESAR SEGUNDO",4,"Viña del Mar"]
[null,null,null,null,null,null,null,3265,"JIMENEZ CARRASCO,IRMA LORETO",44,"Los Angeles"]
[null,null,null,null,null,null,null,3266,"A & A MAS LTDA.",17,"La Serena"]
[null,null,null,null,null,null,null,4602,"MIQUELES FIGUEROA,ELSA",1,"Advance"]
[null,null,null,null,null,null,null,4603,"CARRASCO GUTIERREZ,LILIAN CAROLINA",1,"Advance"]
[null,null,null,null,null,null,null,3292,"ARANCIBIA AROSTICA,VILMA DE LAS MERCEDE",15,"HDI Santiago"]
[null,null,null,null,null,null,null,4605,"PARRAGUEZ GOMEZ,ISIDORO DE JESUS",1,"Advance"]
[null,null,null,null,null,null,null,3312,"CONTRERAS CUEVAS,ELSA MARGARITA",4,"Viña del Mar"]
[null,null,null,null,null,null,null,3195,"RIFSA CORREDORES DE SEGUROS LTDA.",15,"HDI Santiago"]
[null,null,null,null,null,null,null,3202,"ALTUM CORREDORES DE SEGUROS LTDA.",1,"Advance"]
[null,null,null,null,null,null,null,3203,"JUAN MADRID F. CORRED. DE SEGUROS EIRL",2,"Iquique"]
[null,null,null,null,null,null,null,67,"COMPER RIZO,LUIGINA",3,"Antofagasta"]
[null,null,null,null,null,null,null,1019,"SUCURSAL CONTENEDORES",19,"Contenedores"]
[null,null,null,null,null,null,null,4608,"ENCRENAZ MESTRE,FRANCISCO",1,"Advance"]
[null,null,null,null,null,null,null,4609,"SCHWARZENBERG CASTRO,ALEX CHRISTIAN",1,"Advance"]
[null,null,null,null,null,null,null,3367,"VILLAR MESIAS,RAUL EUGENIO",31,"HDI Club"]
[null,null,null,null,null,null,null,4614,"PENA CARTES,CAROLINA",4,"Viña del Mar"]
[null,null,null,null,null,null,null,3198,"BUNSTER SILVA,IVONNE DEL CARMEN",15,"HDI Santiago"]
[null,null,null,null,null,null,null,3261,"MIGUEL ANGEL NUÑEZ A. Y COMPAÑIA LTDA.",15,"HDI Santiago"]
[null,null,null,null,null,null,null,3278,"ENCALADA PARRAGUEZ,CARLOS EDUARDO",4,"Viña del Mar"]
[null,null,null,null,null,null,null,1033,"SUCURSAL CHILQUINTA",33,"CM Chilquinta"]
[null,null,null,null,null,null,null,3281,"MONTE ANDINO CORREDORES DE SEGUROS.-",15,"HDI Santiago"]
[null,null,null,null,null,null,null,3282,"GAJARDO CORDERO,LUCILA DEL CARMEN",41,"Rancagua"]
[null,null,null,null,null,null,null,3173,"RKC RISK CONSULTING CORR. DE SEGUROS S.A",1,"Advance"]
[null,null,null,null,null,null,null,3175,"ARIAS BAEZA,OMAR ANTONIO",3,"Antofagasta"]
[null,null,null,null,null,null,null,3188,"CERDA MUÑOZ,LEONARDO",2,"Iquique"]
[null,null,null,null,null,null,null,3191,"DE FERARI FUENZALIDA,MARIA CRISTINA",4,"Viña del Mar"]
[null,null,null,null,null,null,null,3206,"MASIVA CORREDORES DE SEGUROS LTDA.",15,"HDI Santiago"]
[null,null,null,null,null,null,null,3208,"MARTINEZ CONDE DUPRAT,CAROLINA DEL PILAR",4,"Viña del Mar"]
[null,null,null,null,null,null,null,4615,"VEAS BRAVO,GABRIELLA VERONICA",2,"Iquique"]
[null,null,null,null,null,null,null,4616,"COMPER RIZO,LUIGINA",3,"Antofagasta"]
[null,null,null,null,null,null,null,4617,"AGUIRRE STEPHENS,CRISTIAN ALFONSO",17,"La Serena"]
[null,null,null,null,null,null,null,4620,"MEIER SALAMANCA,JEANNIE VIVIAN",7,"Temuco"]
[null,null,null,null,null,null,null,3459,"FONSECA DONARI,RODRIGO EDUARDO",15,"HDI Santiago"]
[null,null,null,null,null,null,null,4623,"PALMA AGUAYO,CLAUDIA ANDREA",6,"Concepción"]
[null,null,null,null,null,null,null,4624,"DELGADO ZAMBRANO,LORENA CAROLINA",6,"Concepción"]
[null,null,null,null,null,null,null,534,"PINTO CONTRERAS,BLANCA ELIZABETH",6,"Concepción"]
[null,null,null,null,null,null,null,3427,"BATALLE GALGANI,CARLOS ERNESTO",15,"HDI Santiago"]
[null,null,null,null,null,null,null,3457,"ALVARADO MUÑOZ,NELSON",31,"HDI Club"]
[null,null,null,null,null,null,null,5010,"RAFAEL BUZETA CORRED. DE SEG.Y CIA.LTDA.",15,"HDI Santiago"]
[null,null,null,null,null,null,null,5008,"CONTARDO MANDIOLA,MIDIAM ELDA",80,"HDI Comercial"]
[null,null,null,null,null,null,null,5009,"DAROCH SALAH,ISABEL MARGARITA",31,"HDI Club"]
[null,null,null,null,null,null,null,3471,"RIUS PEZOA,FRIDA BRUNA",31,"HDI Club"]
[null,null,null,null,null,null,null,4625,"TREJO ALVAREZ,NELIDA",15,"HDI Santiago"]
[null,null,null,null,null,null,null,3400,"S0C.CORR.VIRGILIO VERGOTTINI E HIJOS LTD",17,"La Serena"]
[null,null,null,null,null,null,null,3418,"VALDES MADARIAGA,FELIPE ANDRES",15,"HDI Santiago"]
[null,null,null,null,null,null,null,4618,"SANDOVAL MENDEZ,ROXANA ANDREA",23,"HDI.CL"]
[null,null,null,null,null,null,null,3438,"FUENTES Y CIA LTDA",15,"HDI Santiago"]
[null,null,null,null,null,null,null,4621,"VILLAGRAN NORAMBUENA,ERWIN WILSON",7,"Temuco"]
[null,null,null,null,null,null,null,4622,"PARRA ARRIAGADA,JESSICA",6,"Concepción"]
[null,null,null,null,null,null,null,5007,"MCA / CHILE CORREDORES DE SEGUROS LIMITA",1,"Advance"]
[null,null,null,null,null,null,null,71,"PARRA ARRIAGADA,JESSICA",6,"Concepción"]
[null,null,null,null,null,null,null,7013,"PARRA ARRIAGADA,JESSICA",6,"Concepción"]
[null,null,null,null,null,null,null,3407,"INS GLOBAL CORREDORES DE SEGUROS LTDA.",15,"HDI Santiago"]
[null,null,null,null,null,null,null,3380,"CARLOS MARTINEZ CORR. DE SEGUROS E.I.R.L",44,"Los Angeles"]
[null,null,null,null,null,null,null,3442,"DE AMBROGIO NUMI,VITTORIO ESTEBAN",31,"HDI Club"]
[null,null,null,null,null,null,null,3389,"LOS VOLCANES CORREDORES DE SEGUROS LTDA",7,"Temuco"]
[null,null,null,null,null,null,null,5013,"SOC.PRODUCTORES DE SEGUROS NOVICIADO SPA",1,"Advance"]
[null,null,null,null,null,null,null,5020,"PRS CORRED. DE SEGUROS Y CONSULTORES",1,"Advance"]
[null,null,null,null,null,null,null,5023,"RAMIREZ GAMBOA,JOSE EDUARDO",15,"HDI Santiago"]
[null,null,null,null,null,null,null,5034,"VALDERRAMA TAPIA,PATRICIA MARGARITA",31,"HDI Club"]
[null,null,null,null,null,null,null,5046,"SOC. COMERCIAL SIGRA INTERNATIONAL LTDA.",1,"Advance"]
[null,null,null,null,null,null,null,5053,"SOTO ROJAS,LUIS HUMBERTO",15,"HDI Santiago"]
[null,null,null,null,null,null,null,5060,"R.J. CORREDORES DE SEGUROS LIMITADA",15,"HDI Santiago"]
[null,null,null,null,null,null,null,5066,"MARCO ABARZUA Y CIA. CORR. DE SEG. LTDA.",7,"Temuco"]
[null,null,null,null,null,null,null,5070,"VILLENA SALGADO,ZAIRA",6,"Concepción"]
[null,null,null,null,null,null,null,5076,"MESOS CORREDORA DE SEGUROS LTDA.",78,"Casa Matriz Santiago Dealer"]
[null,null,null,null,null,null,null,5094,"VILLEGAS QUIDEAU,PATRICIA MARIA JOSE",4,"Viña del Mar"]
[null,null,null,null,null,null,null,536,"VARELA CALLASAYA,EDITH PATRICIA",2,"Iquique"]
[null,null,null,null,null,null,null,5110,"MUNITA Y BAUERLE CORRED. DE SEGUROS LTDA",4,"Viña del Mar"]
[null,null,null,null,null,null,null,76,"LEYVA PEREZ,MIGDALIA",1,"Advance"]
[null,null,null,null,null,null,null,5014,"SEGUROS ALCAZAR LTDA.",15,"HDI Santiago"]
[null,null,null,null,null,null,null,5026,"AQUEVEQUE Y CIA. LTDA.",15,"HDI Santiago"]
[null,null,null,null,null,null,null,5036,"NOGUERA Y VERGARA  LTDA.",53,"Partners"]
[null,null,null,null,null,null,null,5037,"FUENTES DONOSO,JUAN CARLOS",15,"HDI Santiago"]
[null,null,null,null,null,null,null,5044,"VICTOR SEÑORET Y CIA. CORR. DE SEG. LTDA",1,"Advance"]
[null,null,null,null,null,null,null,5059,"BIZAMA CABALA,ANA CAROLINA",6,"Concepción"]
[null,null,null,null,null,null,null,5071,"BORQUEZ MILLER,PEDRO HERNAN",9,"Puerto Montt"]
[null,null,null,null,null,null,null,5072,"ALEJANDRA LYON Y COMPAÑIA LIMITADA",15,"HDI Santiago"]
[null,null,null,null,null,null,null,4627,"ALDUNATE BOSSAY,PATRICIO ALEX",1,"Advance"]
[null,null,null,null,null,null,null,5089,"JOSE A. LARRAIN VILLAMIL Y CIA. LTDA.",15,"HDI Santiago"]
[null,null,null,null,null,null,null,5103,"CORREDORES DE SEGUROS ABM LTDA.",9,"Puerto Montt"]
[null,null,null,null,null,null,null,5104,"ROTHMANN TORO,RICARDO",31,"HDI Club"]
[null,null,null,null,null,null,null,74,"GILLIBRAND OLEA,JANE GRACE",36,"Cartera Internacional"]
[null,null,null,null,null,null,null,5111,"CORRED.DE SEG. LARRAIN QUIROZ Y CIA.LTDA",15,"HDI Santiago"]
[null,null,null,null,null,null,null,4631,"ROJAS ENCINA,SOPHIA",1,"Advance"]
[null,null,null,null,null,null,null,4632,"SANHUEZA RIQUELME,CARLA SOLANGE",6,"Concepción"]
[null,null,null,null,null,null,null,5125,"VILLARROEL NUÑEZ,MARIA ANGELICA",2,"Iquique"]
[null,null,null,null,null,null,null,5126,"VARGAS OTAROLA,MARIA",7,"Temuco"]
[null,null,null,null,null,null,null,5130,"SEG. BROKER CORRED. DE SEG. SOC. ANONIMA",1,"Advance"]
[null,null,null,null,null,null,null,5052,"SOLER ANDAUR,FRANCISCO",31,"HDI Club"]
[null,null,null,null,null,null,null,5057,"IRAGUEN SANTELICES,FRANCISCO JAVIER",15,"HDI Santiago"]
[null,null,null,null,null,null,null,5058,"MORAIMA LOPEZ RAMOS CORREDORA DE SEGUROS",7,"Temuco"]
[null,null,null,null,null,null,null,5063,"ROA BARRA,SERGIO MARIO",7,"Temuco"]
[null,null,null,null,null,null,null,5083,"CORREDORA DE SEG. YUDELEVICH Y CIA. LTDA",15,"HDI Santiago"]
[null,null,null,null,null,null,null,73,"RISOPATRON PEREIRA,DANIEL",4,"Viña del Mar"]
[null,null,null,null,null,null,null,5097,"GONZALEZ URREA,MARIANELA ALICIA",6,"Concepción"]
[null,null,null,null,null,null,null,5131,"STRANGER & LEWIN CORREDORES DE SEG. LTDA",53,"Partners"]
[null,null,null,null,null,null,null,539,"GONZALEZ SANHUEZA,ELIANIRA",7,"Temuco"]
[null,null,null,null,null,null,null,5137,"ZUÑIGA LOPEZ,ALEJANDRA DE LAS MER",31,"HDI Club"]
[null,null,null,null,null,null,null,5144,"AVANZA TRUST CORREDORES DE SEGUROS LIMIT",80,"HDI Comercial"]
[null,null,null,null,null,null,null,5011,"ASESORÍA Y PRODUC. DE SEGUROS G.P.Q. LTD",15,"HDI Santiago"]
[null,null,null,null,null,null,null,5025,"FERNANDEZ & SANTANDER CORR. DE SEG. LTDA",4,"Viña del Mar"]
[null,null,null,null,null,null,null,5039,"ALDEA MOSCOSO,MARIA VERONICA",41,"Rancagua"]
[null,null,null,null,null,null,null,5042,"MALVAREZ BARCA,JOSE ANTONIO",15,"HDI Santiago"]
[null,null,null,null,null,null,null,5045,"SEBASTIAN LYON Y CIA. LTDA.",15,"HDI Santiago"]
[null,null,null,null,null,null,null,4626,"ALDUNATE BOSSAY,PATRICIO ALEX",1,"Advance"]
[null,null,null,null,null,null,null,1036,"SUCURSAL CARTERA INTERNACIONAL",36,"Cartera Internacional"]
[null,null,null,null,null,null,null,5112,"AMENABAR ZEGERS,FRANCISCO JAVIER",15,"HDI Santiago"]
[null,null,null,null,null,null,null,5114,"FELIPE PAUL Y CIA. LTDA.",1,"Advance"]
[null,null,null,null,null,null,null,5116,"FMS CORREDORES DE SEGUROS LIMITADA",31,"HDI Club"]
[null,null,null,null,null,null,null,5127,"VIVA CORREDORES DE SEGUROS LIMITADA",17,"La Serena"]
[null,null,null,null,null,null,null,7005,"CARRASCO GUTIERREZ,LILIAN CAROLINA",1,"Advance"]
[null,null,null,null,null,null,null,78,"MIQUELES FIGUEROA,ELSA",1,"Advance"]
[null,null,null,null,null,null,null,5061,"VOLVEK CORREDORES DE SEGUROS S.A.",1,"Advance"]
[null,null,null,null,null,null,null,5081,"TORRES Y FERNANDEZ LIMITADA",15,"HDI Santiago"]
[null,null,null,null,null,null,null,5084,"CABA BAEZ,LUIS HUMBERTO",7,"Temuco"]
[null,null,null,null,null,null,null,5085,"CHAVEZ ALVARADO,JUAN CARLOS",9,"Puerto Montt"]
[null,null,null,null,null,null,null,4628,"VARGAS JARAMILLO,YASNA MARIOLA",1,"Advance"]
[null,null,null,null,null,null,null,4629,"LARENAS FUENTES,CLAUDIA",1,"Advance"]
[null,null,null,null,null,null,null,5105,"CHAVEZ SOTO,JUAN CARLOS",7,"Temuco"]
[null,null,null,null,null,null,null,537,"HERMOSILLA FLORES,CAMILA ANDREA",7,"Temuco"]
[null,null,null,null,null,null,null,5122,"TANNER CORREDORA DE SEGUROS LIMITADA",15,"HDI Santiago"]
[null,null,null,null,null,null,null,4633,"HERRERA URIBE,ROSA ESTER",1,"Advance"]
[null,null,null,null,null,null,null,7015,"MIQUELES FIGUEROA,ELSA",1,"Advance"]
[null,null,null,null,null,null,null,79,"PARADA VILLARROEL,JESSICA ALEJANDRA",19,"Contenedores"]
[null,null,null,null,null,null,null,5139,"LABBE CARRASCO,MARGARITA MARIA",15,"HDI Santiago"]
[null,null,null,null,null,null,null,5147,"MIRANDA LEIVA,VERONICA ISABEL",7,"Temuco"]
[null,null,null,null,null,null,null,5154,"DIAZ POBLETE,MARIO ISIDORO",3,"Antofagasta"]
[null,null,null,null,null,null,null,5158,"ALEMPARTE Y CIA CORRED. DE SEGUROS LTDA",1,"Advance"]
[null,null,null,null,null,null,null,5159,"EL CONDOR CORRED. DE SEGUROS LIMITADA",15,"HDI Santiago"]
[null,null,null,null,null,null,null,5160,"HENRRY MUÑOZ,RUTH  MARY",31,"HDI Club"]
[null,null,null,null,null,null,null,5161,"DISTRITO CORREDORES DE SEGUROS LTDA.",41,"Rancagua"]
[null,null,null,null,null,null,null,5172,"CORRED. DE SEGUROS Y ASES.RONDANELLI SPA",15,"HDI Santiago"]
[null,null,null,null,null,null,null,5173,"ZEPEDA AGUIRRE,CLAUDIA PATRICIA",2,"Iquique"]
[null,null,null,null,null,null,null,540,"OCARANZA GONZALEZ,CARMEN ALEJANDRA",2,"Iquique"]
[null,null,null,null,null,null,null,5175,"ZARATE PIZARRO,FRANCISCO ENRIQUE",4,"Viña del Mar"]
[null,null,null,null,null,null,null,5177,"VACCARO Y CIA.CORREDORES DE SEGUROS LTDA",1,"Advance"]
[null,null,null,null,null,null,null,1038,"GRANDES CUENTAS",38,"Corporate"]
[null,null,null,null,null,null,null,602,"REYES ROJAS,PAMELA ALEJANDRA",15,"HDI Santiago"]
[null,null,null,null,null,null,null,83,"REYES ROJAS,PAMELA ALEJANDRA",15,"HDI Santiago"]
[null,null,null,null,null,null,null,5162,"ANJEL VILLALOBOS,CLAUDIA",17,"La Serena"]
[null,null,null,null,null,null,null,81,"PIZARRO CIFUENTES,PILAR LORENA",3,"Antofagasta"]
[null,null,null,null,null,null,null,7020,"PIZARRO CIFUENTES,PILAR LORENA",3,"Antofagasta"]
[null,null,null,null,null,null,null,82,"PIZARRO CIFUENTES,PILAR LORENA",3,"Antofagasta"]
[null,null,null,null,null,null,null,4635,"PIZARRO CIFUENTES,PILAR LORENA",3,"Antofagasta"]
[null,null,null,null,null,null,null,5195,"ONE CORREDORES DE SEGUROS LTDA.",15,"HDI Santiago"]
[null,null,null,null,null,null,null,4637,"REYES ROJAS,PAMELA ALEJANDRA",15,"HDI Santiago"]
[null,null,null,null,null,null,null,5202,"CARLOS RAMIREZ C Y CORRED.SEG. ASOC.LTDA",15,"HDI Santiago"]
[null,null,null,null,null,null,null,5209,"LAFUENTE DONOSO,JANET DEL CARMEN",80,"HDI Comercial"]
[null,null,null,null,null,null,null,5213,"PINTO GALDAMES,AIDA CRISTINA",3,"Antofagasta"]
[null,null,null,null,null,null,null,5217,"HOWDEN-PATAGONIA CORREDORES DE SEGUROS S",15,"HDI Santiago"]
[null,null,null,null,null,null,null,5229,"ARCAYA RONDON,JORGE CHRISTIAN",80,"HDI Comercial"]
[null,null,null,null,null,null,null,5176,"PUELMA ACCORSI,JAIME FERNANDO",31,"HDI Club"]
[null,null,null,null,null,null,null,5183,"FT CORREDORES DE SEGUROS SPA",53,"Partners"]
[null,null,null,null,null,null,null,5224,"NAVARRETE LAGOS,CARLOS ARMANDO",31,"HDI Club"]
[null,null,null,null,null,null,null,5235,"LATORRE Y CIA. CORRED. DE SEGUROS LTDA.",6,"Concepción"]
[null,null,null,null,null,null,null,5237,"FIST CORREDORES DE SEGUROS SPA.",4,"Viña del Mar"]
[null,null,null,null,null,null,null,5238,"OSSANDON HECKERSDORF,TATIANA ALEJANDRA",17,"La Serena"]
[null,null,null,null,null,null,null,5245,"WENZEL GARCIA,SILVIA",9,"Puerto Montt"]
[null,null,null,null,null,null,null,4641,"LIRA .,CRISTOBAL",1,"Advance"]
[null,null,null,null,null,null,null,5252,"CORREDORES DE SEGUROS CRUZ Y CIA. LTDA.",31,"HDI Club"]
[null,null,null,null,null,null,null,5253,"LECAROS DE REISET,RAMON ANTONIO",31,"HDI Club"]
[null,null,null,null,null,null,null,5254,"VALDERRAMA WOLF,MARIA CAROLINA",4,"Viña del Mar"]
[null,null,null,null,null,null,null,543,"VERDUGO CORVALAN,FERNANDA",1,"Advance"]
[null,null,null,null,null,null,null,5257,"DPG RISK CORREDORES DE SEGUROS SPA",7,"Temuco"]
[null,null,null,null,null,null,null,5261,"CONSULTORES DE SEGUROS DLC LTDA.",1,"Advance"]
[null,null,null,null,null,null,null,7022,"REYES SEGOVIA,ROLANDO DANIEL",2,"Iquique"]
[null,null,null,null,null,null,null,112,"PARADA VILLARROEL,JESSICA ALEJANDRA",19,"Contenedores"]
[null,null,null,null,null,null,null,5266,"GUZMÁN ALMONACID,NILZA ORET",2,"Iquique"]
[null,null,null,null,null,null,null,5267,"ROGERS SILVA,JOSE ANDRES",31,"HDI Club"]
[null,null,null,null,null,null,null,91,"LEON WEISS,ISABEL ANDREA",38,"Corporate"]
[null,null,null,null,null,null,null,603,"REYES ROJAS,PAMELA ALEJANDRA",15,"HDI Santiago"]
[null,null,null,null,null,null,null,5242,"CLAUDIO MAGNE ARAYA CORR. DE SEG.E.I.R,L",2,"Iquique"]
[null,null,null,null,null,null,null,542,"PIZARRO REYES,MARIBEL CARMEN",1,"Advance"]
[null,null,null,null,null,null,null,5262,"BRIEBA CERDA,MARIA VICTORIA",41,"Rancagua"]
[null,null,null,null,null,null,null,7023,"LEON WEISS,ISABEL ANDREA",38,"Corporate"]
[null,null,null,null,null,null,null,5279,"IPINZA & ARAYA CORREDORA DE SEGUROS LTDA",15,"HDI Santiago"]
[null,null,null,null,null,null,null,5281,"PARRA MUÑOZ,MARTA LORETO",41,"Rancagua"]
[null,null,null,null,null,null,null,5283,"SOLAR BARRA,CLAUDIA ISABEL",6,"Concepción"]
[null,null,null,null,null,null,null,548,"CORTES VIDAL,AURY FABIOLA",4,"Viña del Mar"]
[null,null,null,null,null,null,null,5290,"BURGOS JEREZ,SANDRA MARGOT",31,"HDI Club"]
[null,null,null,null,null,null,null,5291,"TRANSPORTES Y CORRETAJE DE SEGUROS LTDA.",31,"HDI Club"]
[null,null,null,null,null,null,null,5292,"CORREDORA DE SEGUROS MELLADO LTDA.",41,"Rancagua"]
[null,null,null,null,null,null,null,5293,"DE TORO Y CIA. CORREDORES DE SEGUROS",15,"HDI Santiago"]
[null,null,null,null,null,null,null,80,"QUIROZ LARREA,ARACELI ERNESTINA",53,"Partners"]
[null,null,null,null,null,null,null,4634,"GARATE JEREZ,LORETO",1,"Advance"]
[null,null,null,null,null,null,null,5192,"CAFFARENA BAVESTRELLO,JOSE ANTONIO",6,"Concepción"]
[null,null,null,null,null,null,null,5199,"ORON CORREDORES DE SEGUROS LIMITADA",7,"Temuco"]
[null,null,null,null,null,null,null,5243,"ESCALANTE GAETE,CAROLINA",4,"Viña del Mar"]
[null,null,null,null,null,null,null,5274,"CUMBRE CORREDORES DE SEGUROS LTDA.",31,"HDI Club"]
[null,null,null,null,null,null,null,5275,"MENDOZA RODRIGUEZ,ANGEL ROBERTO",44,"Los Angeles"]
[null,null,null,null,null,null,null,547,"GARRIDO RUIZ,MIRGEN MARLY",7,"Temuco"]
[null,null,null,null,null,null,null,5286,"MORALES FONT,CESAR",2,"Iquique"]
[null,null,null,null,null,null,null,5296,"ROMERO AYALA,LUIS SERVANDO",6,"Concepción"]
[null,null,null,null,null,null,null,7024,"MARTINEZ SEPULVEDA,CYNTHIA",1,"Advance"]
[null,null,null,null,null,null,null,5298,"VENTAS Y SERVICIOS CUBAS LIMITADA",4,"Viña del Mar"]
[null,null,null,null,null,null,null,5299,"SANTA MARIA CORREDORES DE SEGUROS Y REAS",4,"Viña del Mar"]
[null,null,null,null,null,null,null,5300,"MCH SENIOR CORREDORES DE SEGUROS LTDA.",7,"Temuco"]
[null,null,null,null,null,null,null,5302,"INSUREX CORREDORES DE SEGUROS LTDA.",1,"Advance"]
[null,null,null,null,null,null,null,5303,"CORR. SEG. SERV. Y SOLUC. PERS. CHILE SA",31,"HDI Club"]
[null,null,null,null,null,null,null,5305,"MARTINEZ CID,RICARDO ANIBAL",7,"Temuco"]
[null,null,null,null,null,null,null,5308,"OSSA POHLHAMMER,MATIAS",4,"Viña del Mar"]
[null,null,null,null,null,null,null,4636,"CANDON ANTIVILO,GISELLA",1,"Advance"]
[null,null,null,null,null,null,null,5188,"SEPULVEDA MORALES,ARTURO",4,"Viña del Mar"]
[null,null,null,null,null,null,null,541,"GARCIA NAVARRETE,MARITZA AURORA",15,"HDI Santiago"]
[null,null,null,null,null,null,null,5250,"SAFE CORREDORES DE SEGUROS LTDA.",4,"Viña del Mar"]
[null,null,null,null,null,null,null,5259,"VEAS POZO,CRISTIAN ANDRES",4,"Viña del Mar"]
[null,null,null,null,null,null,null,5306,"ALBERTO OYARZUN SCHOLTBACH CORR.SEG.EIRL",9,"Puerto Montt"]
[null,null,null,null,null,null,null,5307,"CHRISTIAN ARTURO YOVANE BRAHM CORR.SEG.",9,"Puerto Montt"]
[null,null,null,null,null,null,null,5310,"CONTRERAS BUSTOS,PABLO CESAR",44,"Los Angeles"]
[null,null,null,null,null,null,null,7016,"CHAVARRIA BRAVO,SOLEDAD",1,"Advance"]
[null,null,null,null,null,null,null,5231,"VERONICA ALLIMANT CORR. SEG. Y COB. EIRL",4,"Viña del Mar"]
[null,null,null,null,null,null,null,5233,"HERES MADRID,VICTOR MANUEL",4,"Viña del Mar"]
[null,null,null,null,null,null,null,87,"RIMMELIN LLANTEN,SEBASTIAN",1,"Advance"]
[null,null,null,null,null,null,null,7021,"RIMMELIN LLANTEN,SEBASTIAN",1,"Advance"]
[null,null,null,null,null,null,null,5268,"GRAFFO CORTES,ALFREDO HUMBERTO",2,"Iquique"]
[null,null,null,null,null,null,null,5301,"DELGADO GUEVARA,INES CARMEN",4,"Viña del Mar"]
[null,null,null,null,null,null,null,5206,"A. Y CORR.SEG.CAROLINA MANQUILEF Y ASOC.",31,"HDI Club"]
[null,null,null,null,null,null,null,4638,"CASTILLO CORNEJO,CARLOS",7,"Temuco"]
[null,null,null,null,null,null,null,4640,"HERNANDEZ BREVIS,KARINA ALEJANDRA",23,"HDI.CL"]
[null,null,null,null,null,null,null,85,"HERNANDEZ BREVIS,KARINA ALEJANDRA",23,"HDI.CL"]
[null,null,null,null,null,null,null,544,"CARVAJAL LARA,ANDREA DE JESUS",3,"Antofagasta"]
[null,null,null,null,null,null,null,5311,"ZENTENO GONZALEZ,MARCELA DEL PILAR",7,"Temuco"]
[null,null,null,null,null,null,null,5312,"BAIER ECHEVERRIA,GARBY ISABEL",7,"Temuco"]
[null,null,null,null,null,null,null,560,"MUÑOZ CORDERO,ROSA MARIA",1,"Advance"]
[null,null,null,null,null,null,null,5317,"CABEZAS GONZALEZ,RICARDO SABAS",2,"Iquique"]
[null,null,null,null,null,null,null,5320,"VALDERRAMA RAMOS,JUANITA",5,"Talca"]
[null,null,null,null,null,null,null,562,"ESPINOLA VARGAS,NATALIA DOMINIQUE",1,"Advance"]
[null,null,null,null,null,null,null,563,"BURGOS PORMA,NADIA",1,"Advance"]
[null,null,null,null,null,null,null,564,"BELMAR BUSTOS,ALEJANDRO",1,"Advance"]
[null,null,null,null,null,null,null,5324,"ECHAGUE ROJAS,MARINA LUISA",6,"Concepción"]
[null,null,null,null,null,null,null,5327,"MARTINEZ CONCHAS,NANCY DEL CARMEN",41,"Rancagua"]
[null,null,null,null,null,null,null,565,"DIAZ SOTO,MARGARITA ISABEL",15,"HDI Santiago"]
[null,null,null,null,null,null,null,566,"ALVAREZ PEREZ,CARLA HILDEGARD",6,"Concepción"]
[null,null,null,null,null,null,null,5326,"INSURANCE BROKING SERVICES LIMITADA",15,"HDI Santiago"]
[null,null,null,null,null,null,null,5330,"SOCIEDAD QUIROGA E HIJOS LTDA.",44,"Los Angeles"]
[null,null,null,null,null,null,null,5331,"SANLES GALLEGUILLOS,ROSARIO AURORA",44,"Los Angeles"]
[null,null,null,null,null,null,null,5332,"ORBENES COFRE,LUIS ALFONSO",44,"Los Angeles"]
[null,null,null,null,null,null,null,5334,"SEGICHILE CORRED. DE SEG. Y CONSULT. LTD",44,"Los Angeles"]
[null,null,null,null,null,null,null,5336,"COMPARA ONLINE CORRED. DE SEGUROS SPA.",90,"CM Central"]
[null,null,null,null,null,null,null,5337,"VARELA URRUTIA,ABRAHAM MOISES",31,"HDI Club"]
[null,null,null,null,null,null,null,5338,"SIPPA OYARCE,ROXANNA VERONICA",3,"Antofagasta"]
[null,null,null,null,null,null,null,5339,"MELLADO REBOLLEDO,PEDRO ANTONIO",3,"Antofagasta"]
[null,null,null,null,null,null,null,92,"GONZALEZ BRAUN,CHAMS IVETTE",38,"Corporate"]
[null,null,null,null,null,null,null,95,"TERRAZAS BARRAZA,FAVIOLA JOSELITA",2,"Iquique"]
[null,null,null,null,null,null,null,7025,"TERRAZAS BARRAZA,FAVIOLA JOSELITA",2,"Iquique"]
[null,null,null,null,null,null,null,5370,"ROBLES CORTES,SERGIO LUIS",3,"Antofagasta"]
[null,null,null,null,null,null,null,568,"GAMONAL MENESES,JOHN CARLOS",5,"Talca"]
[null,null,null,null,null,null,null,124,"TORRES MELLA,IVAN  ANTONIO",19,"Contenedores"]
[null,null,null,null,null,null,null,7040,"TORRES MELLA,IVAN  ANTONIO",19,"Contenedores"]
[null,null,null,null,null,null,null,5383,"ROJAS SALINAS,LUIS FERNANDO",31,"HDI Club"]
[null,null,null,null,null,null,null,5391,"PIZARRO ASTUDILLO,FLORENCIA SOLEDAD",17,"La Serena"]
[null,null,null,null,null,null,null,5394,"MARIA LUISA QUIÑONES MORA CORR.DE SEG.",44,"Los Angeles"]
[null,null,null,null,null,null,null,5416,"FUENTES ARANCIBIA,CAROLINA CECILIA",4,"Viña del Mar"]
[null,null,null,null,null,null,null,5425,"VERA RAMOS,CESAR ANIBAL",4,"Viña del Mar"]
[null,null,null,null,null,null,null,5445,"OLAVARRIA LOPEZ,EDITH INES",4,"Viña del Mar"]
[null,null,null,null,null,null,null,5462,"VIVEROS TOLEDO,CHRISTIAN  PAULO",6,"Concepción"]
[null,null,null,null,null,null,null,5473,"CAMPUSANO ANAIS,CLAUDIA",17,"La Serena"]
[null,null,null,null,null,null,null,5474,"PIA BERSEZIO BERARDI,LORENA",31,"HDI Club"]
[null,null,null,null,null,null,null,5529,"NIEDMANN MATAMALA,EDUARDO",7,"Temuco"]
[null,null,null,null,null,null,null,5551,"FER CORREDORES DE SEGUROS SPA",53,"Partners"]
[null,null,null,null,null,null,null,6504,"AVENDANO PAREDES,ORLANDO FRANCISCO",45,"Osorno"]
[null,null,null,null,null,null,null,93,"PALMA PONCE,NATALIA",38,"Corporate"]
[null,null,null,null,null,null,null,94,"POBLETE BAHAMONDEZ,ALEXANDRA",38,"Corporate"]
[null,null,null,null,null,null,null,567,"LAGOS MAUREIRA,MARGARET ANGÉLICA",1,"Advance"]
[null,null,null,null,null,null,null,5353,"ROSSANNE PAOLA JUUL MARTINEZ CORR.DE SEG",3,"Antofagasta"]
[null,null,null,null,null,null,null,569,"PEÑA ORELLANA,JACQUELINE DEL C.",1,"Advance"]
[null,null,null,null,null,null,null,5387,"AUSTRAL CORREDORES DE SEGUROS LTDA.",44,"Los Angeles"]
[null,null,null,null,null,null,null,7041,"LEON CUBILLOS,MARIA DE LOS ANGELES",1,"Advance"]
[null,null,null,null,null,null,null,5399,"SOCIEDAD CLARKE Y DIAZ LTDA.",2,"Iquique"]
[null,null,null,null,null,null,null,5400,"BEROS PETRICH,MARIA INES",7,"Temuco"]
[null,null,null,null,null,null,null,5403,"URETA Y FERNANDEZ CORRED.DE SEG. LTDA.",1,"Advance"]
[null,null,null,null,null,null,null,5422,"ORTIZ MIRANDA,MANUEL JESUS",6,"Concepción"]
[null,null,null,null,null,null,null,126,"MIRANDA FERRADJI,MOIRA",1,"Advance"]
[null,null,null,null,null,null,null,5443,"ALVARO NUÑEZ VILLEGAS CORR. DE SEG. EIRL",31,"HDI Club"]
[null,null,null,null,null,null,null,5444,"VEGA DE LA PAZ,GILDA VERONICA",4,"Viña del Mar"]
[null,null,null,null,null,null,null,5458,"ENCALADA BRIONES,CARLOS ALFREDO",2,"Iquique"]
[null,null,null,null,null,null,null,128,"BAZAEZ OLMEDO,LUCIANA PAZ",2,"Iquique"]
[null,null,null,null,null,null,null,5518,"CORREDORA DE SEGUROS MANAUT Y MANAUT LTD",17,"La Serena"]
[null,null,null,null,null,null,null,5537,"LOPEZ MUNOZ,VIVIANA DE LAS MERCE",4,"Viña del Mar"]
[null,null,null,null,null,null,null,5547,"NORISK CORREDORES DE SEGUROS SPA",6,"Concepción"]
[null,null,null,null,null,null,null,7307,"MUJICA JAQUE,IDALIA ANGELICA",3,"Antofagasta"]
[null,null,null,null,null,null,null,7309,"LARRONDO CANIBILO,BERNARDO JAVIER",3,"Antofagasta"]
[null,null,null,null,null,null,null,5354,"AGUILLON SEPULVEDA,ALEXIS",6,"Concepción"]
[null,null,null,null,null,null,null,5361,"ESTRADA MORALES,MIRIAN KATIUSKA",31,"HDI Club"]
[null,null,null,null,null,null,null,98,"SANDOVAL ACEVEDO,KAREN DEL PILAR",1,"Advance"]
[null,null,null,null,null,null,null,99,"NEIRA FIGUEROA,ELIANA ESTER",1,"Advance"]
[null,null,null,null,null,null,null,100,"AGUILERA AGUILERA,LORENA ALEJANDRA",1,"Advance"]
[null,null,null,null,null,null,null,113,"AVENDAÑO BARRIENTOS,PATRICIA",1,"Advance"]
[null,null,null,null,null,null,null,114,"PEÑA GALAZ,FERNANDA MARCELA",1,"Advance"]
[null,null,null,null,null,null,null,115,"SIRE MUÑOZ,TAMARA",31,"HDI Club"]
[null,null,null,null,null,null,null,5375,"CACERES CALDERON,PATRICIO",5,"Talca"]
[null,null,null,null,null,null,null,5398,"ACTIVA CORREDORES DE SEGUROS S.P.A.",41,"Rancagua"]
[null,null,null,null,null,null,null,5428,"JARA ALVAREZ,JORGE",2,"Iquique"]
[null,null,null,null,null,null,null,5429,"MIRANDA MARTINEZ,MARCIA MARIA",31,"HDI Club"]
[null,null,null,null,null,null,null,572,"MANSILLA PANATT,CAROLINA INES",17,"La Serena"]
[null,null,null,null,null,null,null,573,"MARÍN VACCAREZZA,GUSTAVO ANTONIO",4,"Viña del Mar"]
[null,null,null,null,null,null,null,5449,"VITA CORREDORES DE SEGUROS LIMITADA",31,"HDI Club"]
[null,null,null,null,null,null,null,5479,"ACUÑA PEREZ,MARILEN CRISTINA",15,"HDI Santiago"]
[null,null,null,null,null,null,null,1030,"SUCURSAL CHILECTRA",30,"CM Chilectra"]
[null,null,null,null,null,null,null,5495,"ANDRES DELANO CORREDORES DE SEGUROS LTDA",1,"Advance"]
[null,null,null,null,null,null,null,5496,"IBER CORREDORES DE SEGUROS SPA",15,"HDI Santiago"]
[null,null,null,null,null,null,null,5497,"BAHAMONDES ORTEGA,MILENA ANDREA",6,"Concepción"]
[null,null,null,null,null,null,null,5498,"CORREDORA DE SEGUROS GENERACION LTDA.",6,"Concepción"]
[null,null,null,null,null,null,null,5501,"SILVA BASTIDAS,RAUL ANTONIO",6,"Concepción"]
[null,null,null,null,null,null,null,5509,"GARCIA HUIDOBRO TORO,RODRIGO ALBERTO",15,"HDI Santiago"]
[null,null,null,null,null,null,null,5510,"SG CORREDORES DE SEGUROS",1,"Advance"]
[null,null,null,null,null,null,null,5511,"WILLIAMS Y COMPAÑIA CORRED.DE SEG. S.P.A",31,"HDI Club"]
[null,null,null,null,null,null,null,5516,"HOCH GREDIG,JORGE ROBERTO",1,"Advance"]
[null,null,null,null,null,null,null,5519,"DEL PINO SALAS,CARLOS ALBERTO",31,"HDI Club"]
[null,null,null,null,null,null,null,5531,"DEL RIO Y CIA. LTDA.",15,"HDI Santiago"]
[null,null,null,null,null,null,null,5348,"RHL CORREDORES DE SEGUROS SPA",6,"Concepción"]
[null,null,null,null,null,null,null,5351,"CAMPOS LOBO,GUILLERMO ADRIAN",41,"Rancagua"]
[null,null,null,null,null,null,null,5365,"FUENTES TAPIA,VICTOR EDUARDO",2,"Iquique"]
[null,null,null,null,null,null,null,5367,"VARAS LAMAS,PAMELA ANTONIA",3,"Antofagasta"]
[null,null,null,null,null,null,null,5368,"SIGNO MAS CORREDORES DE SEGUROS LIMITADA",5,"Talca"]
[null,null,null,null,null,null,null,5378,"MBM CORREDORES DE SEGUROS LIMITADA",31,"HDI Club"]
[null,null,null,null,null,null,null,5381,"TERRAMAR CORREDORES DE SEGUROS LTDA.",3,"Antofagasta"]
[null,null,null,null,null,null,null,5405,"SILVA VALENZUELA,JOSE MARIO",4,"Viña del Mar"]
[null,null,null,null,null,null,null,5419,"VIVANCO PORTILLA,RAUL LUIS",15,"HDI Santiago"]
[null,null,null,null,null,null,null,5426,"SUSANA SEPULVEDA SALECH CORRED.SEGUROS L",5,"Talca"]
[null,null,null,null,null,null,null,5455,"PAREDES CARO,RICARDO",31,"HDI Club"]
[null,null,null,null,null,null,null,5472,"CALDERON ALBIÑA,JENNY MAITE",17,"La Serena"]
[null,null,null,null,null,null,null,5484,"CRUZ CHULMAN,ALEJANDRO ANDRES",4,"Viña del Mar"]
[null,null,null,null,null,null,null,5490,"CORTES COLLAO,ROLANDO NICOLAS",17,"La Serena"]
[null,null,null,null,null,null,null,5536,"REHBEIN MARTINEZ,FREDERICK FELIX ANDR",15,"HDI Santiago"]
[null,null,null,null,null,null,null,5539,"VESPERINAS VASQUEZ,MARCIA ALEJANDRA",7,"Temuco"]
[null,null,null,null,null,null,null,5548,"AJS CORREDORES DE SEGUROS SPA",6,"Concepción"]
[null,null,null,null,null,null,null,5549,"BUSTOS PRADO,PABLO DARIO ANTONIO",31,"HDI Club"]
[null,null,null,null,null,null,null,6515,"GOMEZ MORALES,LUIS EDUARDO",45,"Osorno"]
[null,null,null,null,null,null,null,6516,"ITURRA CORREDORES DE SEGUROS SPA",45,"Osorno"]
[null,null,null,null,null,null,null,96,"CONDE BRAVO,HECTOR MAURICIO",5,"Talca"]
[null,null,null,null,null,null,null,5350,"PRODUCT. DE SEG. JOSE MOLINA E HIJOS LTD",5,"Talca"]
[null,null,null,null,null,null,null,5360,"CONS. Y COR. SANDRA M.SALAZAR RIVAS EIRL",7,"Temuco"]
[null,null,null,null,null,null,null,5390,"MAYANES BROKER CORRED. DE SEG. LTDA.",15,"HDI Santiago"]
[null,null,null,null,null,null,null,5420,"ALARCON VASQUEZ,JOB",7,"Temuco"]
[null,null,null,null,null,null,null,5446,"AREVALO OLIVARES,ANABELLA MARIA",2,"Iquique"]
[null,null,null,null,null,null,null,571,"SAENZ MARTINEZ,NATALIA FERNANDA",2,"Iquique"]
[null,null,null,null,null,null,null,5464,"CORREDORES DE SEGUROS PROTECCION S.P.A.",15,"HDI Santiago"]
[null,null,null,null,null,null,null,5475,"ELFERT URTUBIA,INGEBORG GRETI",5,"Talca"]
[null,null,null,null,null,null,null,5483,"CLAN CORREDORES DE SEGUROS Y CIA. LTDA.",4,"Viña del Mar"]
[null,null,null,null,null,null,null,5487,"SOCIEDAD G Y T CORREDORES DE SEG. LTDA.",4,"Viña del Mar"]
[null,null,null,null,null,null,null,5506,"RAMISEGU COMPAÑIA LIMITADA CORREDORES DE",4,"Viña del Mar"]
[null,null,null,null,null,null,null,574,"SANSÓN CORNEJO,VALENTINA ANOUSKA",1,"Advance"]
[null,null,null,null,null,null,null,575,"GRANDON GONZALEZ,MELANIE",1,"Advance"]
[null,null,null,null,null,null,null,6517,"MARTINEZ LOPEZ,CRISTIAN ALAEJANDRO",45,"Osorno"]
[null,null,null,null,null,null,null,6518,"MUNOZ PALMA,JUANA ROSA",45,"Osorno"]
[null,null,null,null,null,null,null,6519,"PACHECO TORRES,AGUSTIN OMAR",45,"Osorno"]
[null,null,null,null,null,null,null,6521,"PADILLA TORRES,NELSON FERNANDO",45,"Osorno"]
[null,null,null,null,null,null,null,7320,"FORNES GARCES,LILLIAN",2,"Iquique"]
[null,null,null,null,null,null,null,6523,"URIBE BUSTAMANTE,MARCELO HERNAN",45,"Osorno"]
[null,null,null,null,null,null,null,7322,"HENRIQUEZ ALVAREZ,TATIANA",2,"Iquique"]
[null,null,null,null,null,null,null,5369,"C.S.C.A.E I. MAURICIO FLORES C. EIRL",3,"Antofagasta"]
[null,null,null,null,null,null,null,125,"LEON CUBILLOS,MARIA DE LOS ANGELES",1,"Advance"]
[null,null,null,null,null,null,null,5396,"GLOBAL INSURANCE CORRED. DE SEGUROS SPA",4,"Viña del Mar"]
[null,null,null,null,null,null,null,5401,"JIMENEZ GARCIA,DOMINGO JESUS",5,"Talca"]
[null,null,null,null,null,null,null,5407,"RIQUELME BUSTOS,GUIDO IVAN ANTONIO",7,"Temuco"]
[null,null,null,null,null,null,null,5413,"INTEGRA CORREDORES DE SEGUROS LIMITADA",4,"Viña del Mar"]
[null,null,null,null,null,null,null,570,"ANDRADE RIQUELME,SANDRA KARIN",1,"Advance"]
[null,null,null,null,null,null,null,5434,"CORREDORA DE SEGUROS UNIVERSAL SPA",15,"HDI Santiago"]
[null,null,null,null,null,null,null,5465,"CARRENO QUINTEROS,MARIO PATRICIO",17,"La Serena"]
[null,null,null,null,null,null,null,5468,"ANA MARIA TAGLE Y CIA. LTDA. CORR.DE SEG",5,"Talca"]
[null,null,null,null,null,null,null,5469,"TOFALOS IRIARTE,THEOPRANIS ELEUSIS",17,"La Serena"]
[null,null,null,null,null,null,null,5513,"HERRERA ALLENDE,RINA",15,"HDI Santiago"]
[null,null,null,null,null,null,null,5520,"VERDUGO RAMIREZ DE ARELLANO,CARLOS",31,"HDI Club"]
[null,null,null,null,null,null,null,5521,"SANCHEZ HERRERA,FRANCISCO JAVIER",4,"Viña del Mar"]
[null,null,null,null,null,null,null,5522,"RIVERA JATIP,ROSA MARIA",80,"HDI Comercial"]
[null,null,null,null,null,null,null,5527,"ALVARADO ESQUIVEL,GUADALUPE DEL CARMEN",2,"Iquique"]
[null,null,null,null,null,null,null,5528,"LAGOS ESCALONA,JOSE ALFONSO",7,"Temuco"]
[null,null,null,null,null,null,null,5541,"BRUNA RUIZ,MONICA ISABEL",4,"Viña del Mar"]
[null,null,null,null,null,null,null,6505,"AZOCAR ANGULO,ADOLFO RICARDO",45,"Osorno"]
[null,null,null,null,null,null,null,6507,"BORQUEZ KLAGGES,MANUEL ENRIQUE",45,"Osorno"]
[null,null,null,null,null,null,null,6511,"ELGUETA BARIAS,JAIME RODOLFO",45,"Osorno"]
[null,null,null,null,null,null,null,6512,"VARAS VECCHI,EVA BASILIA",45,"Osorno"]
[null,null,null,null,null,null,null,6513,"FERNANDEZ CARDENAS,HERNAN SALVADOR",45,"Osorno"]
[null,null,null,null,null,null,null,6514,"FULL PROTECTION BROKERS SPA",45,"Osorno"]
[null,null,null,null,null,null,null,6524,"VERA SANHUEZA,PAULINO JAVIER",45,"Osorno"]
[null,null,null,null,null,null,null,5371,"MUÑOZ OYARCE,GERARDO",31,"HDI Club"]
[null,null,null,null,null,null,null,7026,"SIRE MUÑOZ,TAMARA",1,"Advance"]
[null,null,null,null,null,null,null,7027,"PEÑA GALAZ,FERNANDA MARCELA",1,"Advance"]
[null,null,null,null,null,null,null,7028,"AVENDAÑO BARRIENTOS,PATRICIA",1,"Advance"]
[null,null,null,null,null,null,null,7029,"AGUILERA AGUILERA,LORENA ALEJANDRA",1,"Advance"]
[null,null,null,null,null,null,null,7030,"NEIRA FIGUEROA,ELIANA ESTER",1,"Advance"]
[null,null,null,null,null,null,null,7031,"SANDOVAL ACEVEDO,KAREN DEL PILAR",1,"Advance"]
[null,null,null,null,null,null,null,5408,"SANTA MARIA HARCHA,DEBORA MARIA GABRIEL",31,"HDI Club"]
[null,null,null,null,null,null,null,5414,"VIMAR CORREDORES DE SEGUROS LTDA.",4,"Viña del Mar"]
[null,null,null,null,null,null,null,5452,"RAMIREZ MUÑOZ,JAIME ANDRES",31,"HDI Club"]
[null,null,null,null,null,null,null,5453,"CASTILLO LUARTE,JORGE ERNESTO",4,"Viña del Mar"]
[null,null,null,null,null,null,null,5454,"PARTNER CORREDORA DE SEGUROS LIMITADA",15,"HDI Santiago"]
[null,null,null,null,null,null,null,5457,"BARRERA SOTO,VICTOR DOMINGO",6,"Concepción"]
[null,null,null,null,null,null,null,5470,"MARDONES PERAGALLO,PATRICIA MARIA",17,"La Serena"]
[null,null,null,null,null,null,null,5478,"FIGUEROA BASCUR,KARINA ANGELICA",7,"Temuco"]
[null,null,null,null,null,null,null,5485,"DAZA BESOAIN,CRISTIAN",1,"Advance"]
[null,null,null,null,null,null,null,5493,"PITA POLLASTRI,DIEGO",4,"Viña del Mar"]
[null,null,null,null,null,null,null,5502,"ANDRES SCHMIDT Y CIA LTDA",9,"Puerto Montt"]
[null,null,null,null,null,null,null,5503,"HR CORREDORES DE SEGUROS SPA",15,"HDI Santiago"]
[null,null,null,null,null,null,null,5538,"MAYCAS CORR. DE SEG CARL SAN MARTIN EIRL",31,"HDI Club"]
[null,null,null,null,null,null,null,7000,"INVERSIONES CANALES BAEZA LTDA.",41,"Rancagua"]
[null,null,null,null,null,null,null,6500,"REYES CORTES,RENE HUMBERTO",41,"Rancagua"]
[null,null,null,null,null,null,null,7325,"OJEDA MURILLO, CLAUDIO",2,"Iquique"]
[null,null,null,null,null,null,null,6525,"VICUNA OYARZUN,ULISES JAVIER",45,"Osorno"]
[null,null,null,null,null,null,null,6526,"VILLARROEL GUILIGUAL,LUIS ALBERTO",45,"Osorno"]
[null,null,null,null,null,null,null,5356,"ICARGO BROKERS LTDA.",53,"Partners"]
[null,null,null,null,null,null,null,5357,"ZAPATA FARIAS,JUAN   CEFERINO",5,"Talca"]
[null,null,null,null,null,null,null,5358,"ALVAREZ-SALAMANCA RAMIREZ,PAMELA PAZ",5,"Talca"]
[null,null,null,null,null,null,null,116,"CARRIZO FERRADA,LJUBITZA ERNESTINA",2,"Iquique"]
[null,null,null,null,null,null,null,117,"PHILLIPS FLORES,MARITZA",3,"Antofagasta"]
[null,null,null,null,null,null,null,118,"NANJARI ANDRADE,DANIELA",4,"Viña del Mar"]
[null,null,null,null,null,null,null,119,"GAMONAL MENESES,JOHN CARLOS",5,"Talca"]
[null,null,null,null,null,null,null,120,"PALMA AGUAYO,CLAUDIA ANDREA",6,"Concepción"]
[null,null,null,null,null,null,null,121,"VILLARROEL ARREPOL,MARIA ISABEL",7,"Temuco"]
[null,null,null,null,null,null,null,122,"DIAZ OLIVARES,SARA LASTENIA",15,"HDI Santiago"]
[null,null,null,null,null,null,null,123,"NAVARRO SOTO,LORENA",17,"La Serena"]
[null,null,null,null,null,null,null,7032,"CARRIZO FERRADA,LJUBITZA ERNESTINA",2,"Iquique"]
[null,null,null,null,null,null,null,7033,"PHILLIPS FLORES,MARITZA",3,"Antofagasta"]
[null,null,null,null,null,null,null,7034,"NANJARI ANDRADE,DANIELA",4,"Viña del Mar"]
[null,null,null,null,null,null,null,7035,"GAMONAL MENESES,JOHN CARLOS",5,"Talca"]
[null,null,null,null,null,null,null,7036,"PALMA AGUAYO,CLAUDIA ANDREA",6,"Concepción"]
[null,null,null,null,null,null,null,7037,"VILLARROEL ARREPOL,MARIA ISABEL",7,"Temuco"]
[null,null,null,null,null,null,null,7038,"DIAZ OLIVARES,SARA LASTENIA",15,"HDI Santiago"]
[null,null,null,null,null,null,null,7039,"NAVARRO SOTO,LORENA",17,"La Serena"]
[null,null,null,null,null,null,null,5380,"MASSI CORRED. DE SEGUROS SERV.E INV. SPA",2,"Iquique"]
[null,null,null,null,null,null,null,5382,"PARRA ACUÑA,CARLOS",7,"Temuco"]
[null,null,null,null,null,null,null,5417,"CARROZA RIVAS,JUAN ROBERTO",9,"Puerto Montt"]
[null,null,null,null,null,null,null,127,"OPAZO CEPEDA,DAYAN ANALIA",2,"Iquique"]
[null,null,null,null,null,null,null,5481,"MIRANDA LAGOS,CLAUDIO PATRICIO",31,"HDI Club"]
[null,null,null,null,null,null,null,5494,"BOVEM CORREDORES DE SEGUROS SPA",7,"Temuco"]
[null,null,null,null,null,null,null,129,"CERDA MUNOZ,LEONARDO PATRICIO",6,"Concepción"]
[null,null,null,null,null,null,null,5507,"ALPO CORREDORES DE SEGUROS LTDA.",1,"Advance"]
[null,null,null,null,null,null,null,5517,"ESCOBAR GUILLON,MARIA FRANCISCA",2,"Iquique"]
[null,null,null,null,null,null,null,5533,"CERNA AGUILERA,JESSICA NICOLE ANDRE",6,"Concepción"]
[null,null,null,null,null,null,null,5544,"CORR. DE SEG. CHRISTIAN RAMOS ECHEVERRIA",5,"Talca"]
[null,null,null,null,null,null,null,5844,"INSURANCE SPA",45,"Osorno"]
[null,null,null,null,null,null,null,8475,"PFEIFFER HICKMANN,EDUARDO ALFREDO",7,"Temuco"]
[null,null,null,null,null,null,null,5869,"ROTH  VILLASECA ,MAGDALENA",41,"Rancagua"]
[null,null,null,null,null,null,null,8478,"FUND LAS ROSAS DE AYUDA FRATERNA",90,"CM Central"]
[null,null,null,null,null,null,null,5758,"GARNET CORREDORES DE SEGUROS SPA",15,"HDI Santiago"]
[null,null,null,null,null,null,null,1003,"VALVERDE .,DANIELA",94,"Banca Seguros"]
[null,null,null,null,null,null,null,1020,"AHUMADA LABBE,NATALIA",44,"Los Angeles"]
[null,null,null,null,null,null,null,1021,"AHUMADA LABBE,NATALIA",44,"Los Angeles"]
[null,null,null,null,null,null,null,940,"GUERRA FIGUEROA,VILMA",15,"HDI Santiago"]
[null,null,null,null,null,null,null,5994,"BRAVO CHAMORRO,JAVIER",31,"HDI Club"]
[null,null,null,null,null,null,null,585,"QUINTANA .,MARCELA",15,"HDI Santiago"]
[null,null,null,null,null,null,null,4652,"ANDRADE ALVAREZ,ALICIA",15,"HDI Santiago"]
[null,null,null,null,null,null,null,160,"MONARDES  VASQUEZ, CAROLINA PATRICIA",4,"Viña del Mar"]
[null,null,null,null,null,null,null,161,"SOTO MAUREIRA,JULY ANDREA",4,"Viña del Mar"]
[null,null,null,null,null,null,null,162,"BASCUÑAN  ACUÑA, ANA ELIZABETH",4,"Viña del Mar"]
[null,null,null,null,null,null,null,4653,"NANJARI ANDRADE,DANIELA",4,"Viña del Mar"]
[null,null,null,null,null,null,null,213,"CARRASCO  DAZA, ANGELICA GIOVANNA",15,"HDI Santiago"]
[null,null,null,null,null,null,null,215,"VILLALON  DIAZ, GLADYS LYDIA",15,"HDI Santiago"]
[null,null,null,null,null,null,null,220,"CAMPBELL  PIZARRO, MARIA VERONICA",15,"HDI Santiago"]
[null,null,null,null,null,null,null,221,"JIMENEZ  MEZA, SONIA MARIA",15,"HDI Santiago"]
[null,null,null,null,null,null,null,216,"MARIÑANCO  VALENZUELA, FELIPE IGNACIO",15,"HDI Santiago"]
[null,null,null,null,null,null,null,217,"VALENZUELA INOSTROZA,GIOVANNA",15,"HDI Santiago"]
[null,null,null,null,null,null,null,218,"YAÑEZ GONZALEZ,YEIMY",15,"HDI Santiago"]
[null,null,null,null,null,null,null,4656,"OCARES ALVAREZ,VERONICA",15,"HDI Santiago"]
[null,null,null,null,null,null,null,592,"ASCUI HERRERA,MANUEL ANTONIO",15,"HDI Santiago"]
[null,null,null,null,null,null,null,219,"LUCO  AGUAYO, CAROLA VERONICA",41,"Rancagua"]
[null,null,null,null,null,null,null,4705,"PASTEN  OMONTE, EDDIE FREDDY",2,"Iquique"]
[null,null,null,null,null,null,null,131,"PASTEN  OMONTE, EDDIE FREDDY",2,"Iquique"]
[null,null,null,null,null,null,null,1039,"DIRECTO ARICA",2,"Iquique"]
[null,null,null,null,null,null,null,152,"HERRERA ARAYA,MARCELO",2,"Iquique"]
[null,null,null,null,null,null,null,7979,"FERNANDEZ SEOANE,LUCIA CARMEN",15,"HDI Santiago"]
[null,null,null,null,null,null,null,7980,"TAPIA PINO,GLADYS",15,"HDI Santiago"]
[null,null,null,null,null,null,null,5558,"BUNSTER Y ASOC CORR DE SEG SPA",15,"HDI Santiago"]
[null,null,null,null,null,null,null,5559,"CAT CORREDORES DE SEGUROS Y SERVICIOS SA",92,"CM Cencosud"]
[null,null,null,null,null,null,null,5568,"BCG CORREDORES DE SEGUROS LTDA",4,"Viña del Mar"]
[null,null,null,null,null,null,null,7983,"FARIAS OYARZUN,EDGARDO ESTEBAN",41,"Rancagua"]
[null,null,null,null,null,null,null,596,"PEREZ AJIP,DALILA",53,"Partners"]
[null,null,null,null,null,null,null,486,"PEREZ AJIP,DALILA",53,"Partners"]
[null,null,null,null,null,null,null,487,"PONCE BORQUEZ,RODRIGO EUGENIO",53,"Partners"]
[null,null,null,null,null,null,null,262,"TAMAYO GARATE,JOSE ROBERTO",53,"Partners"]
[null,null,null,null,null,null,null,263,"GUERRA FIGUEROA,VILMA",53,"Partners"]
[null,null,null,null,null,null,null,273,"FERREIRA .,JORGE",15,"HDI Santiago"]
[null,null,null,null,null,null,null,5572,"ASTORGA SILVA,ALEJANDRO MIGUEL",41,"Rancagua"]
[null,null,null,null,null,null,null,8525,"MICHEL  MARTABIT ,CASPO",70,"Osorno Dealer"]
[null,null,null,null,null,null,null,8526,"SERGIO ARTURO PEREZ JARA",67,"Curico Dealer"]
[null,null,null,null,null,null,null,650,"LARRAIN YANEZ,ROBERTO JAIME",23,"HDI.CL"]
[null,null,null,null,null,null,null,5601,"BLANCO IENCO,DANIEL",41,"Rancagua"]
[null,null,null,null,null,null,null,130,"AVILES LEIVA, ANDREA",53,"Partners"]
[null,null,null,null,null,null,null,5732,"POBLETE SMITT,JAIME ANTONIO",80,"HDI Comercial"]
[null,null,null,null,null,null,null,5735,"FERNANDEZ SEPULVEDA,NATALIA ODETTE",44,"Los Angeles"]
[null,null,null,null,null,null,null,8460,"AUTOMOTORA CHICUREO SPA",78,"Casa Matriz Santiago Dealer"]
[null,null,null,null,null,null,null,5810,"FERNANDEZ AGUERO,ALEX FERNANDO",45,"Osorno"]
[null,null,null,null,null,null,null,5811,"ALVAREZ TELLEZ,CRISTINA",7,"Temuco"]
[null,null,null,null,null,null,null,881,"LARRAIN URRUTIA,CECILIA ANGELICA",78,"Casa Matriz Santiago Dealer"]
[null,null,null,null,null,null,null,877,"HERRERA CONTRERAS,GUSTAVO A.",15,"HDI Santiago"]
[null,null,null,null,null,null,null,902,"JELDREZ ZELADA,XIMENA",38,"Corporate"]
[null,null,null,null,null,null,null,5979,"DEL SANTE VIAL,JUAN PABLO",31,"HDI Club"]
[null,null,null,null,null,null,null,912,"REBOLLEDO FLORES,KATHERINE ELIZABETH",80,"HDI Comercial"]
[null,null,null,null,null,null,null,913,"REBOLLEDO FLORES,KATHERINE ELIZABETH",80,"HDI Comercial"]
[null,null,null,null,null,null,null,6015,"DIRECTO SOC",80,"HDI Comercial"]
[null,null,null,null,null,null,null,6045,"123 CORREDORES DE SEGUROS SPA",21,"HDI Plus"]
[null,null,null,null,null,null,null,181,"ARAYA FUENZALIDA,MARIA JOSE",15,"HDI Santiago"]
[null,null,null,null,null,null,null,1080,"DIRECTO CALL CENTER",23,"HDI.CL"]
[null,null,null,null,null,null,null,292,"ORTEGA  DIAZ, ALEJANDRA XIMENA",5,"Talca"]
[null,null,null,null,null,null,null,5621,"OSCAR HARDER E HIJA CORREDORES DE SEGURO",15,"HDI Santiago"]
[null,null,null,null,null,null,null,8700,"SAN MARTIN VASQUEZ,JUAN JOSE",7,"Temuco"]
[null,null,null,null,null,null,null,671,"GALAZ CASTRO,MARTA PATRICIA",53,"Partners"]
[null,null,null,null,null,null,null,672,"CANDIA PAVEZ,MARCO ANTONIO",53,"Partners"]
[null,null,null,null,null,null,null,673,"PINOCHET SILVA,CLAUDIA",53,"Partners"]
[null,null,null,null,null,null,null,5662,"URRUTIA QUIROGA,TAMARA IVONNE",6,"Concepción"]
[null,null,null,null,null,null,null,5663,"INZUNZA AGUAYO,LILIAN",7,"Temuco"]
[null,null,null,null,null,null,null,5666,"OJEDA HERRERA,RENE GUSTAVO",4,"Viña del Mar"]
[null,null,null,null,null,null,null,479,"SALVADOR BARRIA,CLAUDIA",15,"HDI Santiago"]
[null,null,null,null,null,null,null,482,"BIGORRA CARRASCO,ARACELI CONSTANZA",15,"HDI Santiago"]
[null,null,null,null,null,null,null,483,"LOPEZ PIÑA,ANIBAL ANDRES",15,"HDI Santiago"]
[null,null,null,null,null,null,null,5667,"H & B SEGUROS LTDA.",15,"HDI Santiago"]
[null,null,null,null,null,null,null,5674,"BRANIFF CORREDORES  DE SEG SPA",1,"Advance"]
[null,null,null,null,null,null,null,714,"SEPULVEDA  VALENZUELA, MONSERRAT EUGENIA",58,"Talca Dealer"]
[null,null,null,null,null,null,null,752,"FUENTES  ORDENES, CINTHIA SANDRA",2,"Iquique"]
[null,null,null,null,null,null,null,753,"HELLE LOMBARDI,PAOLO CERVANDO",2,"Iquique"]
[null,null,null,null,null,null,null,5692,"SILVA SILVA,FABIAN IGNACIO",44,"Los Angeles"]
[null,null,null,null,null,null,null,770,"GARCIA  RIQUELME, RODRIGO EDUARDO",90,"CM Central"]
[null,null,null,null,null,null,null,848,"CUADRA  CASTILLO, GUACOLDA LICARAYEN",78,"Casa Matriz Santiago Dealer"]
[null,null,null,null,null,null,null,5726,"BF CORREDORA DE SEGUROS LIMITADA",78,"Casa Matriz Santiago Dealer"]
[null,null,null,null,null,null,null,849,"MUIRHEAD SHEIN,PATRICIA EMILIA MATI",90,"CM Central"]
[null,null,null,null,null,null,null,851,"VIDAL CESPED,JOHANNA DANIELA",80,"HDI Comercial"]
[null,null,null,null,null,null,null,852,"ROMAN MARDONES,PAOLA DEL PILAR",80,"HDI Comercial"]
[null,null,null,null,null,null,null,8463,"COMERCIAL SAINT GERMAIN S.A",78,"Casa Matriz Santiago Dealer"]
[null,null,null,null,null,null,null,5777,"PIZARRO CANO,PAULA ANDREA",15,"HDI Santiago"]
[null,null,null,null,null,null,null,285,"ARAYA FUENZALIDA,MARIA JOSE",15,"HDI Santiago"]
[null,null,null,null,null,null,null,496,"ARAYA FUENZALIDA,MARIA JOSE",15,"HDI Santiago"]
[null,null,null,null,null,null,null,780,"PINAZO VALENZUELA,MAXIMILIANO ADOLFO",2,"Iquique"]
[null,null,null,null,null,null,null,885,"ACEVEDO GONZALEZ,EVELYN DE LOURDES",15,"HDI Santiago"]
[null,null,null,null,null,null,null,5860,"ROMERO HUGO,ROBERTO",31,"HDI Club"]
[null,null,null,null,null,null,null,5886,"SUMA CORREDORES DE SEGUROS SPA",15,"HDI Santiago"]
[null,null,null,null,null,null,null,961,"FERNANDEZ SAN MARTIN,PAULA",1,"Advance"]
[null,null,null,null,null,null,null,962,"FERNANDEZ SAN MARTIN,PAULA",31,"HDI Club"]
[null,null,null,null,null,null,null,963,"FERNANDEZ SAN MARTIN,PAULA",1,"Advance"]
[null,null,null,null,null,null,null,6016,"CONCHA VALDERRAMA,LUIS FELIPE",1,"Advance"]
[null,null,null,null,null,null,null,6017,"MI PORTAL SEGURO CORR. DE SEGUROS SPA",1,"Advance"]
[null,null,null,null,null,null,null,257,"VALLADARES PINO,CRISTIAN ANDRES",15,"HDI Santiago"]
[null,null,null,null,null,null,null,258,"ACUÑA RAMOS,FRANCISCO A.",15,"HDI Santiago"]
[null,null,null,null,null,null,null,469,"CARRASCO  DAZA, ANGELICA GIOVANNA",15,"HDI Santiago"]
[null,null,null,null,null,null,null,982,"SIRE MUÑOZ,TAMARA",31,"HDI Club"]
[null,null,null,null,null,null,null,983,"SIRE MUÑOZ,TAMARA",1,"Advance"]
[null,null,null,null,null,null,null,405,"STEINER  OSSWALD, GUICELA ALEXANDRA",45,"Osorno"]
[null,null,null,null,null,null,null,6011,"UPTIME CORREDORES DE SEGUROS LIMITADA",2,"Iquique"]
[null,null,null,null,null,null,null,6046,"SOCIEDAD CORRED DE SEG HORUS SPA",80,"HDI Comercial"]
[null,null,null,null,null,null,null,6072,"SANHUEZA RIQUELME RIQUELME,CARINA LINDA",6,"Concepción"]
[null,null,null,null,null,null,null,6080,"XEPELIN",80,"HDI Comercial"]
[null,null,null,null,null,null,null,872,"CARRENO HERNANDEZ,ISCARLYS,",15,"HDI Santiago"]
[null,null,null,null,null,null,null,5802,"E Y D CORREDORES DE SEGUROS LTDA",6,"Concepción"]
[null,null,null,null,null,null,null,874,"CARRENO HERNANDEZ,ISCARLYS,",15,"HDI Santiago"]
[null,null,null,null,null,null,null,8464,"FUNDACION CAMINO",90,"CM Central"]
[null,null,null,null,null,null,null,5835,"PAOLA BARROZO B.CORRED.DE SEGUROS EIRL",7,"Temuco"]
[null,null,null,null,null,null,null,882,"ARAYA ESPINAL,ALICIA",23,"HDI.CL"]
[null,null,null,null,null,null,null,8470,"SILVA DONOSO,DANIEL FRANCISCO",5,"Talca"]
[null,null,null,null,null,null,null,5842,"PROD. DE SEG. ESTEBAN ESPINOZA LIMITADA",31,"HDI Club"]
[null,null,null,null,null,null,null,8473,"DIST.DE VEHICULOS SUZUVAL LTDA",57,"Vina del Mar Dealer"]
[null,null,null,null,null,null,null,889,"LY DIAZ,SHIRLEY CATHERINE",56,"Antofagasta Dealer"]
[null,null,null,null,null,null,null,8476,"H. MOTORES S.A",56,"Antofagasta Dealer"]
[null,null,null,null,null,null,null,898,"PUGA FIGUEROA,MARIA CARIDAD",53,"Partners"]
[null,null,null,null,null,null,null,899,"CATALAN  NUÑEZ, MACARENA",78,"Casa Matriz Santiago Dealer"]
[null,null,null,null,null,null,null,8477,"SK BERGE LUXURY SPA",78,"Casa Matriz Santiago Dealer"]
[null,null,null,null,null,null,null,8774,"HERNANDEZ RAMIREZ, INGRID YANETT",9,"Puerto Montt"]
[null,null,null,null,null,null,null,906,"PINTO SEPULVEDA,MARCELA",38,"Corporate"]
[null,null,null,null,null,null,null,5876,"CORREDORA DE SEGUROS JULIO EDUARDO FLORE",3,"Antofagasta"]
[null,null,null,null,null,null,null,952,"INOSTROZA  SILVA ,JOHANNA BERNARDETTE",9,"Puerto Montt"]
[null,null,null,null,null,null,null,5892,"VERGOTTINI TORO,FIORELLA ELISA",17,"La Serena"]
[null,null,null,null,null,null,null,5912,"BURGOS MORALES,SCARLET LORETO",41,"Rancagua"]
[null,null,null,null,null,null,null,5913,"CAMPOS GUZMAN,GUILLERMO ANTONIO",41,"Rancagua"]
[null,null,null,null,null,null,null,5914,"PORSCHE VOLKSWAGEN CORREDORES DE SEGUROS",78,"Casa Matriz Santiago Dealer"]
[null,null,null,null,null,null,null,5916,"CAMINO SPA",90,"CM Central"]
[null,null,null,null,null,null,null,995,"ARRIAGADA ARRIAGADA, HELEN",15,"HDI Santiago"]
[null,null,null,null,null,null,null,4916,"SIND INTEREMPRESA NACIONAL DE LA CONS IN",15,"HDI Santiago"]
[null,null,null,null,null,null,null,5932,"AUTOMOTRIZ GOMA LTDA.",78,"Casa Matriz Santiago Dealer"]
[null,null,null,null,null,null,null,5933,"COMERCIAL AUTOMOTRIZ MIRANDA LTDA",78,"Casa Matriz Santiago Dealer"]
[null,null,null,null,null,null,null,5935,"REDWES CORREDORES DE SEGUROS SPA",90,"CM Central"]
[null,null,null,null,null,null,null,5941,"CONTARDO PERINETTI,PILAR",4,"Viña del Mar"]
[null,null,null,null,null,null,null,971,"BORQUEZ CORTEZ,FELIPE",17,"La Serena"]
[null,null,null,null,null,null,null,132,"TOLEDO YAÑEZ,BETZABE JACQUELINE",6,"Concepción"]
[null,null,null,null,null,null,null,133,"CABALLERO PEREZ,NATALIA ANDREA",6,"Concepción"]
[null,null,null,null,null,null,null,134,"HUEITRA ARRIAGADA,CAROLINE DEL CARMEN",6,"Concepción"]
[null,null,null,null,null,null,null,5629,"CHARLES ALVAREZ,JEANNETTE",15,"HDI Santiago"]
[null,null,null,null,null,null,null,5625,"ROGERS FONTECILLA RADRIGAN CORR. SEGUROS",9,"Puerto Montt"]
[null,null,null,null,null,null,null,5649,"TECH CORREDORES DE SEGUROS LIMITADA",1,"Advance"]
[null,null,null,null,null,null,null,8660,"EUROPARTS S.A",78,"Casa Matriz Santiago Dealer"]
[null,null,null,null,null,null,null,8661,"AUTOMOTRIZ CARTONI HERMANOS LTDA",57,"Vina del Mar Dealer"]
[null,null,null,null,null,null,null,8668,"AUTOMOTORA INALCAR S.A",78,"Casa Matriz Santiago Dealer"]
[null,null,null,null,null,null,null,8669,"APC COMERCIAL LTDA",78,"Casa Matriz Santiago Dealer"]
[null,null,null,null,null,null,null,8677,"AUTOMOTORA GAUT SPA",78,"Casa Matriz Santiago Dealer"]
[null,null,null,null,null,null,null,8681,"SUMOTORA   S.A.",78,"Casa Matriz Santiago Dealer"]
[null,null,null,null,null,null,null,8682,"SERV. INTEGRALES AL TRANSPORTE LTDA.",78,"Casa Matriz Santiago Dealer"]
[null,null,null,null,null,null,null,8683,"CENTRAL AUTOMOTORA LTDA.",78,"Casa Matriz Santiago Dealer"]
[null,null,null,null,null,null,null,8684,"COMERCIAL AUTOMOTRIZ QUILIN LTDA.",78,"Casa Matriz Santiago Dealer"]
[null,null,null,null,null,null,null,8685,"MMC CHILE S.A.",78,"Casa Matriz Santiago Dealer"]
[null,null,null,null,null,null,null,8686,"DAVIS AUTOS S.A.",78,"Casa Matriz Santiago Dealer"]
[null,null,null,null,null,null,null,891,"SAAVEDRA NAVARRETE, RODRIGO ALFREDO",15,"HDI Santiago"]
[null,null,null,null,null,null,null,950,"DURAN LEIVA,FLAVIO FERNANDO",53,"Partners"]
[null,null,null,null,null,null,null,5881,"SALAZAR SAVARESES,CARLOS ALBERTO",41,"Rancagua"]
[null,null,null,null,null,null,null,5882,"QUEZADA FUENTE,HERIBERTO",41,"Rancagua"]
[null,null,null,null,null,null,null,5883,"MACAYA LAGOS,CRISTIAN HORLANDO",41,"Rancagua"]
[null,null,null,null,null,null,null,6025,"PELLEGRINI IBAÑEZ,MARIA FRANCISCA",21,"HDI Plus"]
[null,null,null,null,null,null,null,6034,"CARRASCO SAIS,MARIO EDUARDO",31,"HDI Club"]
[null,null,null,null,null,null,null,6035,"TARQUINI JAQUEMIN,GASTON",31,"HDI Club"]
[null,null,null,null,null,null,null,6033,"ORTUZAR VERGARA,RAIMUNDO",31,"HDI Club"]
[null,null,null,null,null,null,null,5664,"ERRAZURIZ MORALES,CRESCENTE HERNAN",15,"HDI Santiago"]
[null,null,null,null,null,null,null,5690,"LAZCANO FERNANDEZ,DAYANNA",15,"HDI Santiago"]
[null,null,null,null,null,null,null,896,"ORTIZ MENDEZ,VICTOR",4,"Viña del Mar"]
[null,null,null,null,null,null,null,5950,"AFIANZA CORREDORES DE SEGUROS SPA",1,"Advance"]
[null,null,null,null,null,null,null,5986,"CORR. DE SEGUROS REBOLLEDO Y ASOC. LTDA.",6,"Concepción"]
[null,null,null,null,null,null,null,6013,"DEL ROSARIO CORREDORES DE SEGUROS SPA",80,"HDI Comercial"]
[null,null,null,null,null,null,null,6014,"ZABILSKY PAZ,DANA RIVKA",80,"HDI Comercial"]
[null,null,null,null,null,null,null,5959,"PEREZ SAN,MARTIN RENE HERNAN",17,"La Serena"]
[null,null,null,null,null,null,null,5958,"DIAZ TAPIA,CARLOS",17,"La Serena"]
[null,null,null,null,null,null,null,5960,"COMERCIAL ITALA S.A.",78,"Casa Matriz Santiago Dealer"]
[null,null,null,null,null,null,null,909,"DIAZ GONZALEZ,JOCELYN NICOLE",6,"Concepción"]
[null,null,null,null,null,null,null,5982,"B & B INSURANCEBROKERS SPA",15,"HDI Santiago"]
[null,null,null,null,null,null,null,615,"MENDEZ BONILLA,JOSELYN JESSICA",7,"Temuco"]
[null,null,null,null,null,null,null,616,"VALDERRAMA BURGOS,MARTA",7,"Temuco"]
[null,null,null,null,null,null,null,654,"LEON JOANNON,MARIA",5,"Talca"]
[null,null,null,null,null,null,null,5995,"EDWYN  TURNER ,CASENAVE",7,"Temuco"]
[null,null,null,null,null,null,null,5996,"DEVAUD DUBREUIL,CARLA ANDREA",7,"Temuco"]
[null,null,null,null,null,null,null,6005,"CARRILLO SILVA,ANGELICA",45,"Osorno"]
[null,null,null,null,null,null,null,6007,"FERNANDEZ CARRASCO,CHRISTIAN RODRIGO",3,"Antofagasta"]
[null,null,null,null,null,null,null,6031,"SER FINAN Y COR DE SEG TRANSLEASING LTDA",94,"Banca Seguros"]
[null,null,null,null,null,null,null,6038,"PIZARRO UGARTE,JOSEFINA",4,"Viña del Mar"]
[null,null,null,null,null,null,null,6041,"VM CORREDORES DE SEGUROS",31,"HDI Club"]
[null,null,null,null,null,null,null,6044,"SECURICE CORREDORES DE SEGUROS SPA",31,"HDI Club"]
[null,null,null,null,null,null,null,690,"TRIVIÑO ALTAMIRANO,ANA ELIZABETH",9,"Puerto Montt"]
[null,null,null,null,null,null,null,691,"TRIVIÑO ALTAMIRANO,ANA ELIZABETH",9,"Puerto Montt"]
[null,null,null,null,null,null,null,682,"DIRECTO BANCA",94,"Banca Seguros"]
[null,null,null,null,null,null,null,6085,"FRANULIC GARCIA-HUIDOBRO,MARKO",41,"Rancagua"]
[null,null,null,null,null,null,null,6953,"SANTANDER CORREDORA DE SEGUROS LTDA.",94,"Banca Seguros"]
[null,null,null,null,null,null,null,6954,"BANCOFALABELLA CORREDORES DE SEGUROS LTD",91,"CM Falabella"]
[null,null,null,null,null,null,null,8672,"AUTOMOTRIZ NICOLAS LTDA",65,"Copiapo Dealer"]
[null,null,null,null,null,null,null,8673,"SOCIEDAD DAUD E HIJOS LTDA.",63,"LaSerena Dealer"]
[null,null,null,null,null,null,null,8674,"ALPORT  S.A.",78,"Casa Matriz Santiago Dealer"]
[null,null,null,null,null,null,null,8675,"SOC.AUTOM.DANIEL ACHONDO S.A.",78,"Casa Matriz Santiago Dealer"]
[null,null,null,null,null,null,null,8676,"JORGE VALENZUELA V. Y CIA LTDA",78,"Casa Matriz Santiago Dealer"]
[null,null,null,null,null,null,null,550,"AGUIRRE JERALDO,VICTORIA CAROLINA",17,"La Serena"]
[null,null,null,null,null,null,null,5642,"CL RES CORREDORES DE SEGUROS SPA",15,"HDI Santiago"]
[null,null,null,null,null,null,null,320,"CONTRERAS  ASCUI, VANESSA LIDIA",15,"HDI Santiago"]
[null,null,null,null,null,null,null,8742,"COMERCIAL AUTOMOTRIZ JPN LTDA",78,"Casa Matriz Santiago Dealer"]
[null,null,null,null,null,null,null,5643,"FICA SAEZ,PAULA",44,"Los Angeles"]
[null,null,null,null,null,null,null,402,"PANES PEREZ,ANDREA ALEJANDRA",90,"CM Central"]
[null,null,null,null,null,null,null,403,"PANES PEREZ,ANDREA ALEJANDRA",90,"CM Central"]
[null,null,null,null,null,null,null,5746,"URRA LEIVA,OCTAVIO ANDRES",15,"HDI Santiago"]
[null,null,null,null,null,null,null,871,"VALENCIA URIBE,ANA ISABEL",38,"Corporate"]
[null,null,null,null,null,null,null,5887,"VALDES CACERES,CRISTIAN HERNAN",15,"HDI Santiago"]
[null,null,null,null,null,null,null,5888,"CISTERNAS MORAGA,NAGGELY IVONNE",17,"La Serena"]
[null,null,null,null,null,null,null,5991,"BALBONTIN IVER,JUAN ENRIQUE",4,"Viña del Mar"]
[null,null,null,null,null,null,null,5957,"AGCIA GENERAL CORREDORES DE SEGUROS SPA",15,"HDI Santiago"]
[null,null,null,null,null,null,null,4706,"LOPEZ LOPEZ,GILBERTO ALEJANDRO",3,"Antofagasta"]
[null,null,null,null,null,null,null,153,"LOPEZ LOPEZ,GILBERTO ALEJANDRO",3,"Antofagasta"]
[null,null,null,null,null,null,null,154,"LOPEZ LOPEZ,GILBERTO ALEJANDRO",3,"Antofagasta"]
[null,null,null,null,null,null,null,4707,"MILLA ALVAREZ,JUAN AURELIO",17,"La Serena"]
[null,null,null,null,null,null,null,155,"MILLA ALVAREZ,JUAN AURELIO",17,"La Serena"]
[null,null,null,null,null,null,null,1040,"DIRECTO COPIAPO",17,"La Serena"]
[null,null,null,null,null,null,null,156,"NANJARI ANDRADE,DANIELA",4,"Viña del Mar"]
[null,null,null,null,null,null,null,4708,"LEYVA PÉREZ,MIGDALIA",1,"Advance"]
[null,null,null,null,null,null,null,157,"SALVADOR  PICHARA, IGNACIO ANDRES",15,"HDI Santiago"]
[null,null,null,null,null,null,null,1047,"DIRECTO SANTIAGO",15,"HDI Santiago"]
[null,null,null,null,null,null,null,159,"BORTOLASO ALVARADO,EVELYN",15,"HDI Santiago"]
[null,null,null,null,null,null,null,1048,"DIRECTO LAS CONDES",15,"HDI Santiago"]
[null,null,null,null,null,null,null,163,"ANDRADE ALVAREZ,ALICIA",15,"HDI Santiago"]
[null,null,null,null,null,null,null,167,"OCARES ALVAREZ,VERONICA",15,"HDI Santiago"]
[null,null,null,null,null,null,null,1050,"DIRECTO PLAZA OESTE",15,"HDI Santiago"]
[null,null,null,null,null,null,null,169,"HUGOT  PABST, MICHEL ADRIEN",15,"HDI Santiago"]
[null,null,null,null,null,null,null,1051,"DIRECTO PORTAL RIESCO",15,"HDI Santiago"]
[null,null,null,null,null,null,null,279,"LARRAIN YANEZ,ROBERTO JAIME",53,"Partners"]
[null,null,null,null,null,null,null,7985,"RAMIREZ LOPEZ,PAULA",4,"Viña del Mar"]
[null,null,null,null,null,null,null,489,"CACERES ARAYA,SANDRA INES",15,"HDI Santiago"]
[null,null,null,null,null,null,null,490,"RODRIGUEZ HERMAN,TAMARA ALEJANDRA",15,"HDI Santiago"]
[null,null,null,null,null,null,null,6951,"GARRIDO ORDOIZA,JUAN CARLOS",4,"Viña del Mar"]
[null,null,null,null,null,null,null,5897,"CITROEN CHILE S.A.C",78,"Casa Matriz Santiago Dealer"]
[null,null,null,null,null,null,null,991,"PEÑA GALAZ,FERNANDA MARCELA",38,"Corporate"]
[null,null,null,null,null,null,null,5955,"M BROWKERS SPA",44,"Los Angeles"]
[null,null,null,null,null,null,null,6027,"D Y F CORREDORES DE SEGUROS SPA",15,"HDI Santiago"]
[null,null,null,null,null,null,null,1027,"MAUREIRA ILLANES,MICHELLE BARBARA A.",7,"Temuco"]
[null,null,null,null,null,null,null,5956,"LLANOS CASTELLON,SEBASTIAN NICOLAS",15,"HDI Santiago"]
[null,null,null,null,null,null,null,5610,"LOPEZ CASTRO,SANDRA MARGARITA DEL",45,"Osorno"]
[null,null,null,null,null,null,null,5652,"ABC CORREDORES DE SEGUROS LIMITADA",15,"HDI Santiago"]
[null,null,null,null,null,null,null,701,"ENCINA ACEVEDO,OSCAR EDUARDO",53,"Partners"]
[null,null,null,null,null,null,null,702,"LUCO AGUAYO,CAROLA VERONICA",41,"Rancagua"]
[null,null,null,null,null,null,null,5655,"CORREDORA DE SEGUROS MARISOL STAHL ESPIN",7,"Temuco"]
[null,null,null,null,null,null,null,703,"FUENTES  ORDENES, CINTHIA SANDRA",2,"Iquique"]
[null,null,null,null,null,null,null,704,"LARENAS MONSALVES,JAIME RAMON",78,"Casa Matriz Santiago Dealer"]
[null,null,null,null,null,null,null,705,"RIFFO BARRAZA,HERMES JORGE",78,"Casa Matriz Santiago Dealer"]
[null,null,null,null,null,null,null,706,"VIVALLO NUÑEZ,LIZANDRO ESTEBAN",78,"Casa Matriz Santiago Dealer"]
[null,null,null,null,null,null,null,880,"WILLIAMS ALVARADO,LUIS",38,"Corporate"]
[null,null,null,null,null,null,null,907,"RODRIGUEZ VASQUEZ,STEPHANY",44,"Los Angeles"]
[null,null,null,null,null,null,null,908,"RODRIGUEZ VASQUEZ,STEPHANY",44,"Los Angeles"]
[null,null,null,null,null,null,null,6032,"RIVAS CRETIER,WALDO PATRICIO",6,"Concepción"]
[null,null,null,null,null,null,null,6100,"AUTOMOTRIZ VERSAILLES",78,"Casa Matriz Santiago Dealer"]
[null,null,null,null,null,null,null,6101,"COMERCIAL KAUFMANN S.A.",78,"Casa Matriz Santiago Dealer"]
[null,null,null,null,null,null,null,6002,"LARENAS FUENTEALBA,OSCAR",9,"Puerto Montt"]
[null,null,null,null,null,null,null,6717,"GONZALEZ GUTIERREZ,NATHALIA LORENA",6,"Concepción"]
[null,null,null,null,null,null,null,6721,"CARTES VALDIVIA,JIMMY ARTURO",6,"Concepción"]
[null,null,null,null,null,null,null,6722,"LEMP VILLAGRAN,REINALDO ERWIN",6,"Concepción"]
[null,null,null,null,null,null,null,6730,"PATRICIA PINTO Y COMPAÑÍA SPA",6,"Concepción"]
[null,null,null,null,null,null,null,6732,"PORTER BURZIO,JORGE GUILLERMO",6,"Concepción"]
[null,null,null,null,null,null,null,6733,"RENE VALDERRAMA Y CIA. LTDA.",6,"Concepción"]
[null,null,null,null,null,null,null,6734,"REYES VASQUEZ,VICTORIA EDITH",6,"Concepción"]
[null,null,null,null,null,null,null,6737,"SANHUEZA HIDALGO,EDUARDO IVAN",6,"Concepción"]
[null,null,null,null,null,null,null,6744,"AGUIRRE FUENTES,ESPERANZA CLARA",5,"Talca"]
[null,null,null,null,null,null,null,6746,"CORTES MATURANA,FRANCISCO JOSE DE MO",5,"Talca"]
[null,null,null,null,null,null,null,6747,"FOLLERT BRAVO,LILIANA ISABEL",5,"Talca"]
[null,null,null,null,null,null,null,6748,"GUTIERREZ AREVALO,MARISOL DEL CARMEN",5,"Talca"]
[null,null,null,null,null,null,null,6749,"JULIET DUEÑAS,MARINA DE FATIMA",5,"Talca"]
[null,null,null,null,null,null,null,430,"LILLO BRAVO,YOCELYN ALEJANDRA",53,"Partners"]
[null,null,null,null,null,null,null,431,"MARTIN CID,PAMELA ALEJANDRA",53,"Partners"]
[null,null,null,null,null,null,null,432,"REVECO ZUÑIGA,JOSE",53,"Partners"]
[null,null,null,null,null,null,null,433,"SALAZAR RUZ,LUZMIRA",53,"Partners"]
[null,null,null,null,null,null,null,434,"NAVARRETE AVENDAÑO,ROMINA",53,"Partners"]
[null,null,null,null,null,null,null,435,"GALLARDO MERINO,JOSE IGNACIO",53,"Partners"]
[null,null,null,null,null,null,null,436,"CARRASCO PINCETTI,SILVIA VIVIANA",53,"Partners"]
[null,null,null,null,null,null,null,437,"SMITH ANCAMIL,ADAM SAMUEL",53,"Partners"]
[null,null,null,null,null,null,null,621,"FERRADA NAHUELFIL,NICOLE",7,"Temuco"]
[null,null,null,null,null,null,null,286,"PAREDES SANCHEZ,ALBERTO JAVIER",15,"HDI Santiago"]
[null,null,null,null,null,null,null,546,"PAREDES SANCHEZ,ALBERTO JAVIER",15,"HDI Santiago"]
[null,null,null,null,null,null,null,8690,"AUTOMOTORA DEL MAULE",67,"Curico Dealer"]
[null,null,null,null,null,null,null,5647,"CONTRERAS V.,CARMEN GLORIA",6,"Concepción"]
[null,null,null,null,null,null,null,762,"ALVAREZ PEREZ,BARBARA BELEN",23,"HDI.CL"]
[null,null,null,null,null,null,null,763,"PEREZ  FARIAS, VANINA MAKARENA",23,"HDI.CL"]
[null,null,null,null,null,null,null,873,"VIDAL CESPED,JOHANNA DANIELA",80,"HDI Comercial"]
[null,null,null,null,null,null,null,1081,"HDI KLUB CORREDORES",80,"HDI Comercial"]
[null,null,null,null,null,null,null,5902,"VON PLESSING ROSSEL,LUDWIGL",6,"Concepción"]
[null,null,null,null,null,null,null,649,"CARMONA ZAMORA,PAULA",2,"Iquique"]
[null,null,null,null,null,null,null,642,"CARMONA ZAMORA,PAULA",2,"Iquique"]
[null,null,null,null,null,null,null,6564,"BROKERS DE SEGUROS NETWORK MANAGMENT GRI",41,"Rancagua"]
[null,null,null,null,null,null,null,6569,"DE LARDEREL EYQUEM,GIAN PAOLO",15,"HDI Santiago"]
[null,null,null,null,null,null,null,6572,"OLIVARES DELPIN,CHRISTIAN LUIS",15,"HDI Santiago"]
[null,null,null,null,null,null,null,6577,"SILVA BRINCK,JOSE ANDRES",15,"HDI Santiago"]
[null,null,null,null,null,null,null,6582,"ALTAMIRANO ALVARADO,JOSE ROLANDO",9,"Puerto Montt"]
[null,null,null,null,null,null,null,6584,"FRANCKE DE LA BARRA,EDUARDO EMILIO",9,"Puerto Montt"]
[null,null,null,null,null,null,null,6585,"GARCIA ANDRADE,ROSA ESTER",9,"Puerto Montt"]
[null,null,null,null,null,null,null,6586,"OYARZO PROSCHLE,HECTOR ALEJANDRO",9,"Puerto Montt"]
[null,null,null,null,null,null,null,6588,"MANRIQUEZ CARRASCO,LUIS CARLOS",9,"Puerto Montt"]
[null,null,null,null,null,null,null,6590,"MUÑOZ REBOLLEDO,DAVID",9,"Puerto Montt"]
[null,null,null,null,null,null,null,6591,"OYARZUN ANDRADE,PATRICIA MARÍA",9,"Puerto Montt"]
[null,null,null,null,null,null,null,6592,"OYARZUN VELASQUEZ,IVAN DANIEL",9,"Puerto Montt"]
[null,null,null,null,null,null,null,6593,"PATRICIO CANCINO ALARCON CORR DE SEG EIR",9,"Puerto Montt"]
[null,null,null,null,null,null,null,6595,"PROD DE SEG FRANCISCO SCHRODER Y CIA LTD",45,"Osorno"]
[null,null,null,null,null,null,null,6597,"RSB CORREDORES DE SEGUROS EIRL",45,"Osorno"]
[null,null,null,null,null,null,null,6598,"SANHUEZA ARAVENA,JULIO EDMUNDO",9,"Puerto Montt"]
[null,null,null,null,null,null,null,7349,"AUTOMOTRIZ RODRIGUEZ LIMITADA",78,"Casa Matriz Santiago Dealer"]
[null,null,null,null,null,null,null,7350,"AUTOMOVILES DEL SUR",78,"Casa Matriz Santiago Dealer"]
[null,null,null,null,null,null,null,7353,"BALCO AUT.LTDA.",78,"Casa Matriz Santiago Dealer"]
[null,null,null,null,null,null,null,7361,"CIA. COMERCIAL DE INV. AUTOMOTRICES LTDA",78,"Casa Matriz Santiago Dealer"]
[null,null,null,null,null,null,null,7363,"FULL MOTOS S.A.",78,"Casa Matriz Santiago Dealer"]
[null,null,null,null,null,null,null,7365,"COMERCIALIZADORA EBUYIN LTDA.",78,"Casa Matriz Santiago Dealer"]
[null,null,null,null,null,null,null,7369,"DERCOMAQ S.A.",78,"Casa Matriz Santiago Dealer"]
[null,null,null,null,null,null,null,7370,"DERCO S.P.A.",78,"Casa Matriz Santiago Dealer"]
[null,null,null,null,null,null,null,7381,"FORUM SERVICIOS FINANCIEROS S.A",78,"Casa Matriz Santiago Dealer"]
[null,null,null,null,null,null,null,7383,"GENERAL MOTORS FINANCIAL CHILE LIMITADA",78,"Casa Matriz Santiago Dealer"]
[null,null,null,null,null,null,null,7384,"AUTOMOTRIZ ALVARO GRACIA E.I.R.L.",78,"Casa Matriz Santiago Dealer"]
[null,null,null,null,null,null,null,7385,"HERNANDEZ  MOTORES  S.A.C.I.",57,"Vina del Mar Dealer"]
[null,null,null,null,null,null,null,7389,"KOVACS & RODRIGUEZ S.A.",78,"Casa Matriz Santiago Dealer"]
[null,null,null,null,null,null,null,6527,"VIVERO PENA,PABLO MOISES",45,"Osorno"]
[null,null,null,null,null,null,null,6529,"AGORA CORR.DE SEGUROS SPA.",15,"HDI Santiago"]
[null,null,null,null,null,null,null,6531,"DOMEYKO Y CIA LTDA.",15,"HDI Santiago"]
[null,null,null,null,null,null,null,6532,"EGR CORREDORA DE SEGUROS S.A.",15,"HDI Santiago"]
[null,null,null,null,null,null,null,6538,"MAGNET Y VARELA CORREDORES DE SEGUROS LT",15,"HDI Santiago"]
[null,null,null,null,null,null,null,6544,"OCHOA CONTRERAS,ALEX JOEL",15,"HDI Santiago"]
[null,null,null,null,null,null,null,6545,"BEYTIA ROSENDE,OSCAR ALFREDO",15,"HDI Santiago"]
[null,null,null,null,null,null,null,6546,"R & BMG CORREDORES DE SEGUROS LTDA",15,"HDI Santiago"]
[null,null,null,null,null,null,null,6552,"ECHEVERIA DOMINGUEZ,FRANCISCO JAVIER",15,"HDI Santiago"]
[null,null,null,null,null,null,null,6553,"MEZA MURA,LUIS EDUARDO",15,"HDI Santiago"]
[null,null,null,null,null,null,null,6554,"SOBRINO CORTEZ,LUZ GRACIELA",15,"HDI Santiago"]
[null,null,null,null,null,null,null,6557,"NYN LIFE CORR DE SEG NATHALI PEREZ ESCOB",80,"HDI Comercial"]
[null,null,null,null,null,null,null,6599,"SCHWERTER TRUJILLO,JUAN FRANCISCO",9,"Puerto Montt"]
[null,null,null,null,null,null,null,6600,"SERGIO CRISTIAN VARELA HERRERA",9,"Puerto Montt"]
[null,null,null,null,null,null,null,6601,"SOLIS VIDAL,XIMENA ELENA",9,"Puerto Montt"]
[null,null,null,null,null,null,null,7394,"NECOCHEA ASPILLAGA,JORGE ROBERTO",78,"Casa Matriz Santiago Dealer"]
[null,null,null,null,null,null,null,7395,"MARUBENI HOLDING LIMITADA",78,"Casa Matriz Santiago Dealer"]
[null,null,null,null,null,null,null,7396,"NUEVOS S.A.",78,"Casa Matriz Santiago Dealer"]
[null,null,null,null,null,null,null,7397,"PERSICO MOTORS",78,"Casa Matriz Santiago Dealer"]
[null,null,null,null,null,null,null,7403,"RICARDO OPORTOT LIMITADA",15,"HDI Santiago"]
[null,null,null,null,null,null,null,7404,"ROMERO GUZMAN,JOSE LUIS",15,"HDI Santiago"]
[null,null,null,null,null,null,null,6764,"GUZMAN LYON,ROBERTO ARTURO",15,"HDI Santiago"]
[null,null,null,null,null,null,null,580,"RAMOS ROJAS,JENNIFER ELSA",53,"Partners"]
[null,null,null,null,null,null,null,7042,"TOLEDO YAÑEZ,BETZABE JACQUELINE",6,"Concepción"]
[null,null,null,null,null,null,null,590,"BORTOLASO ALVARADO,EVELYN",15,"HDI Santiago"]
[null,null,null,null,null,null,null,591,"QUEZADA VARGAS,BYRON ANDRES",15,"HDI Santiago"]
[null,null,null,null,null,null,null,208,"URTUBIA ROMERO,ROMINA ANDREA",15,"HDI Santiago"]
[null,null,null,null,null,null,null,4645,"BORTOLASO ALVARADO,EVELYN",15,"HDI Santiago"]
[null,null,null,null,null,null,null,4647,"BORTOLASO ALVARADO,EVELYN",15,"HDI Santiago"]
[null,null,null,null,null,null,null,209,"URTUBIA ROMERO,ROMINA ANDREA",15,"HDI Santiago"]
[null,null,null,null,null,null,null,5591,"RUCAMALEN CORREDORES DE SEGUROS SPA",31,"HDI Club"]
[null,null,null,null,null,null,null,493,"VALENZUELA INOSTROZA,GIOVANNA",15,"HDI Santiago"]
[null,null,null,null,null,null,null,494,"MARIÑANCO  VALENZUELA, FELIPE IGNACIO",15,"HDI Santiago"]
[null,null,null,null,null,null,null,495,"VILLALON  DIAZ, GLADYS LYDIA",15,"HDI Santiago"]
[null,null,null,null,null,null,null,438,"RIOS PEREZ,MARIA ELSA",53,"Partners"]
[null,null,null,null,null,null,null,439,"ROJAS RUZ,MARIA TERESA",53,"Partners"]
[null,null,null,null,null,null,null,441,"SILVA DELGADO,TATIANA",53,"Partners"]
[null,null,null,null,null,null,null,442,"HAROLD LOYOLA,HAROLD",53,"Partners"]
[null,null,null,null,null,null,null,5684,"AGS CORREDORES DE SEGUROS LIMITADA",15,"HDI Santiago"]
[null,null,null,null,null,null,null,5689,"EMPERIALE Y SOBARZO CORRED. SEGUROS SPA",4,"Viña del Mar"]
[null,null,null,null,null,null,null,5698,"VILLA RIVAS,CECILIA",6,"Concepción"]
[null,null,null,null,null,null,null,5706,"LOS VALLES CORREDORES DE SEGUROS SPA",15,"HDI Santiago"]
[null,null,null,null,null,null,null,6604,"HERRERA BUGUEÑO,FELIPE ESTEBAN",17,"La Serena"]
[null,null,null,null,null,null,null,6609,"CORR. DE SEG. E INVER. DONOSO Y CIA LTDA",53,"Partners"]
[null,null,null,null,null,null,null,6611,"CASTRO SALAZAR,JACQUELINE CAROL",2,"Iquique"]
[null,null,null,null,null,null,null,6612,"DE LA GUARDA CAMINOS,GUSTAVO ANTONIO",2,"Iquique"]
[null,null,null,null,null,null,null,6615,"ZUÑIGA TELLO,ESMERALDO",2,"Iquique"]
[null,null,null,null,null,null,null,6617,"BORDACHAR SOTOMAYOR,GEORGE RAPHAEL",5,"Talca"]
[null,null,null,null,null,null,null,6618,"CORDOVA DUARTE,MARIA FRANCISCA",41,"Rancagua"]
[null,null,null,null,null,null,null,6619,"CORREDORA DE SEG. GLORIA MUÑOZ REYES SPA",5,"Talca"]
[null,null,null,null,null,null,null,6620,"DAZA ALVAREZ,CARMEN GLORIA",41,"Rancagua"]
[null,null,null,null,null,null,null,6621,"MUNOZ GONZALEZ,CARMEN PAZ",41,"Rancagua"]
[null,null,null,null,null,null,null,6622,"UBILLA URZUA,JUAN PABLO",5,"Talca"]
[null,null,null,null,null,null,null,6623,"VALDEBENITO ARRIAGADA,JESUS DEL ROSARIO",41,"Rancagua"]
[null,null,null,null,null,null,null,6624,"VALDERRAMA CESPEDES,MARCELO IGOR",41,"Rancagua"]
[null,null,null,null,null,null,null,6630,"BURGOS CONTRERAS,JORGE IVAN",7,"Temuco"]
[null,null,null,null,null,null,null,6631,"CASTRO CASTRO,MARIO CESAR",7,"Temuco"]
[null,null,null,null,null,null,null,6632,"HERRERA CONTRERAS,GABRIEL GERMAN",7,"Temuco"]
[null,null,null,null,null,null,null,6633,"MARDONES SOUBLETTE,ERIKA PAULINA",7,"Temuco"]
[null,null,null,null,null,null,null,6634,"MULLER CARVAJAL,MARIANELA",7,"Temuco"]
[null,null,null,null,null,null,null,6635,"ORDONEZ ORDONEZ,MAXIMILIANO",7,"Temuco"]
[null,null,null,null,null,null,null,6636,"QUINTAS HARRIET,MARTA JEANNETTE",7,"Temuco"]
[null,null,null,null,null,null,null,6637,"RIADY ALEUY,YANIRA YAZMIN",7,"Temuco"]
[null,null,null,null,null,null,null,6638,"URRUTIA MORA,LUIS ALBERTO",9,"Puerto Montt"]
[null,null,null,null,null,null,null,150,"VILLARROEL ZAMBRA,YASNA PATRICIA",17,"La Serena"]
[null,null,null,null,null,null,null,151,"MANSILLA PANATT,CAROLINA INES",17,"La Serena"]
[null,null,null,null,null,null,null,451,"OLMEDO CAMPOS,LISSETTE CAROLINA",4,"Viña del Mar"]
[null,null,null,null,null,null,null,452,"MONARDES  VASQUEZ, CAROLINA PATRICIA",4,"Viña del Mar"]
[null,null,null,null,null,null,null,801,"DURAN PONCE,MARGARITA",17,"La Serena"]
[null,null,null,null,null,null,null,453,"BASCUÑAN  ACUÑA, ANA ELIZABETH",4,"Viña del Mar"]
[null,null,null,null,null,null,null,460,"BETANCOURT  CARO, KAREN MARIELA",4,"Viña del Mar"]
[null,null,null,null,null,null,null,4703,"SALVADOR PICHARA,IGNACIO ANDRES",15,"HDI Santiago"]
[null,null,null,null,null,null,null,250,"PEREZ QUELOPANA,GLADYS VICTORIA",15,"HDI Santiago"]
[null,null,null,null,null,null,null,251,"SALDIAS  CORNEJO, JUAN CARLOS",15,"HDI Santiago"]
[null,null,null,null,null,null,null,252,"CONTRERAS CONTRERAS,NICOLAS ROBERTO",15,"HDI Santiago"]
[null,null,null,null,null,null,null,253,"CACERES ARAYA,SANDRA INES",15,"HDI Santiago"]
[null,null,null,null,null,null,null,255,"CAMPOS GODOY,MARIA CRISITNA",15,"HDI Santiago"]
[null,null,null,null,null,null,null,256,"GIMENEZ FLORES,ROCIO BEATRIZ",15,"HDI Santiago"]
[null,null,null,null,null,null,null,461,"VILLARROEL ZAMBRA,YASNA PATRICIA",17,"La Serena"]
[null,null,null,null,null,null,null,462,"MANSILLA PANATT,CAROLINA INES",17,"La Serena"]
[null,null,null,null,null,null,null,463,"CAMPOS GODOY,MARIA CRISITNA",15,"HDI Santiago"]
[null,null,null,null,null,null,null,464,"GIMENEZ FLORES,ROCIO BEATRIZ",15,"HDI Santiago"]
[null,null,null,null,null,null,null,8416,"TORRES BARILE MUÑOZ,BARBARA PÍA",15,"HDI Santiago"]
[null,null,null,null,null,null,null,4704,"AIROLA WLACK,ITALO AQUILES",41,"Rancagua"]
[null,null,null,null,null,null,null,595,"SALAZAR ZAMORANO,LUIS EUGENIO",41,"Rancagua"]
[null,null,null,null,null,null,null,8667,"HDI SEGUROS ARGENTINA",23,"HDI.CL"]
[null,null,null,null,null,null,null,611,"LARRAIN YANEZ,ROBERTO JAIME",23,"HDI.CL"]
[null,null,null,null,null,null,null,5618,"RCA CORREDORES DE SEGUROS LTDA",15,"HDI Santiago"]
[null,null,null,null,null,null,null,5669,"CORREDORA DE SEGUROS BERNARDITA SANDOVAL",44,"Los Angeles"]
[null,null,null,null,null,null,null,870,"ORTIZ MENDEZ,VICTOR",4,"Viña del Mar"]
[null,null,null,null,null,null,null,5817,"HAUYON OYANADEL,PAMELA EPIFANIA",3,"Antofagasta"]
[null,null,null,null,null,null,null,5818,"ARANDA TELLO, PEDRO ANTONIO",7,"Temuco"]
[null,null,null,null,null,null,null,5825,"TRAUT ZAPATA, KATHERYN NATALY",7,"Temuco"]
[null,null,null,null,null,null,null,5826,"RODRIGUEZ GLAVES, CLAUDIA VERONICA",4,"Viña del Mar"]
[null,null,null,null,null,null,null,888,"BORQUEZ CORTEZ,FELIPE",80,"HDI Comercial"]
[null,null,null,null,null,null,null,5854,"ESCOBAR VILLAREAL,IGNACIO",15,"HDI Santiago"]
[null,null,null,null,null,null,null,5931,"CARDEMIL H,JOAQUIN",5,"Talca"]
[null,null,null,null,null,null,null,5934,"LAVERGNE SIFON,EDAGRD MAURICE",4,"Viña del Mar"]
[null,null,null,null,null,null,null,5972,"INZUNZA RIVEROS,FELIPE ANDRES",41,"Rancagua"]
[null,null,null,null,null,null,null,670,"SALVADOR BARRIA,CLAUDIA ALEJANDRA",15,"HDI Santiago"]
[null,null,null,null,null,null,null,674,"BERRIOS DONOSO,ALVARO BENJAMIN",15,"HDI Santiago"]
[null,null,null,null,null,null,null,6644,"DA COSTA BRITO,ROSITA MARIA",15,"HDI Santiago"]
[null,null,null,null,null,null,null,6645,"DIAZ BARROS,JULIO HERNAN",15,"HDI Santiago"]
[null,null,null,null,null,null,null,6646,"GRUPO GLOBAL CORR DE SEGUROS LTDA",53,"Partners"]
[null,null,null,null,null,null,null,6648,"RENE ANDRES KATZ MEDINA",15,"HDI Santiago"]
[null,null,null,null,null,null,null,6649,"LEIVA MESA,ALEJANDRO MARCELO",15,"HDI Santiago"]
[null,null,null,null,null,null,null,6651,"MA.CONSTANZA BARROS UGARTE CORR.SEG.EIRL",15,"HDI Santiago"]
[null,null,null,null,null,null,null,6653,"MV ASOCIADOS CORREDORES DE SEGUROS SPA",15,"HDI Santiago"]
[null,null,null,null,null,null,null,6655,"TORRES VARGAS,ALEJANDRA ANDREA",15,"HDI Santiago"]
[null,null,null,null,null,null,null,6657,"WILLIAMSON WENSEL,ELIZABETH CECILIA",15,"HDI Santiago"]
[null,null,null,null,null,null,null,6660,"BUSTOS SANTELICES,ANA MARIA",15,"HDI Santiago"]
[null,null,null,null,null,null,null,6661,"CORR DE SEG ANTONIO MARTINEZ MACHUCA EIR",15,"HDI Santiago"]
[null,null,null,null,null,null,null,6663,"DIAZ RIVAS,CECILIA DEL CARMEN",4,"Viña del Mar"]
[null,null,null,null,null,null,null,6666,"PROD. DE SEG. PV LTDA.",15,"HDI Santiago"]
[null,null,null,null,null,null,null,6668,"JERIA MORIAMEZ,MARIA ISABEL",3,"Antofagasta"]
[null,null,null,null,null,null,null,6669,"LUIS PEREZ Y ASOC CORR DE SEG LTDA",3,"Antofagasta"]
[null,null,null,null,null,null,null,6750,"KUFFERATH YAÑEZ,EDUARDO ANDRES",5,"Talca"]
[null,null,null,null,null,null,null,6752,"LETELIER VENEGAS,RINA CLAUDIA",5,"Talca"]
[null,null,null,null,null,null,null,6753,"MACHADO CARRION,RICARDO EDUARDO",5,"Talca"]
[null,null,null,null,null,null,null,6754,"MOLINA SANTANA,YENNY OLAYA.",5,"Talca"]
[null,null,null,null,null,null,null,6756,"RIQUELME PINCHEIRA,MARIA CRISTINA",5,"Talca"]
[null,null,null,null,null,null,null,6758,"TORRES AYALA,PATRICIO ANTONIO",5,"Talca"]
[null,null,null,null,null,null,null,6674,"B Y F CORREDORES DE SEGUROS LTDA.",15,"HDI Santiago"]
[null,null,null,null,null,null,null,6675,"BRAVO FLORES,SERGIO ROBERTO",15,"HDI Santiago"]
[null,null,null,null,null,null,null,6679,"CORNEJO BURGOS,LUIS DANIEL",15,"HDI Santiago"]
[null,null,null,null,null,null,null,6684,"J.C.JERIA CORREDORES DE SEGUROS CIA LTDA",15,"HDI Santiago"]
[null,null,null,null,null,null,null,5562,"TRIO CORREDORES DE SEGUROS SPA",5,"Talca"]
[null,null,null,null,null,null,null,8688,"SERGIO ESCOBAR SPA",78,"Casa Matriz Santiago Dealer"]
[null,null,null,null,null,null,null,8689,"PRO MOTORS S A",78,"Casa Matriz Santiago Dealer"]
[null,null,null,null,null,null,null,862,"AVENDAÑO BARRIENTOS,PATRICIA",15,"HDI Santiago"]
[null,null,null,null,null,null,null,863,"FERNANDEZ SAN MARTIN,PAULA",1,"Advance"]
[null,null,null,null,null,null,null,5827,"AMPM CORREDORES DE SEGUROS SPA",15,"HDI Santiago"]
[null,null,null,null,null,null,null,960,"CURALLANCA NOVA,VANESSA",6,"Concepción"]
[null,null,null,null,null,null,null,608,"GARRIDO BRAVO,CARLA SOFIA",4,"Viña del Mar"]
[null,null,null,null,null,null,null,5926,"MONTENEGRO VALDES,ELIANA EUGENIA",4,"Viña del Mar"]
[null,null,null,null,null,null,null,5927,"MONDACA URBINA,PATRICIO JORGE",4,"Viña del Mar"]
[null,null,null,null,null,null,null,5928,"SOTO MANCILLA,JORGE ARTURO",4,"Viña del Mar"]
[null,null,null,null,null,null,null,5929,"SANDRA BEGLIOMINI CORREDORA DE SEG. SPA",3,"Antofagasta"]
[null,null,null,null,null,null,null,1022,"MENDEZ BONILLA,JOSELYN JESSICA",7,"Temuco"]
[null,null,null,null,null,null,null,5943,"COM. DEL REAL E HIJOS  LTDA.",66,"Rancagua Dealer"]
[null,null,null,null,null,null,null,5976,"SALVCOR CORREDORES DE SEGUROSSPA",15,"HDI Santiago"]
[null,null,null,null,null,null,null,6018,"CORREDORA DE SEG. CAROLINA MATTEI EIRL",3,"Antofagasta"]
[null,null,null,null,null,null,null,6019,"LAGUNAS MORALES,JULIO CESAR",3,"Antofagasta"]
[null,null,null,null,null,null,null,6039,"ATENEA CORREDORES DE SEGUROS SPA",80,"HDI Comercial"]
[null,null,null,null,null,null,null,6759,"VASQUEZ MULLER,JORGE ALFONSO",5,"Talca"]
[null,null,null,null,null,null,null,6761,"BELLOLIO RODRIGUEZ,JOSE IGNACIO",15,"HDI Santiago"]
[null,null,null,null,null,null,null,6762,"CONCHA CARRASCO,TANIA",1,"Advance"]
[null,null,null,null,null,null,null,6766,"MARTINEZ CONCHA,MARIA LORETO",1,"Advance"]
[null,null,null,null,null,null,null,6767,"TRANSEGUROS CORR. DE SEG LTDA.",1,"Advance"]
[null,null,null,null,null,null,null,6768,"ARAYA VELIZ,ANITA MARIA",17,"La Serena"]
[null,null,null,null,null,null,null,6769,"CARRASCO PAEZ,ENEDIS DEL CARMEN",17,"La Serena"]
[null,null,null,null,null,null,null,6772,"AGUILAR O´SHEE,ESTEBAN A.",4,"Viña del Mar"]
[null,null,null,null,null,null,null,6775,"ASTUDILLO LEMUS,MARCELA",4,"Viña del Mar"]
[null,null,null,null,null,null,null,6779,"CISTERNAS PINOCHET,CARLOS ERNESTO",4,"Viña del Mar"]
[null,null,null,null,null,null,null,6782,"MARCELA HERRERA CORRED. DE SEG. Y CIA.",4,"Viña del Mar"]
[null,null,null,null,null,null,null,6785,"MACAGNAN NAVARRO,MARIA JOSE",4,"Viña del Mar"]
[null,null,null,null,null,null,null,6786,"MANCILLA MANSILLA,MIRIAM GLADYS",4,"Viña del Mar"]
[null,null,null,null,null,null,null,6790,"OYARZUN ALCAZAR,JOSE ROLANDO",4,"Viña del Mar"]
[null,null,null,null,null,null,null,6796,"SILVA CIFUENTES,JUVENAL EDUARDO",4,"Viña del Mar"]
[null,null,null,null,null,null,null,8679,"DIRECTO NEGOCIOS MASIVOS",90,"CM Central"]
[null,null,null,null,null,null,null,5701,"BLANCO VIDAL,RODRIGO",6,"Concepción"]
[null,null,null,null,null,null,null,847,"VEGA NARVAEZ,VALENTINA",38,"Corporate"]
[null,null,null,null,null,null,null,867,"BRAVO RIVERA,JOHANA",3,"Antofagasta"]
[null,null,null,null,null,null,null,883,"RODRIGUEZ REYES,SANDRA GABRIELA",5,"Talca"]
[null,null,null,null,null,null,null,884,"SERRANO  GONZALEZ, RICARDO MARTIN",5,"Talca"]
[null,null,null,null,null,null,null,5894,"JUAREZ JAUREGUI,NORMA",17,"La Serena"]
[null,null,null,null,null,null,null,5895,"REY VERDUGO,RAMON",5,"Talca"]
[null,null,null,null,null,null,null,903,"LANDSKRON RODRIGUEZ,DOMINIQUE ANGELICA",38,"Corporate"]
[null,null,null,null,null,null,null,6048,"GLOBAL AUTOS S.A",71,"Punta Arenas Dealer"]
[null,null,null,null,null,null,null,6051,"SOCIEDAD COMERCIAL AUTOCORP LIMITADA",78,"Casa Matriz Santiago Dealer"]
[null,null,null,null,null,null,null,6052,"COMERCIAL GRASS Y ARUESTE LTDA.",78,"Casa Matriz Santiago Dealer"]
[null,null,null,null,null,null,null,6053,"G.R. VALDIVIELSO S.A.",78,"Casa Matriz Santiago Dealer"]
[null,null,null,null,null,null,null,6054,"BALADRON E HIJOS SPA",78,"Casa Matriz Santiago Dealer"]
[null,null,null,null,null,null,null,6055,"COMERCIAL COPELEC S.A.",78,"Casa Matriz Santiago Dealer"]
[null,null,null,null,null,null,null,6057,"AUTOMOTORA BYB SPA",78,"Casa Matriz Santiago Dealer"]
[null,null,null,null,null,null,null,6058,"DANILO JORDAN S A",78,"Casa Matriz Santiago Dealer"]
[null,null,null,null,null,null,null,6070,"VILLEGAS Y ASOCIADOS CORREDORES DE SEGUR",17,"La Serena"]
[null,null,null,null,null,null,null,6077,"COMUNIDAD FELIZ SPA",21,"HDI Plus"]
[null,null,null,null,null,null,null,6086,"CHILOE MOTORES LTDA",78,"Casa Matriz Santiago Dealer"]
[null,null,null,null,null,null,null,6801,"HEYNE PONCE, MATIA IGNACIO",2,"Iquique"]
[null,null,null,null,null,null,null,6802,"ALTA FE CORREDORES DE SEGUROS SPA",44,"Los Angeles"]
[null,null,null,null,null,null,null,6804,"EL ROBLE CORREDORES DE SEGUROS LTDA",44,"Los Angeles"]
[null,null,null,null,null,null,null,6806,"FUENTES ORELLANA,CARLOS",44,"Los Angeles"]
[null,null,null,null,null,null,null,6809,"RODRIGO LAGOS REDDERSEN CORR. DE SEG. EI",44,"Los Angeles"]
[null,null,null,null,null,null,null,6810,"RODRIGUEZ ARRIAGADA,SILVIA ELIANA",44,"Los Angeles"]
[null,null,null,null,null,null,null,6811,"RUEDI SILVA,MARIA ANTONIETA",44,"Los Angeles"]
[null,null,null,null,null,null,null,6813,"SOC CORR DE SEG COPELEC LTDA",44,"Los Angeles"]
[null,null,null,null,null,null,null,6814,"WILHELM PERELMAN,SONIA INES",44,"Los Angeles"]
[null,null,null,null,null,null,null,6815,"BURGOS Y CIA. CORREDORES DE SEGUROS LTDA",1,"Advance"]
[null,null,null,null,null,null,null,6816,"EXIT CHILE CORRED. DE SEG.",31,"HDI Club"]
[null,null,null,null,null,null,null,6817,"BILBAO SALGADO,ROSA LISSET",15,"HDI Santiago"]
[null,null,null,null,null,null,null,6818,"CORDERO ALVAREZ,PAULA ANDREA",15,"HDI Santiago"]
[null,null,null,null,null,null,null,6819,"KAUFMANN CORREDORES DE SEGUROS LTDA.",15,"HDI Santiago"]
[null,null,null,null,null,null,null,6823,"SCOTIA CORREDORA DE SEGUROS CHILE LTDA.",94,"Banca Seguros"]
[null,null,null,null,null,null,null,6824,"SEPULVEDA MARDONES,JORGE ANDRES",15,"HDI Santiago"]
[null,null,null,null,null,null,null,6828,"JULIO CANALES Y CIA",1,"Advance"]
[null,null,null,null,null,null,null,6829,"MAC CORREDORES DE SEGUROS LIMITADA",15,"HDI Santiago"]
[null,null,null,null,null,null,null,6830,"PRODUCTORA DE SEGUROS SAN ANTONIO LTDA.",53,"Partners"]
[null,null,null,null,null,null,null,7988,"ROMAUS CEA,VILMA AMERICA",15,"HDI Santiago"]
[null,null,null,null,null,null,null,280,"VALLADARES PINO,CRISTIAN ANDRES",15,"HDI Santiago"]
[null,null,null,null,null,null,null,5577,"SILVA HERRERA,MAXIMO RAFAEL",4,"Viña del Mar"]
[null,null,null,null,null,null,null,5578,"FUENTEALBA SUAZO,SILVIA ELENA",7,"Temuco"]
[null,null,null,null,null,null,null,5588,"RODRIGUEZ VEGA,VITALIA AURORA",3,"Antofagasta"]
[null,null,null,null,null,null,null,5677,"ARROYO PEREZ,LUZ MARIA",7,"Temuco"]
[null,null,null,null,null,null,null,8028,"ARELLANO BELMAR,KARINA",5,"Talca"]
[null,null,null,null,null,null,null,5719,"VERONICA AEDO VILLAR CORREDORES DE SEGUR",15,"HDI Santiago"]
[null,null,null,null,null,null,null,5739,"KUSCHKE  LANGE ,HANS JOACHIM",7,"Temuco"]
[null,null,null,null,null,null,null,5740,"CARCAMO GUTIERREZ,PATRICIO FERNANDO",3,"Antofagasta"]
[null,null,null,null,null,null,null,5774,"CONSULTORA Y CORREDORA BONATERRA LTDA.",2,"Iquique"]
[null,null,null,null,null,null,null,5961,"ARELLANO GARCIA,VIVIANA PATRICIA DEL PIL",5,"Talca"]
[null,null,null,null,null,null,null,6004,"DOBLE V CORREDORA DE SEGUROS",15,"HDI Santiago"]
[null,null,null,null,null,null,null,905,"ALTAMIRANO PEREZ,ALEJANDRA",38,"Corporate"]
[null,null,null,null,null,null,null,6836,"CORREDORA INTERNACIONAL DE SEGUROS LTDA",31,"HDI Club"]
[null,null,null,null,null,null,null,6838,"BIANCHI PANICUCCI,ANTONIO RAFAEL",9,"Puerto Montt"]
[null,null,null,null,null,null,null,6846,"LEVICAN & TOBAR CORR DE SEG LTDA.",9,"Puerto Montt"]
[null,null,null,null,null,null,null,6854,"SOTO GOMEZ,JOSE BELARMINO",9,"Puerto Montt"]
[null,null,null,null,null,null,null,6857,"VERA & ESCHMANN CORR DE SEG LTDA.",9,"Puerto Montt"]
[null,null,null,null,null,null,null,6861,"BENITEZ PINO,CECILIA MARISOL",44,"Los Angeles"]
[null,null,null,null,null,null,null,6862,"CAROLINA ULLOA VALDIVIESO & ASOCIADOS LT",44,"Los Angeles"]
[null,null,null,null,null,null,null,6863,"CORR DE SEG ANDREA FUENTES PACHECO EIRL",44,"Los Angeles"]
[null,null,null,null,null,null,null,6864,"EHRENFELD DE LA ROSA,XIMENA",44,"Los Angeles"]
[null,null,null,null,null,null,null,6866,"MORALES ZAGAL,HADA ESTER",44,"Los Angeles"]
[null,null,null,null,null,null,null,6868,"RIVERA CANETE,CARLOS JORGE",44,"Los Angeles"]
[null,null,null,null,null,null,null,6869,"SOC. PROD. DE SEGUROS MANUKIAN Y CIA. LT",44,"Los Angeles"]
[null,null,null,null,null,null,null,6870,"YAÑEZ RUBILAR,NELLY DEL CARMEN",44,"Los Angeles"]
[null,null,null,null,null,null,null,6872,"BANCOESTADO CORREDORES DE SEGUROS S A",94,"Banca Seguros"]
[null,null,null,null,null,null,null,137,"CUEVAS CORDOVA,SILVIA TERESA",15,"HDI Santiago"]
[null,null,null,null,null,null,null,138,"RODRIGUEZ HERMAN,TAMARA ALEJANDRA",15,"HDI Santiago"]
[null,null,null,null,null,null,null,139,"GARCIA NAVARRETE,MARITZA AURORA",15,"HDI Santiago"]
[null,null,null,null,null,null,null,140,"SAN MARTIN  PALMA, CAMILA ALEJANDRA",2,"Iquique"]
[null,null,null,null,null,null,null,5843,"VALENZUELA ARAYA,MARIA SOLEDAD",4,"Viña del Mar"]
[null,null,null,null,null,null,null,5851,"ORTIZ GARCIA,XIMENA",4,"Viña del Mar"]
[null,null,null,null,null,null,null,6873,"BASCUNAN & VIAL CORR DE SEG LTDA.",31,"HDI Club"]
[null,null,null,null,null,null,null,6880,"DEL VILLAR Y CIA CORR.SEG. LTDA",1,"Advance"]
[null,null,null,null,null,null,null,6881,"DELAYON CORREDORES Y ASESORES DE SEGUROS",15,"HDI Santiago"]
[null,null,null,null,null,null,null,6885,"GALLARDO BARRIENTOS,VIOLETA ISABEL",15,"HDI Santiago"]
[null,null,null,null,null,null,null,6888,"HASCHE TAGLE,ALFREDO",15,"HDI Santiago"]
[null,null,null,null,null,null,null,6890,"HINOJOSA MUÑOZ,NORMA DEL CARMEN",15,"HDI Santiago"]
[null,null,null,null,null,null,null,6891,"IBARRA MELLA,GUILERMO GABRIEL",31,"HDI Club"]
[null,null,null,null,null,null,null,6906,"SIMPLEE CORREDORES DE SEGUROS SPA",31,"HDI Club"]
[null,null,null,null,null,null,null,7964,"RAMIREZ LOPEZ,CAROLINA",4,"Viña del Mar"]
[null,null,null,null,null,null,null,7967,"REYES LILLO,SERGIO RODOLFO",4,"Viña del Mar"]
[null,null,null,null,null,null,null,7971,"SOC. COM. TOCORNAL AUTOS LTDA.",57,"Vina del Mar Dealer"]
[null,null,null,null,null,null,null,8692,"COMERCIAL ERRAZURIZ S.A",78,"Casa Matriz Santiago Dealer"]
[null,null,null,null,null,null,null,5975,"PROSPECT CHILE CORREDORES DE SEGUROS SPA",41,"Rancagua"]
[null,null,null,null,null,null,null,5977,"SOC. PRODUCTORA DE SEG. VACCARO Y PORTER",9,"Puerto Montt"]
[null,null,null,null,null,null,null,5988,"DIAZ PRODUCTORES DE SEGUROS LIMITADA",17,"La Serena"]
[null,null,null,null,null,null,null,5989,"VALENZUELA HERRERA,FLOR JACQUELINE",6,"Concepción"]
[null,null,null,null,null,null,null,6917,"CACERES DURAN,LAUREANO JESUS",15,"HDI Santiago"]
[null,null,null,null,null,null,null,6925,"GONZALEZ CABALLERO,NORA ALEXANDRA",31,"HDI Club"]
[null,null,null,null,null,null,null,6929,"SORIANO ROMO,RODRIGO",15,"HDI Santiago"]
[null,null,null,null,null,null,null,6933,"CORR DE SEG ROSITA LEWIN Y CIA LTDA",53,"Partners"]
[null,null,null,null,null,null,null,6934,"SOC. CORREDORES DE SEG.LOTA Y ASOC LTDA",1,"Advance"]
[null,null,null,null,null,null,null,6935,"ADDWISE CORREDORES DE SEGUROS S.A.",15,"HDI Santiago"]
[null,null,null,null,null,null,null,6936,"ADN SPA",15,"HDI Santiago"]
[null,null,null,null,null,null,null,6937,"BRAVOBROKER CORREDORES DE SEGUROS LTDA.",31,"HDI Club"]
[null,null,null,null,null,null,null,6938,"BUSINESS & SERVICES NET S.A",15,"HDI Santiago"]
[null,null,null,null,null,null,null,6940,"GARCIA ASTORGA,ANA MARIA",15,"HDI Santiago"]
[null,null,null,null,null,null,null,6942,"PETRA FELIZA MARGOT THIERMANN WELLER",31,"HDI Club"]
[null,null,null,null,null,null,null,8414,"DIRECTO HDI.CL",23,"HDI.CL"]
[null,null,null,null,null,null,null,141,"GONZALEZ GONZALEZ,PABLO FABIAN",2,"Iquique"]
[null,null,null,null,null,null,null,142,"HERRERA ARAYA,MARCELO",2,"Iquique"]
[null,null,null,null,null,null,null,143,"REYES CAÑAS,EVELYN PATRICIA",2,"Iquique"]
[null,null,null,null,null,null,null,4643,"HERRERA ARAYA,MARCELO",2,"Iquique"]
[null,null,null,null,null,null,null,582,"FUENTES  ORDENES, CINTHIA SANDRA",2,"Iquique"]
[null,null,null,null,null,null,null,144,"MILLA ALVAREZ,JUAN AURELIO",17,"La Serena"]
[null,null,null,null,null,null,null,145,"SILVA  BRAVO, PABLO JAVIER",17,"La Serena"]
[null,null,null,null,null,null,null,5973,"OSORIO MADARIAGA,MANUEL RODOLFO",15,"HDI Santiago"]
[null,null,null,null,null,null,null,8663,"W CORREDORES DE SEGUROS SPA",6,"Concepción"]
[null,null,null,null,null,null,null,892,"GILLIBRAND OLEA,JANE GRACE",36,"Cartera Internacional"]
[null,null,null,null,null,null,null,5873,"MALDONADO CARIHUENTRO,PATRICIO ALEJANDRO",15,"HDI Santiago"]
[null,null,null,null,null,null,null,5875,"CORREDORA DE SEGUROS OBANDO SPA",9,"Puerto Montt"]
[null,null,null,null,null,null,null,5944,"BRANIFF MERA,MINOR ERCILIO",1,"Advance"]
[null,null,null,null,null,null,null,5990,"HBM CORRED. DE SEG. ASES. E INV. SPA",31,"HDI Club"]
[null,null,null,null,null,null,null,6036,"VMK SPA (SAFELEMON)",15,"HDI Santiago"]
[null,null,null,null,null,null,null,6022,"YAPO.CL SPA",21,"HDI Plus"]
[null,null,null,null,null,null,null,6024,"JARA YANKOVIC,FRANCISCA PAZ",21,"HDI Plus"]
[null,null,null,null,null,null,null,6040,"FREZ CARVACHO,GONZALO PATRICIO",2,"Iquique"]
[null,null,null,null,null,null,null,6078,"CORRED. DE SEGUROS WATSON AND ALLIANCE",1,"Advance"]
[null,null,null,null,null,null,null,6079,"CORREDORA DE SEGUROS UNIDAD SPA",1,"Advance"]
[null,null,null,null,null,null,null,6082,"DIRECTO CALL CENTER 2",23,"HDI.CL"]
[null,null,null,null,null,null,null,681,"SILVA PARADA,ESTEFANIA",1,"Advance"]
[null,null,null,null,null,null,null,6083,"MARTINEZ MARTINEZ,MARIA ALEJANDRA",31,"HDI Club"]
[null,null,null,null,null,null,null,6091,"CURIFOR S.A.",78,"Casa Matriz Santiago Dealer"]
[null,null,null,null,null,null,null,6689,"PEREIRA Y GARRIDO CORR DE SEG LTDA",15,"HDI Santiago"]
[null,null,null,null,null,null,null,6693,"ARCE VILLANUEVA,VERONICA DEL PILAR",41,"Rancagua"]
[null,null,null,null,null,null,null,6695,"CORREDORES DE SEGUROS AGUAS BLANCAS",41,"Rancagua"]
[null,null,null,null,null,null,null,6696,"DIAZ LARA,MARCELA DEL CARMEN",41,"Rancagua"]
[null,null,null,null,null,null,null,6698,"FICA QUILODRAN,LUIS MARCELO",41,"Rancagua"]
[null,null,null,null,null,null,null,6699,"FRANULIC HORTA,ALEX VLADIMIR",41,"Rancagua"]
[null,null,null,null,null,null,null,6700,"IBARRA GONZALEZ,SANDRA DEL CARMEN",41,"Rancagua"]
[null,null,null,null,null,null,null,8636,"AUTOMOTORA KLEIN SPA",78,"Casa Matriz Santiago Dealer"]
[null,null,null,null,null,null,null,8637,"PORSCHE INTER AUTO CHILE SPA",78,"Casa Matriz Santiago Dealer"]
[null,null,null,null,null,null,null,8638,"AUTOMOTRIZ EUGENIO AVILES SPA",78,"Casa Matriz Santiago Dealer"]
[null,null,null,null,null,null,null,8639,"ESTEBAN GUIC Y CIA. LTDA.",61,"Puerto Montt Dealer"]
[null,null,null,null,null,null,null,8641,"SERVIKAS SOCIEDAD ANONIMA",78,"Casa Matriz Santiago Dealer"]
[null,null,null,null,null,null,null,8642,"DUMAY DERAMOND,CARLOS RAUL GUILLERM",78,"Casa Matriz Santiago Dealer"]
[null,null,null,null,null,null,null,8643,"AUTOMOTRIZ PORTILLO SUR LTDA",60,"Temuco Dealer"]
[null,null,null,null,null,null,null,8644,"GONZALO TEODORO GARCIA VUCOVICH EMPRES",78,"Casa Matriz Santiago Dealer"]
[null,null,null,null,null,null,null,8640,"SOCIEDAD COMERCIAL FRANCO URZUA LTDA.",67,"Curico Dealer"]
[null,null,null,null,null,null,null,8635,"SEGUROS OPEL",78,"Casa Matriz Santiago Dealer"]
[null,null,null,null,null,null,null,8645,"COMERCIAL NOACK LTDA.",78,"Casa Matriz Santiago Dealer"]
[null,null,null,null,null,null,null,8646,"INVERSIONES & SERVICIOS FULL-CAR SPA",61,"Puerto Montt Dealer"]
[null,null,null,null,null,null,null,8647,"PORSCHE VOLKSWAGEN SERV. FIN. CHILE SPA",78,"Casa Matriz Santiago Dealer"]
[null,null,null,null,null,null,null,8648,"AUTOMOTORA FRANCISCO MONTECINOS EIRL",78,"Casa Matriz Santiago Dealer"]
[null,null,null,null,null,null,null,8649,"AUTOEASTERN CHILE SPA",78,"Casa Matriz Santiago Dealer"]
[null,null,null,null,null,null,null,8650,"SOCIEDAD CORREDORA DE SEGUROS DERCO LTDA",78,"Casa Matriz Santiago Dealer"]
[null,null,null,null,null,null,null,1079,"SUCURSAL FIANZAS",79,"Fianzas"]
[null,null,null,null,null,null,null,5628,"MESINA BUSTAMANTE,FABIOLA ANGÉLICA",5,"Talca"]
[null,null,null,null,null,null,null,558,"PIZARRO RAMIREZ,SEBASTIAN",1,"Advance"]
[null,null,null,null,null,null,null,559,"CAMPOS JARA,MAXIMINO",38,"Corporate"]
[null,null,null,null,null,null,null,556,"MUNOZ AGUILAR,LUCIA",31,"HDI Club"]
[null,null,null,null,null,null,null,6090,"PERK SPA",21,"HDI Plus"]
[null,null,null,null,null,null,null,8630,"COMERCIAL ANFRUNS Y CIA. SPA",66,"Rancagua Dealer"]
[null,null,null,null,null,null,null,8631,"AUT.TECNOSUR LTDA.",70,"Osorno Dealer"]
[null,null,null,null,null,null,null,8632,"COMERCIAL ANTIVERO LTDA.",66,"Rancagua Dealer"]
[null,null,null,null,null,null,null,8633,"AUTOMOTORA FRANCIA SOCIEDAD ANONIMA CERR",78,"Casa Matriz Santiago Dealer"]
[null,null,null,null,null,null,null,8634,"CARTONI VEHICULOS INDUSTRIALES LTDA",78,"Casa Matriz Santiago Dealer"]
[null,null,null,null,null,null,null,5594,"ALTADIRECCION CORREDORES DE SEGUROS SPA",15,"HDI Santiago"]
[null,null,null,null,null,null,null,5614,"RIQUELME MENDOZA,MARIA TEGUALDA",6,"Concepción"]
[null,null,null,null,null,null,null,5619,"MOGNO ARENAS,MARIA PIA",5,"Talca"]
[null,null,null,null,null,null,null,4658,"NAVEA ZUNIGA,PIA CONSTANZA",5,"Talca"]
[null,null,null,null,null,null,null,5665,"LATORRE Y PALMA CORREDORES DE SEGUROS Y",6,"Concepción"]
[null,null,null,null,null,null,null,745,"ARAVENA  QUINTANA, JANET FABIOLA",45,"Osorno"]
[null,null,null,null,null,null,null,746,"ALMONACID BELMAR,ANDREA LORENA",9,"Puerto Montt"]
[null,null,null,null,null,null,null,747,"SALAMANCA VALLEJOS,KARINA ESTELA",44,"Los Angeles"]
[null,null,null,null,null,null,null,748,"SALAMANCA VALLEJOS,KARINA ESTELA",44,"Los Angeles"]
[null,null,null,null,null,null,null,749,"JIMENEZ PULGAR,AURORA CECILIA",44,"Los Angeles"]
[null,null,null,null,null,null,null,750,"CALFULIPI SOTO,SERGIO RUBEN",7,"Temuco"]
[null,null,null,null,null,null,null,751,"OLMEDO CAMPOS,LISSETTE CAROLINA",4,"Viña del Mar"]
[null,null,null,null,null,null,null,757,"PALMA PONCE,NATALIA",38,"Corporate"]
[null,null,null,null,null,null,null,758,"AVENDAÑO BARRIENTOS,PATRICIA",1,"Advance"]
[null,null,null,null,null,null,null,760,"CONTAC CENTER",53,"Partners"]
[null,null,null,null,null,null,null,5705,"HARDER YUPANQUI,PATRICIA",2,"Iquique"]
[null,null,null,null,null,null,null,875,"BOLADOS PINO,CAMILA FERNANDA",3,"Antofagasta"]
[null,null,null,null,null,null,null,845,"ARROYO MORA,LORENA ALEJANDRA",53,"Partners"]
[null,null,null,null,null,null,null,846,"PEREZ PASSADORE,ANALIA",53,"Partners"]
[null,null,null,null,null,null,null,5725,"GIGANTI .,MAXIMILIANO",45,"Osorno"]
[null,null,null,null,null,null,null,5741,"ACUNA TEJOS,JUAN ANTONIO",15,"HDI Santiago"]
[null,null,null,null,null,null,null,855,"SILVA CANTILLANA,PAOLA",53,"Partners"]
[null,null,null,null,null,null,null,856,"MOLINA AGUILERA ,PAOLA ELIZABETH",53,"Partners"]
[null,null,null,null,null,null,null,857,"ESPINOZA VIDAL,NATALIA",53,"Partners"]
[null,null,null,null,null,null,null,858,"FELIPE  COMAS ,VERGARA",53,"Partners"]
[null,null,null,null,null,null,null,859,"GOMEZ .,ALEJANDRO",53,"Partners"]
[null,null,null,null,null,null,null,5767,"CORREDORA DE SEGUROS GCG SPA",15,"HDI Santiago"]
[null,null,null,null,null,null,null,5686,"MORAGA ALARCON,MARIA LOURDES",44,"Los Angeles"]
[null,null,null,null,null,null,null,5687,"DE LA GUARDA CAMINOS,IVAN OMAR",44,"Los Angeles"]
[null,null,null,null,null,null,null,5812,"CORREDORES DE SEGUROS NUEVA DELFOS SPA",15,"HDI Santiago"]
[null,null,null,null,null,null,null,984,"PEREIRA  BERNER, LETICIA JACQUELINE",94,"Banca Seguros"]
[null,null,null,null,null,null,null,985,"GOMEZ, ESTEFANIA",94,"Banca Seguros"]
[null,null,null,null,null,null,null,986,"VILLARROEL GUTIERREZ,MARIA",44,"Los Angeles"]
[null,null,null,null,null,null,null,5923,"CORREDORADE SEG LIEFOC PINTO Y ASOCIADOS",2,"Iquique"]
[null,null,null,null,null,null,null,471,"PANES PEREZ,ANDREA ALEJANDRA",90,"CM Central"]
[null,null,null,null,null,null,null,472,"CISTERNA HENRIQUEZ,SCARLETTE",90,"CM Central"]
[null,null,null,null,null,null,null,473,"CISTERNA HENRIQUEZ,SCARLETTE",90,"CM Central"]
[null,null,null,null,null,null,null,700,"CISTERNA HENRIQUEZ,SCARLETTE",90,"CM Central"]
[null,null,null,null,null,null,null,380,"BRIONES ALIAGA,KATHERINE ELIZABETH",90,"CM Central"]
[null,null,null,null,null,null,null,381,"BRIONES ALIAGA,KATHERINE ELIZABETH",90,"CM Central"]
[null,null,null,null,null,null,null,373,"LOPEZ  ESPINOSA, JACQUELINE ANDREA",94,"Banca Seguros"]
[null,null,null,null,null,null,null,374,"MENA ARIAS,ESMEHAL",94,"Banca Seguros"]
[null,null,null,null,null,null,null,375,"VALLES RODRIGUEZ, ALFREDO ALEJANDRO",94,"Banca Seguros"]
[null,null,null,null,null,null,null,8538,"MARUBENI AUTO FINANCE LTDA.",78,"Casa Matriz Santiago Dealer"]
[null,null,null,null,null,null,null,8539,"PSA CHILE S.A.",78,"Casa Matriz Santiago Dealer"]
[null,null,null,null,null,null,null,8540,"EMPRENAMI LTDA.",61,"Puerto Montt Dealer"]
[null,null,null,null,null,null,null,8541,"ANFRUNS Y CIA. LTDA.",78,"Casa Matriz Santiago Dealer"]
[null,null,null,null,null,null,null,8542,"COMERCIAL AUTOMOTRIZ EXPOAUTOS",78,"Casa Matriz Santiago Dealer"]
[null,null,null,null,null,null,null,8543,"RENTAL AUTOS S.A.",66,"Rancagua Dealer"]
[null,null,null,null,null,null,null,8544,"AUTOMOTORES GILDEMEISTER SPA",78,"Casa Matriz Santiago Dealer"]
[null,null,null,null,null,null,null,8545,"DIVEMOTOR S.A",61,"Puerto Montt Dealer"]
[null,null,null,null,null,null,null,8546,"GUSTAVO SAAVEDRA Y CIA. LTDA.",78,"Casa Matriz Santiago Dealer"]
[null,null,null,null,null,null,null,8547,"KIA CHILE S.A.",78,"Casa Matriz Santiago Dealer"]
[null,null,null,null,null,null,null,8548,"CAM INMOBILIARIA SPA",56,"Antofagasta Dealer"]
[null,null,null,null,null,null,null,8549,"POMPEYO CARRASCO AUTOMOTRIZ SPA",78,"Casa Matriz Santiago Dealer"]
[null,null,null,null,null,null,null,8550,"TOYOTA  CHILE  S.A.",78,"Casa Matriz Santiago Dealer"]
[null,null,null,null,null,null,null,8551,"PATRICIO HIDALGO SOCIEDAD ANONIMA",78,"Casa Matriz Santiago Dealer"]
[null,null,null,null,null,null,null,8552,"EDUARDO ASPILLAGA - HORNAHUER Y CIA.LTDA",57,"Vina del Mar Dealer"]
[null,null,null,null,null,null,null,8553,"OVALLE HERMANOS LTDA",78,"Casa Matriz Santiago Dealer"]
[null,null,null,null,null,null,null,8554,"CALLEGARI E HIJOS LTDA.",63,"LaSerena Dealer"]
[null,null,null,null,null,null,null,8555,"NALLAR Y COMPAÑIA LTDA",61,"Puerto Montt Dealer"]
[null,null,null,null,null,null,null,8556,"CARTONI Y CARTONI S.A.",57,"Vina del Mar Dealer"]
[null,null,null,null,null,null,null,8557,"AUTOMOTORES FRANCO CHILENA S A",78,"Casa Matriz Santiago Dealer"]
[null,null,null,null,null,null,null,8558,"APC AUTOMOTRIZ LIMITADA",78,"Casa Matriz Santiago Dealer"]
[null,null,null,null,null,null,null,8559,"AUTOMOTORA INALCO S.A.",78,"Casa Matriz Santiago Dealer"]
[null,null,null,null,null,null,null,8560,"AUTOMOTRIZ JOSE ASTE BONADEI S.A.",57,"Vina del Mar Dealer"]
[null,null,null,null,null,null,null,8561,"MARITANO Y EBENSPERGER LTDA.",59,"Concepcion Dealer"]
[null,null,null,null,null,null,null,8562,"LARRAIN SIERRA Y CIA. LTDA.",78,"Casa Matriz Santiago Dealer"]
[null,null,null,null,null,null,null,8563,"AUTOMOTRIZ PORTILLO PIRAMIDE SPA",78,"Casa Matriz Santiago Dealer"]
[null,null,null,null,null,null,null,8564,"KOVACS RENTAUTOS LTDA",57,"Vina del Mar Dealer"]
[null,null,null,null,null,null,null,8565,"IMPORTADORA TRENTO LTDA",63,"LaSerena Dealer"]
[null,null,null,null,null,null,null,8566,"COM. ARECHETA LTDA.",78,"Casa Matriz Santiago Dealer"]
[null,null,null,null,null,null,null,8567,"AUTOHAUS S.A.",78,"Casa Matriz Santiago Dealer"]
[null,null,null,null,null,null,null,8568,"AUTOMOTRIZ ROSSELOT S.A.",57,"Vina del Mar Dealer"]
[null,null,null,null,null,null,null,8569,"SERGIO ESCOBAR Y CIA LTDA.",59,"Concepcion Dealer"]
[null,null,null,null,null,null,null,8570,"GENERAL MOTORS FINANCIAL CHILE S.A.",78,"Casa Matriz Santiago Dealer"]
[null,null,null,null,null,null,null,8571,"GUILLERMO MORALES LTDA.",78,"Casa Matriz Santiago Dealer"]
[null,null,null,null,null,null,null,8572,"AUTOCENTRO TALCA LTDA.",58,"Talca Dealer"]
[null,null,null,null,null,null,null,8573,"ESTABLECIMIENTOS GARDILCIC S.A.",64,"Arica Dealer"]
[null,null,null,null,null,null,null,8574,"AGUSTINAS LTDA AUTOMOTORA",78,"Casa Matriz Santiago Dealer"]
[null,null,null,null,null,null,null,8575,"ALAMOS SA DISTRIBUIDORA AUTOMOTRIZ",60,"Temuco Dealer"]
[null,null,null,null,null,null,null,8576,"IMPORTADORA AUTOMOTRIZ PEMARCO S.A.C.",66,"Rancagua Dealer"]
[null,null,null,null,null,null,null,8577,"MEDINA & BALLART S.A",60,"Temuco Dealer"]
[null,null,null,null,null,null,null,8578,"AUTOMOTRIZ  COMERCO S.A.",78,"Casa Matriz Santiago Dealer"]
[null,null,null,null,null,null,null,8579,"SK BERGE AUTOMOTRIZ SPA.",78,"Casa Matriz Santiago Dealer"]
[null,null,null,null,null,null,null,8580,"AUTOMOTRIZ ARAUCO LTDA.",70,"Osorno Dealer"]
[null,null,null,null,null,null,null,8581,"EST. DE SERV. VEGA ARTUS LTDA.",66,"Rancagua Dealer"]
[null,null,null,null,null,null,null,8582,"SOC. COMERCIAL ASPILLAGA Y HORNAUER S.",57,"Vina del Mar Dealer"]
[null,null,null,null,null,null,null,8583,"IMPORT. EXPORT. STOP S.A.",55,"Iquique Dealer"]
[null,null,null,null,null,null,null,8584,"CENTRAL CAR S.A",78,"Casa Matriz Santiago Dealer"]
[null,null,null,null,null,null,null,8462,"SEPULVEDA CABRERA,GONZALO IGOR",5,"Talca"]
[null,null,null,null,null,null,null,5804,"PRODUCTORA DE SEGUROS J.CAVIEDES SPA",41,"Rancagua"]
[null,null,null,null,null,null,null,5806,"MOLINA  ADRIAZOLA ,PEDRO JOSE",45,"Osorno"]
[null,null,null,null,null,null,null,876,"GUZMAN ALARCON,ROBERTO",9,"Puerto Montt"]
[null,null,null,null,null,null,null,878,"MELLADO REYES,MARCELA",44,"Los Angeles"]
[null,null,null,null,null,null,null,5832,"FCO.LARA DURAN CORRED. DE SEGURO E.I.R.L",44,"Los Angeles"]
[null,null,null,null,null,null,null,5833,"CASTILLO FUENTES,PAULINA SOFIA",44,"Los Angeles"]
[null,null,null,null,null,null,null,886,"YURISCH GONZALEZ,YASNA",38,"Corporate"]
[null,null,null,null,null,null,null,887,"CERON LOYOLA,EDINSON HUMBERTO",53,"Partners"]
[null,null,null,null,null,null,null,5845,"YIP CORREDORES DE SEGUROS SPA",1,"Advance"]
[null,null,null,null,null,null,null,5885,"ALB CORREDORES DE SEGUROS SPA",15,"HDI Santiago"]
[null,null,null,null,null,null,null,981,"ALTAMIRANO PEREZ,ALEJANDRA",38,"Corporate"]
[null,null,null,null,null,null,null,5915,"RUIZ RUIZ,BERNARDO TOMAS",15,"HDI Santiago"]
[null,null,null,null,null,null,null,989,"BRAVO RIVERA,JOHANA",3,"Antofagasta"]
[null,null,null,null,null,null,null,5918,"SABOUNI MUSALATTI LANYON,AMAL",15,"HDI Santiago"]
[null,null,null,null,null,null,null,992,"DOENITZ SILVA,ESTEBAN",1,"Advance"]
[null,null,null,null,null,null,null,993,"MONSALVE PEREZ,MABEL ANDREA",1,"Advance"]
[null,null,null,null,null,null,null,996,"ARRIAGADA ARRIAGADA, HELEN",15,"HDI Santiago"]
[null,null,null,null,null,null,null,5949,"DORIS MAC-KAY SPA",15,"HDI Santiago"]
[null,null,null,null,null,null,null,5983,"COMERCIAL MOTORES DE LOS ANDES SPA",78,"Casa Matriz Santiago Dealer"]
[null,null,null,null,null,null,null,5984,"SOCIEDAD AUT. NOACK LIMITADA",78,"Casa Matriz Santiago Dealer"]
[null,null,null,null,null,null,null,5985,"DIRECTO HDI PLUS",21,"HDI Plus"]
[null,null,null,null,null,null,null,474,"LEON JOANNON,MARIA",5,"Talca"]
[null,null,null,null,null,null,null,5993,"ADS CORREDORES DE SEGUROS SPA",9,"Puerto Montt"]
[null,null,null,null,null,null,null,6020,"MANUEL  ANDRES ,CORDOVA CABEZAS",31,"HDI Club"]
[null,null,null,null,null,null,null,6028,"PALAMARA VASQUEZ,MARIA ANGELICA",21,"HDI Plus"]
[null,null,null,null,null,null,null,6047,"CRC CORREDORES DE SEGUROS LTDA",15,"HDI Santiago"]
[null,null,null,null,null,null,null,6061," ,COSECHE CURICO S.P.A",67,"Curico Dealer"]
[null,null,null,null,null,null,null,6071,"AUTOFAST SPA",21,"HDI Plus"]
[null,null,null,null,null,null,null,6074,"PRODUCTORA DE SEGUROS DEL RIO VARELA SPA",17,"La Serena"]
[null,null,null,null,null,null,null,6075,"GARAY CASTIGLIONE,DANTE HUMBERTO",5,"Talca"]
[null,null,null,null,null,null,null,6076,"NISSAN CHILE SPA",78,"Casa Matriz Santiago Dealer"]
[null,null,null,null,null,null,null,6081,"CORREDORA DE SEG. GPC Y ASOC. LTDA.",6,"Concepción"]
[null,null,null,null,null,null,null,6084,"GRUPO ANDES CORREDORES DE SEGUROS SPA",41,"Rancagua"]
[null,null,null,null,null,null,null,5564,"VIERA RONCO,JOSE ALBERTO",4,"Viña del Mar"]
[null,null,null,null,null,null,null,5565,"MORALES RIVES,GENARO MANUEL",4,"Viña del Mar"]
[null,null,null,null,null,null,null,5566,"SELECT CONSULTORES CORR DE SEG SPA",7,"Temuco"]
[null,null,null,null,null,null,null,4721,"ARAYA FUENZALIDA,MARIA JOSE",15,"HDI Santiago"]
[null,null,null,null,null,null,null,5731,"SILVA SILVA,GLORIA SANTOS",4,"Viña del Mar"]
[null,null,null,null,null,null,null,170,"OLMEDO CAMPOS,LISSETTE CAROLINA",4,"Viña del Mar"]
[null,null,null,null,null,null,null,800,"CAICEO VILLARROEL,RONALD",4,"Viña del Mar"]
[null,null,null,null,null,null,null,4700,"AGUILERA FLORES,JOSE ADRIAN",4,"Viña del Mar"]
[null,null,null,null,null,null,null,8585,"DIFOR  CHILE  S.A.",78,"Casa Matriz Santiago Dealer"]
[null,null,null,null,null,null,null,8586,"DIMOTOR S.A.",60,"Temuco Dealer"]
[null,null,null,null,null,null,null,8587,"DE CAR S.A.",60,"Temuco Dealer"]
[null,null,null,null,null,null,null,8588,"AUTOMOTRIZ SALFA SUR LTDA.",61,"Puerto Montt Dealer"]
[null,null,null,null,null,null,null,8589,"EST. DE SERVICIOS VIÑA DEL MAR LTDA.",57,"Vina del Mar Dealer"]
[null,null,null,null,null,null,null,8590,"AUTOMOTRIZ AVENTURA MOTORS S.A",78,"Casa Matriz Santiago Dealer"]
[null,null,null,null,null,null,null,8591,"DISTRIBUIDORA AUTOMOTRIZ MARUBENI LTDA.",78,"Casa Matriz Santiago Dealer"]
[null,null,null,null,null,null,null,8592,"MONSALVEZ ARANEDA RODRIGO ESTEBAN",57,"Vina del Mar Dealer"]
[null,null,null,null,null,null,null,8593,"AUTOMOTRIZ TECNOCID LIMITADA",70,"Osorno Dealer"]
[null,null,null,null,null,null,null,8594,"SOCIEDAD REAL Y CIA LTDA",61,"Puerto Montt Dealer"]
[null,null,null,null,null,null,null,8595,"TRANSWORLD SUPPLY LTDA.",61,"Puerto Montt Dealer"]
[null,null,null,null,null,null,null,8596,"COMERCIALIZADORA DITEC AUTOMOVILES S.A.",78,"Casa Matriz Santiago Dealer"]
[null,null,null,null,null,null,null,8597,"PATRICIO GRACIA Y CIA LTDA",78,"Casa Matriz Santiago Dealer"]
[null,null,null,null,null,null,null,8598,"SERVICIOS  SERRANO  S.A..",78,"Casa Matriz Santiago Dealer"]
[null,null,null,null,null,null,null,8599,"AUTOMOTRIZ CORDILLERA S.A.",59,"Concepcion Dealer"]
[null,null,null,null,null,null,null,8600,"PEDRO CUMSILLE Y CIA.LTDA.",66,"Rancagua Dealer"]
[null,null,null,null,null,null,null,8601,"COMERCIAL Y ARRENDAMIENTO LEON LTDA.",78,"Casa Matriz Santiago Dealer"]
[null,null,null,null,null,null,null,8602,"AUTOMOTRIZ SERVIMAQ SPA",70,"Osorno Dealer"]
[null,null,null,null,null,null,null,8603,"DISTRIBUIDORA AUTOMOTRIZ OVALLE  S.A.C.",63,"LaSerena Dealer"]
[null,null,null,null,null,null,null,8604,"SOCIEDAD VALENZUELA Y CIA. LTDA.",78,"Casa Matriz Santiago Dealer"]
[null,null,null,null,null,null,null,8605,"PIAMONTE S.A.",78,"Casa Matriz Santiago Dealer"]
[null,null,null,null,null,null,null,8606,"KLASSIK CAR S A",78,"Casa Matriz Santiago Dealer"]
[null,null,null,null,null,null,null,8607,"AUTOMOTRIZ VARONA LTDA",61,"Puerto Montt Dealer"]
[null,null,null,null,null,null,null,8608,"MARUBENI AUTOS LTDA",78,"Casa Matriz Santiago Dealer"]
[null,null,null,null,null,null,null,8609,"SOCIEDAD HERMANAS CALLEGARI LTDA",63,"LaSerena Dealer"]
[null,null,null,null,null,null,null,8610,"JESUS PONS FRANCO Y CIA S.A.",67,"Curico Dealer"]
[null,null,null,null,null,null,null,8611,"SOC AUTOMOTRIZ PANAMERICANA LTDA",66,"Rancagua Dealer"]
[null,null,null,null,null,null,null,8612,"AUTOMOTORA VEGAARTUS LTDA",78,"Casa Matriz Santiago Dealer"]
[null,null,null,null,null,null,null,8613,"YAMAIMPORT S.A",78,"Casa Matriz Santiago Dealer"]
[null,null,null,null,null,null,null,8614,"AUTOMOTORA MELHUISH SPA",78,"Casa Matriz Santiago Dealer"]
[null,null,null,null,null,null,null,4767,"ROS  GALDAMES, PATRICIA ANDREA",78,"Casa Matriz Santiago Dealer"]
[null,null,null,null,null,null,null,350,"ROS  GALDAMES, PATRICIA ANDREA",78,"Casa Matriz Santiago Dealer"]
[null,null,null,null,null,null,null,5608,"CERCIS CORREDORES DE SEGUROS SPA",90,"CM Central"]
[null,null,null,null,null,null,null,470,"GUERRA PETRICIC,KATIUSKA VALESKA",17,"La Serena"]
[null,null,null,null,null,null,null,754,"VILLALON  DIAZ, GLADYS LYDIA",15,"HDI Santiago"]
[null,null,null,null,null,null,null,755,"GUERRA PETRICIC,KATIUSKA VALESKA",17,"La Serena"]
[null,null,null,null,null,null,null,6087,"AUTOMOTORA VERONA SPA",78,"Casa Matriz Santiago Dealer"]
[null,null,null,null,null,null,null,6088,"AUTOKAS SOCIEDAD ANONIMA",78,"Casa Matriz Santiago Dealer"]
[null,null,null,null,null,null,null,6089,"PREMIUMKAS S.A.",78,"Casa Matriz Santiago Dealer"]
[null,null,null,null,null,null,null,6092,"COMERCIAL FRONTERA SPA",78,"Casa Matriz Santiago Dealer"]
[null,null,null,null,null,null,null,5633,"PROCAPITAL CORREDORES DE SEGURO LIMITADA",2,"Iquique"]
[null,null,null,null,null,null,null,890,"PIZARRO LEIVA,ANDREA ALEJANDRA",1,"Advance"]
[null,null,null,null,null,null,null,5637,"ALMUNA SANHUEZA,SONIA ANGELICA",7,"Temuco"]
[null,null,null,null,null,null,null,5636,"CORREDORES DE SEGUROS CRAM LTDA",7,"Temuco"]
[null,null,null,null,null,null,null,8693,"CARLOS DUMAY LTDA",78,"Casa Matriz Santiago Dealer"]
[null,null,null,null,null,null,null,8694,"POMPEYO CARRASCO SPA",78,"Casa Matriz Santiago Dealer"]
[null,null,null,null,null,null,null,1199,"GUERRA PETRICIC,KATIUSKA VALESKA",17,"La Serena"]
[null,null,null,null,null,null,null,5712,"VELASQUEZ  VELASQUEZ ,ALVARO RODRIGO",15,"HDI Santiago"]
[null,null,null,null,null,null,null,5805,"MASCAYANO SANCHEZ,FRANCISCO JAVIER",31,"HDI Club"]
[null,null,null,null,null,null,null,5911,"KONEX CORREDORES DE SEGUROS SPA",44,"Los Angeles"]
[null,null,null,null,null,null,null,5919,"BK SPA",78,"Casa Matriz Santiago Dealer"]
[null,null,null,null,null,null,null,5997,"EQUOS CORREDORES DE SEGUROS SPA",31,"HDI Club"]
[null,null,null,null,null,null,null,6021,"MONROY CASAS,GLORIA PATRICIA",21,"HDI Plus"]
[null,null,null,null,null,null,null,6043,"ASES, INVER Y CORRED DE SEG GREY CAP SPA",95,"CM Asociaciones Medicas"]
[null,null,null,null,null,null,null,8666,"TAPIA DEL REAL,MAXIMILIANO",2,"Iquique"]
[null,null,null,null,null,null,null,610,"ALBORNOZ ORDINOLA,LUIS ANDRES",2,"Iquique"]
[null,null,null,null,null,null,null,4659,"ARROYO MORA,LORENA ALEJANDRA",78,"Casa Matriz Santiago Dealer"]
[null,null,null,null,null,null,null,1078,"DIRECTO CONVENIO",78,"Casa Matriz Santiago Dealer"]
[null,null,null,null,null,null,null,5640,"CORREDORES CLUB DEL SEGURO  LIMITADA",90,"CM Central"]
[null,null,null,null,null,null,null,8031,"ICAR SA",78,"Casa Matriz Santiago Dealer"]
[null,null,null,null,null,null,null,5749,"GONZALEZ SANLES,VERONICA ALEJANDRA",44,"Los Angeles"]
[null,null,null,null,null,null,null,5807,"ALFA BROKERS DE SEGUROS LIMITADA",15,"HDI Santiago"]
[null,null,null,null,null,null,null,5808,"ARAYA RODRIGUEZ,JORGE PATRICIO",17,"La Serena"]
[null,null,null,null,null,null,null,5829,"ANDERS BARRIENTOS,REINALDO GUSTAVO",7,"Temuco"]
[null,null,null,null,null,null,null,5863,"CARMEN AGUIRRE E HIJAS LIMITADA",17,"La Serena"]
[null,null,null,null,null,null,null,5906,"ELIZALDE VALENZUELA,JOSE JOAQUIN",2,"Iquique"]
[null,null,null,null,null,null,null,987,"VILLARROEL GUTIERREZ,MARIA",44,"Los Angeles"]
[null,null,null,null,null,null,null,988,"VILLARROEL GUTIERREZ,MARIA",44,"Los Angeles"]
[null,null,null,null,null,null,null,990,"BRIONES GARRIDO,CHRISTIAN ALFONSO",38,"Corporate"]
[null,null,null,null,null,null,null,997,"VALDERRAMA BURGOS,MARTA",7,"Temuco"]
[null,null,null,null,null,null,null,5937,"BRAVO GOMEZ,MARCO ANTONIO",7,"Temuco"]
[null,null,null,null,null,null,null,5951,"AUTOMOTORA DUMAY S.A",78,"Casa Matriz Santiago Dealer"]
[null,null,null,null,null,null,null,6093,"VIRGO CORRED DE SEG GEN Y DE VIDA LTDA",15,"HDI Santiago"]
[null,null,null,null,null,null,null,5967,"I.A.P. CORREDORES DE SEGUROS SPA",7,"Temuco"]
[null,null,null,null,null,null,null,5968,"BROUSSAIN SCHELE,DANIEL",4,"Viña del Mar"]
[null,null,null,null,null,null,null,5969,"CORREDORA DE SEGUROS SAEZ URRUTIA LTDA.",4,"Viña del Mar"]
[null,null,null,null,null,null,null,5970,"ARELLANO WALTER,FELIPE ANDRES",4,"Viña del Mar"]
[null,null,null,null,null,null,null,5971,"ALVAREZ LEON,MAGALY EDITH",4,"Viña del Mar"]
[null,null,null,null,null,null,null,200,"CUEVAS CORDOVA,SILVIA TERESA",15,"HDI Santiago"]
[null,null,null,null,null,null,null,201,"GARCIA NAVARRETE,MARITZA AURORA",15,"HDI Santiago"]
[null,null,null,null,null,null,null,146,"BOLADOS PINO,CAMILA FERNANDA",3,"Antofagasta"]
[null,null,null,null,null,null,null,147,"PIZARRO ZULETA,CONI CECILIA",3,"Antofagasta"]
[null,null,null,null,null,null,null,148,"ROJAS  SAEZ, WHITNEY SHANTAL",3,"Antofagasta"]
[null,null,null,null,null,null,null,202,"SAN MARTIN  PALMA, CAMILA ALEJANDRA",2,"Iquique"]
[null,null,null,null,null,null,null,203,"REYES CAÑAS,EVELYN PATRICIA",2,"Iquique"]
[null,null,null,null,null,null,null,205,"BOLADOS PINO,CAMILA FERNANDA",3,"Antofagasta"]
[null,null,null,null,null,null,null,206,"PIZARRO ZULETA,CONI CECILIA",3,"Antofagasta"]
[null,null,null,null,null,null,null,149,"HENRIQUEZ .,PAULINA",17,"La Serena"]
[null,null,null,null,null,null,null,204,"GONZALEZ GONZALEZ,PABLO FABIAN",2,"Iquique"]
[null,null,null,null,null,null,null,207,"MILLA ALVAREZ,JUAN AURELIO",17,"La Serena"]
[null,null,null,null,null,null,null,588,"CHIAPPA OLIVARES,GUILLERMO WLADIMIR",15,"HDI Santiago"]
[null,null,null,null,null,null,null,164,"FERREIRA .,JORGE",15,"HDI Santiago"]
[null,null,null,null,null,null,null,4654,"HUGOT  PABST, MICHEL ADRIEN",15,"HDI Santiago"]
[null,null,null,null,null,null,null,7982,"CARDENAS GUAJARDO,CARLOS MARIO",15,"HDI Santiago"]
[null,null,null,null,null,null,null,264,"ARANCIBIA SILVA,JUAN DAVID",53,"Partners"]
[null,null,null,null,null,null,null,5570,"MARIA JOSE ROMAN LOPEZ CORR DE SEG EIRL",3,"Antofagasta"]
[null,null,null,null,null,null,null,488,"RAMOS ROJAS,ELSA JENNIFER",53,"Partners"]
[null,null,null,null,null,null,null,607,"REYES PICCOLINI,NATALY",2,"Iquique"]
[null,null,null,null,null,null,null,274,"HELLE LOMBARDI,PAOLO CERVANDO",2,"Iquique"]
[null,null,null,null,null,null,null,278,"YAÑEZ GONZALEZ,YEIMY",15,"HDI Santiago"]
[null,null,null,null,null,null,null,283,"ALMONACID BELMAR,ANDREA LORENA",9,"Puerto Montt"]
[null,null,null,null,null,null,null,491,"ALMONACID BELMAR,ANDREA LORENA",9,"Puerto Montt"]
[null,null,null,null,null,null,null,879,"GUERRA RAMIREZ,ORNELLA",45,"Osorno"]
[null,null,null,null,null,null,null,911,"LORCA ABARCA,DANIZA DANHAE",53,"Partners"]
[null,null,null,null,null,null,null,5908,"LAC SERVICES SPA",78,"Casa Matriz Santiago Dealer"]
[null,null,null,null,null,null,null,6702,"MALAGUEÑO CORTES,CARMEN",41,"Rancagua"]
[null,null,null,null,null,null,null,6703,"ORUETA GONZALEZ,MARIANELA",41,"Rancagua"]
[null,null,null,null,null,null,null,6704,"SALAZAR NAVARRO,LUIS ALBERTO",41,"Rancagua"]
[null,null,null,null,null,null,null,6709,"SALAZAR DEL PINO,ANGELA ORFELINA",6,"Concepción"]
[null,null,null,null,null,null,null,4655,"GAETE  NUÑEZ, ELIZABETH",5,"Talca"]
[null,null,null,null,null,null,null,589,"SERRANO  GONZALEZ, RICARDO MARTIN",5,"Talca"]
[null,null,null,null,null,null,null,210,"CAMPBELL  PIZARRO, MARIA VERONICA",15,"HDI Santiago"]
[null,null,null,null,null,null,null,211,"JIMENEZ  MEZA, SONIA MARIA",15,"HDI Santiago"]
[null,null,null,null,null,null,null,168,"CALFULIPI SOTO,SERGIO RUBEN",7,"Temuco"]
[null,null,null,null,null,null,null,212,"GAETE  NUÑEZ, ELIZABETH",5,"Talca"]
[null,null,null,null,null,null,null,214,"HUGOT  PABST, MICHEL ADRIEN",15,"HDI Santiago"]
[null,null,null,null,null,null,null,605,"HELLE LOMBARDI,PAOLO CERVANDO",2,"Iquique"]
[null,null,null,null,null,null,null,606,"TRAMONTANA MUÑOZ,MARIA CECILIA",5,"Talca"]
[null,null,null,null,null,null,null,222,"DIAZ  LLANCAPANI, EUGENIA CECILIA DEL PI",9,"Puerto Montt"]
[null,null,null,null,null,null,null,4766,"DIAZ  LLANCAPANI, EUGENIA CECILIA DEL PI",9,"Puerto Montt"]
[null,null,null,null,null,null,null,230,"SALAMANCA VALLEJOS,KARINA ESTELA",44,"Los Angeles"]
[null,null,null,null,null,null,null,6952,"GLOBAL CORREDORES DE SEGUROS SPA",15,"HDI Santiago"]
[null,null,null,null,null,null,null,814,"AYALA ARIAS,LILI MARGOT",6,"Concepción"]
[null,null,null,null,null,null,null,5899,"OLIVARES Y ASOCIADOS CORREDORES DE SEGUR",4,"Viña del Mar"]
[null,null,null,null,null,null,null,6050,"SANTA CRUZ CORREDORES DE SEGUROS SPA",5,"Talca"]
[null,null,null,null,null,null,null,6062,"KLARE CORREDORA DE SEGUROS S.A.",21,"HDI Plus"]
[null,null,null,null,null,null,null,759,"OLIVARES PERALTA,KATHERINE",15,"HDI Santiago"]
[null,null,null,null,null,null,null,893,"SEPULVEDA GUTIERREZ,FRANCISCA",36,"Cartera Internacional"]
[null,null,null,null,null,null,null,5850,"FUENZALIDA SAN ROMAN, TOMAS",31,"HDI Club"]
[null,null,null,null,null,null,null,901,"SERVICIO AL CLIENTE HDI",78,"Casa Matriz Santiago Dealer"]
[null,null,null,null,null,null,null,5865,"ROLDAN SALINAS,ZAYDA DE LA CRUZ",4,"Viña del Mar"]
[null,null,null,null,null,null,null,1200,"GONZALEZ LOPEZ,MIRIAM",5,"Talca"]
[null,null,null,null,null,null,null,5945,"BASCUNAN NUNEZ,SERGIO",5,"Talca"]
[null,null,null,null,null,null,null,5946,"MBA CORREDORES DE SEGUROS Y ASESORIAS SP",15,"HDI Santiago"]
[null,null,null,null,null,null,null,5998,"CORRETAJE DE SEGUROS TECNICOS Y ESPECIAL",1,"Advance"]
[null,null,null,null,null,null,null,5999,"EMEDE CORREDORA DE SEGUROS SPA",15,"HDI Santiago"]
[null,null,null,null,null,null,null,7410,"SERVICIOS FINANCIEROS MUNDO CREDITO S.A.",78,"Casa Matriz Santiago Dealer"]
[null,null,null,null,null,null,null,7411,"SERVICIOS KFR LIMITADA",31,"HDI Club"]
[null,null,null,null,null,null,null,5552,"MUNOZ CRUZ,JOSE MIGUEL",31,"HDI Club"]
[null,null,null,null,null,null,null,900,"TRONCOSO VIDAL,CAROLINA ANDREA",1,"Advance"]
[null,null,null,null,null,null,null,1500,"TRONCOSO VIDAL,CAROLINA ANDREA",1,"Advance"]
[null,null,null,null,null,null,null,290,"ORTEGA  DIAZ, ALEJANDRA XIMENA",5,"Talca"]
[null,null,null,null,null,null,null,291,"HERNANDEZ CASTRO,JANETT MAGALY",6,"Concepción"]
[null,null,null,null,null,null,null,6006,"GARCIA GOMEZ,JORGE FERNANDO",4,"Viña del Mar"]
[null,null,null,null,null,null,null,6023,"AGALLAS CORREDORES DE SEGUROS SPA",31,"HDI Club"]
[null,null,null,null,null,null,null,680,"GUERRERO CORTES,KAREN",3,"Antofagasta"]
[null,null,null,null,null,null,null,692,"RUBIO BARRIENTOS,PATRICIO",1,"Advance"]
[null,null,null,null,null,null,null,1044,"SUCURSAL LOS ANGELES",44,"Los Angeles"]
[null,null,null,null,null,null,null,4714,"ZUÑIGA  VENEGAS, ALBERTO ENRIQUE",45,"Osorno"]
[null,null,null,null,null,null,null,178,"ZUÑIGA  VENEGAS, ALBERTO ENRIQUE",45,"Osorno"]
[null,null,null,null,null,null,null,1045,"DIRECTO OSORNO",45,"Osorno"]
[null,null,null,null,null,null,null,4715,"CRISTI ZAPATA,MARCO",9,"Puerto Montt"]
[null,null,null,null,null,null,null,179,"CRISTI ZAPATA,MARCO",9,"Puerto Montt"]
[null,null,null,null,null,null,null,583,"TRONCOSO SALAZAR,CLARA JACQUELINE",5,"Talca"]
[null,null,null,null,null,null,null,802,"BUSTAMANTE DIAZ,CLAUDIA ANDREA",5,"Talca"]
[null,null,null,null,null,null,null,261,"PONCE BORQUEZ,RODRIGO EUGENIO",53,"Partners"]
[null,null,null,null,null,null,null,269,"MUIRHEAD  SHEIN, ELIZABETH SARA",53,"Partners"]
[null,null,null,null,null,null,null,456,"MUIRHEAD  SHEIN, ELIZABETH SARA",53,"Partners"]
[null,null,null,null,null,null,null,276,"ANDRADE ALVAREZ,ALICIA",15,"HDI Santiago"]
[null,null,null,null,null,null,null,457,"ANDRADE ALVAREZ,ALICIA",15,"HDI Santiago"]
[null,null,null,null,null,null,null,277,"OCARES ALVAREZ,VERONICA",15,"HDI Santiago"]
[null,null,null,null,null,null,null,458,"OCARES ALVAREZ,VERONICA",15,"HDI Santiago"]
[null,null,null,null,null,null,null,459,"CRISTI ZAPATA,MARCO",9,"Puerto Montt"]
[null,null,null,null,null,null,null,468,"RAMOS  TRONCOSO, SUSANA",44,"Los Angeles"]
[null,null,null,null,null,null,null,480,"ACUÑA RAMOS,FRANCISCO A.",15,"HDI Santiago"]
[null,null,null,null,null,null,null,481,"SALAMANCA VALLEJOS,KARINA ESTELA",44,"Los Angeles"]
[null,null,null,null,null,null,null,4720,"MUIRHEAD SHEIN,PATRICIA EMILIA MATI",53,"Partners"]
[null,null,null,null,null,null,null,281,"MUIRHEAD SHEIN,PATRICIA EMILIA MATI",53,"Partners"]
[null,null,null,null,null,null,null,282,"BORTOLASO ALVARADO,EVELYN",15,"HDI Santiago"]
[null,null,null,null,null,null,null,5720,"MUSA CORREDORES DE SEGURO SPA",2,"Iquique"]
[null,null,null,null,null,null,null,5855,"HERRERA ERDMANN,HUGO IGNACIO",41,"Rancagua"]
[null,null,null,null,null,null,null,894,"ESPINOZA BRAVO, MARJORIE",41,"Rancagua"]
[null,null,null,null,null,null,null,5947,"SANTELICES LAPIERRE,MARIO PATRICIO E",17,"La Serena"]
[null,null,null,null,null,null,null,6037,"VERGARA NUÑEZ,MARIA CRISTINA",1,"Advance"]
[null,null,null,null,null,null,null,376,"ALDEA SEPULVEDA,FRANCISCA",94,"Banca Seguros"]
[null,null,null,null,null,null,null,5623,"CONEXION CORREDORA DE SEGUROS LTDA",15,"HDI Santiago"]
[null,null,null,null,null,null,null,5651,"SOTO GARRIDO,ANGELA MARCELA",5,"Talca"]
[null,null,null,null,null,null,null,5821,"INVERSIONES AMERICA LIMITADA",15,"HDI Santiago"]
[null,null,null,null,null,null,null,5866,"VIA CORREDORES DE SEGUROS SPA",15,"HDI Santiago"]
[null,null,null,null,null,null,null,5877,"F & Q CORREDORES DE SEG. Y ASES. SPA",7,"Temuco"]
[null,null,null,null,null,null,null,5964,"ALVAREZ DIAZ,VALERIO VALESCO",15,"HDI Santiago"]
[null,null,null,null,null,null,null,7978,"CORREA LOPEZ,FABIAN PABLO",41,"Rancagua"]
[null,null,null,null,null,null,null,266,"CRISTI ZAPATA,MARCO",9,"Puerto Montt"]
[null,null,null,null,null,null,null,4717,"KLINGENBERG ANDRADE,CRISTIAN",53,"Partners"]
[null,null,null,null,null,null,null,267,"KLINGENBERG ANDRADE,CRISTIAN",53,"Partners"]
[null,null,null,null,null,null,null,4718,"MC VEY BRAVO,GERLADINE MARIE",53,"Partners"]
[null,null,null,null,null,null,null,268,"MC VEY BRAVO,GERLADINE MARIE",53,"Partners"]
[null,null,null,null,null,null,null,4719,"SANCHEZ SOTO,CRISTIAN GONZALO",53,"Partners"]
[null,null,null,null,null,null,null,272,"SANCHEZ SOTO,CRISTIAN GONZALO",53,"Partners"]
[null,null,null,null,null,null,null,593,"ALMENDRAS ESPARZA,LINA EDITH",44,"Los Angeles"]
[null,null,null,null,null,null,null,8662,"DURAN QUINTERO,ALEJANDRO ALFONSO",44,"Los Angeles"]
[null,null,null,null,null,null,null,5644,"SPOERER COSTER,FRANCISCO JAVIER",6,"Concepción"]
[null,null,null,null,null,null,null,643,"MARIÑANCO  VALENZUELA, FELIPE IGNACIO",15,"HDI Santiago"]
[null,null,null,null,null,null,null,5654,"GUZMAN SUSARTE,NANCY PAMELA",15,"HDI Santiago"]
[null,null,null,null,null,null,null,761,"ARENAS CORTES MANUEL ALEJANDRO",2,"Iquique"]
[null,null,null,null,null,null,null,8029,"PASTEN OMONTE,EDDIE FREDDY",2,"Iquique"]
[null,null,null,null,null,null,null,5721,"COVERAGE SPA",1,"Advance"]
[null,null,null,null,null,null,null,5722,"CERDA FUENZALIDA,MARIA FRANCISCA",15,"HDI Santiago"]
[null,null,null,null,null,null,null,5925,"ORDENES NEIRA,RODRIGO A",9,"Puerto Montt"]
[null,null,null,null,null,null,null,7335,"ALPINO AUTOS S.A.",78,"Casa Matriz Santiago Dealer"]
[null,null,null,null,null,null,null,7339,"ANTONIO CASTILLO S.A.",78,"Casa Matriz Santiago Dealer"]
[null,null,null,null,null,null,null,7340,"ATLANTIC  MOTORS  S.A.",78,"Casa Matriz Santiago Dealer"]
[null,null,null,null,null,null,null,7342,"AUTOMOTORA BILBAO S.A.",78,"Casa Matriz Santiago Dealer"]
[null,null,null,null,null,null,null,7343,"AUTOMOTORA JULIO INFANTE",78,"Casa Matriz Santiago Dealer"]
[null,null,null,null,null,null,null,7344,"AUTOMOTORA VITACURA LTDA.",78,"Casa Matriz Santiago Dealer"]
[null,null,null,null,null,null,null,7345,"AUTOMOTRIZ  ANTONIO  VARAS",78,"Casa Matriz Santiago Dealer"]
[null,null,null,null,null,null,null,7346,"AUTOMOTRIZ DANIEL ACHONDO Y CIA. LTDA.",78,"Casa Matriz Santiago Dealer"]
[null,null,null,null,null,null,null,7347,"AUTOM.DEPETRIS DEFLORIAN HNOS.LTDA.",65,"Copiapo Dealer"]
[null,null,null,null,null,null,null,7348,"AUTOMOTRIZ NOVACAR S.A.",78,"Casa Matriz Santiago Dealer"]
[null,null,null,null,null,null,null,5560,"INFANTE SORUCO,RAFAEL PABLO",45,"Osorno"]
[null,null,null,null,null,null,null,270,"JIMENEZ PULGAR,AURORA CECILIA",44,"Los Angeles"]
[null,null,null,null,null,null,null,5682,"LIZANA ALVARADO,MATIAS IGNACIO",31,"HDI Club"]
[null,null,null,null,null,null,null,5683,"CONTRERAS CAMPO,ALEJANDRO FELIPE",15,"HDI Santiago"]
[null,null,null,null,null,null,null,861,"CUBILLOS  FERNANDEZ, JAVIERA CAROLINA",78,"Casa Matriz Santiago Dealer"]
[null,null,null,null,null,null,null,864,"ALBORNOZ ORDINOLA,LUIS ANDRES",2,"Iquique"]
[null,null,null,null,null,null,null,8897,"SKBERGE CREDITO SA",15,"HDI Santiago"]
[null,null,null,null,null,null,null,5910,"AGUIRRE STEPHENS, ARTURO SIDNEY",17,"La Serena"]
[null,null,null,null,null,null,null,5978,"MUNOZ SAPUNAR,VLADIMIR",15,"HDI Santiago"]
[null,null,null,null,null,null,null,8696,"ATENTO CHILE S.A.",23,"HDI.CL"]
[null,null,null,null,null,null,null,6030,"AUTOMOTRIZ INALMOTORS SPA",78,"Casa Matriz Santiago Dealer"]
[null,null,null,null,null,null,null,7714,"LAGOS NEUMANN,PATRICIA",15,"HDI Santiago"]
[null,null,null,null,null,null,null,7720,"MEDITERRANEO AUTOMOTORES S.A.",78,"Casa Matriz Santiago Dealer"]
[null,null,null,null,null,null,null,7729,"RIOS ROJAS,CRISTIAN ARTURO",15,"HDI Santiago"]
[null,null,null,null,null,null,null,7730,"TALLAR MORALES,NANCY AURORA",15,"HDI Santiago"]
[null,null,null,null,null,null,null,7732,"UGARTE AZOCAR,ROGELIO",15,"HDI Santiago"]
[null,null,null,null,null,null,null,7738,"ALVAREZ DEFRANCHI,RENE DAVID",15,"HDI Santiago"]
[null,null,null,null,null,null,null,450,"CALFULIPI SOTO,SERGIO RUBEN",7,"Temuco"]
[null,null,null,null,null,null,null,7977,"CAPDEVILA VILLARROEL,CARLOS HERNAN",15,"HDI Santiago"]
[null,null,null,null,null,null,null,5638,"GEMINIANI DE PABLO,DANIELA",4,"Viña del Mar"]
[null,null,null,null,null,null,null,5657,"INMOBILIARIA E INVERSIONES FULLTRUCK L",15,"HDI Santiago"]
[null,null,null,null,null,null,null,5659,"LINACRE RIOS,NELSON HORACIO",15,"HDI Santiago"]
[null,null,null,null,null,null,null,708,"HOFFMANN TORO,ROBERTO",17,"La Serena"]
[null,null,null,null,null,null,null,5661,"MONTALVA LAURIDO,MARCELO MIGUEL",4,"Viña del Mar"]
[null,null,null,null,null,null,null,5847,"ZAMORA GOLER,FRANCISCO  ANDRES",2,"Iquique"]
[null,null,null,null,null,null,null,5848,"OSSANDON GONZALEZ,ANGELICA DE LAS ME",3,"Antofagasta"]
[null,null,null,null,null,null,null,5898,"ORCOS BOLOCCO,LUCIA FERNANDA",4,"Viña del Mar"]
[null,null,null,null,null,null,null,5965,"DCI CONSULTING CORREDORES DE SEGUROS SPA",90,"CM Central"]
[null,null,null,null,null,null,null,5980,"KEHR KEHR,RODRIGO",7,"Temuco"]
[null,null,null,null,null,null,null,720,"MUNOZ  RIVERA ,KARLA MARCELA",38,"Corporate"]
[null,null,null,null,null,null,null,7776,"BENREP",15,"HDI Santiago"]
[null,null,null,null,null,null,null,7781,"IMPORTADORA IMOTO S.A.",78,"Casa Matriz Santiago Dealer"]
[null,null,null,null,null,null,null,7783,"COMERCIAL MX S.A",78,"Casa Matriz Santiago Dealer"]
[null,null,null,null,null,null,null,7785,"PLANET MOTORS S.A.",78,"Casa Matriz Santiago Dealer"]
[null,null,null,null,null,null,null,7789,"RUIZ IBANEZ,MONICA ELENA",15,"HDI Santiago"]
[null,null,null,null,null,null,null,7412,"SERMACO AUTOMOTRIZ LTDA",78,"Casa Matriz Santiago Dealer"]
[null,null,null,null,null,null,null,7417,"VICAR LTDA.",78,"Casa Matriz Santiago Dealer"]
[null,null,null,null,null,null,null,5921,"DAVIDSON MUÑIZ,EDWARD ALEXANDER",6,"Concepción"]
[null,null,null,null,null,null,null,6502,"ALVAREZ LEAL,GABRIEL ANGEL",45,"Osorno"]
[null,null,null,null,null,null,null,6671,"ACKERMANN Y ASOC.CORREDORES DE SEGUROS L",15,"HDI Santiago"]
[null,null,null,null,null,null,null,7803,"FRAUENBERG DIAZ,CONSTANZA PAZ",9,"Puerto Montt"]
[null,null,null,null,null,null,null,7804,"MORAN DIAZ,JOSE ROOSBELT",9,"Puerto Montt"]
[null,null,null,null,null,null,null,7818,"ROSAS WISTUBA,MARIO ORLANDO",9,"Puerto Montt"]
[null,null,null,null,null,null,null,7825,"AUTOMOTORA MAGALLANES LTDA",71,"Punta Arenas Dealer"]
[null,null,null,null,null,null,null,6955,"ALBORNOZ REBOLLEDO,VALERIA",15,"HDI Santiago"]
[null,null,null,null,null,null,null,7474,"BERNALES DAZA,CLAUDIA PAMELA",5,"Talca"]
[null,null,null,null,null,null,null,7475,"CASTRO VALENZUELA,RAFAEL IGANCIO",41,"Rancagua"]
[null,null,null,null,null,null,null,7477,"GONZALEZ CANDIA,ELEODORO GASTON",41,"Rancagua"]
[null,null,null,null,null,null,null,7478,"PINTO ARAYA,OMAR PELAYO",5,"Talca"]
[null,null,null,null,null,null,null,7834,"LABRIN CASTRO,LUIS ALBERTO",9,"Puerto Montt"]
[null,null,null,null,null,null,null,7835,"LIVACIC GAZZANO,FLAVIA MARIA",9,"Puerto Montt"]
[null,null,null,null,null,null,null,7840,"SERVICIOS ESCOBAR SCABINI LTDA",61,"Puerto Montt Dealer"]
[null,null,null,null,null,null,null,7841,"VIAJES Y TURISMO ROCA LTDA.",9,"Puerto Montt"]
[null,null,null,null,null,null,null,7842,"SOC.COM.AUTM.PANAMERICANA LTDA",66,"Rancagua Dealer"]
[null,null,null,null,null,null,null,7849,"VALENZUELA DIAZ,PAULINA MARIA",41,"Rancagua"]
[null,null,null,null,null,null,null,7580,"TALCIANI Y BASUALDO LTDA.",78,"Casa Matriz Santiago Dealer"]
[null,null,null,null,null,null,null,7586,"AUTOMOTORA OYARCE LTDA.",78,"Casa Matriz Santiago Dealer"]
[null,null,null,null,null,null,null,7880,"LOBOS CANETE,EDUARDO ANDRES",15,"HDI Santiago"]
[null,null,null,null,null,null,null,7883,"MITSUI AUTO FINANCE CHILE LTDA.",78,"Casa Matriz Santiago Dealer"]
[null,null,null,null,null,null,null,7900,"ARAQUE OLAVE,UGANDA BRENDA",5,"Talca"]
[null,null,null,null,null,null,null,7902,"MUNOZ ABRAHAM,SERGIO HUMBERTO",58,"Talca Dealer"]
[null,null,null,null,null,null,null,7904,"VARGAS VALENZUELA,MARIA VERONICA",5,"Talca"]
[null,null,null,null,null,null,null,7905,"VILCHES ALBORNOZ,RODRIGO MAURICIO",5,"Talca"]
[null,null,null,null,null,null,null,7906,"CAMUS PARRA,MARCELO",7,"Temuco"]
[null,null,null,null,null,null,null,7910,"HITSCHFELD MANSILLA,AUGUSTO JAVIER",7,"Temuco"]
[null,null,null,null,null,null,null,7912,"ARTEAGA Y REBOLLEDO DISTRIBUIDORA AUTOMO",57,"Vina del Mar Dealer"]
[null,null,null,null,null,null,null,7913,"BAQUEDANO  AUTOS  S.A.",57,"Vina del Mar Dealer"]
[null,null,null,null,null,null,null,7916,"COMERCIAL A Y R MOTORS LIMITADA",57,"Vina del Mar Dealer"]
[null,null,null,null,null,null,null,7917,"COMERCIAL MACH VINA LTDA.",57,"Vina del Mar Dealer"]
[null,null,null,null,null,null,null,7591,"CHOCAIR TRIVIÑO,VICTOR",15,"HDI Santiago"]
[null,null,null,null,null,null,null,7593,"COMERCIAL AUTOMOTRIZ PATRICIO REITZE S.A",78,"Casa Matriz Santiago Dealer"]
[null,null,null,null,null,null,null,7595,"COMERCIALIZADORA INDUMOTORA S.A.",78,"Casa Matriz Santiago Dealer"]
[null,null,null,null,null,null,null,7599,"DIRECTO COLON",15,"HDI Santiago"]
[null,null,null,null,null,null,null,7605,"INMOBILIARIA E INVERSIONES EL ROBLE LTDA",78,"Casa Matriz Santiago Dealer"]
[null,null,null,null,null,null,null,7607,"KOVACS AUTOS LIMITADA",78,"Casa Matriz Santiago Dealer"]
[null,null,null,null,null,null,null,7612,"MONTERO BARRIOS,JORGE JUSTO",15,"HDI Santiago"]
[null,null,null,null,null,null,null,7622,"SOLEDAD VIELMA E.I.R.L.",15,"HDI Santiago"]
[null,null,null,null,null,null,null,7623,"TAGLE DARTNELL,MERCEDES IGNACIA",15,"HDI Santiago"]
[null,null,null,null,null,null,null,5868,"INVERSIONES  C ,Y C LIMITADA",58,"Talca Dealer"]
[null,null,null,null,null,null,null,7930,"R & R PINTO LIMITADA",57,"Vina del Mar Dealer"]
[null,null,null,null,null,null,null,7938,"RAMONA  MARLENE ALVAREZ, AUTO EIRL",57,"Vina del Mar Dealer"]
[null,null,null,null,null,null,null,7942,"COOPERATIVA AGRICOLA Y LECHERA",4,"Viña del Mar"]
[null,null,null,null,null,null,null,7946,"SOC.COM. Y DIST.DE COMB. ROSSELOT LTDA.",57,"Vina del Mar Dealer"]
[null,null,null,null,null,null,null,7948,"KOVACS SPA",57,"Vina del Mar Dealer"]
[null,null,null,null,null,null,null,7952,"GERALDO TORRICO,CLAUDIA ALEJANDRA",4,"Viña del Mar"]
[null,null,null,null,null,null,null,7953,"GERARDO ROSSELOT Y CIA. LTDA.",57,"Vina del Mar Dealer"]
[null,null,null,null,null,null,null,135,"PICHUN NAHUELFIL,LEONOR DEL CARMEN",7,"Temuco"]
[null,null,null,null,null,null,null,4642,"CALFULIPI SOTO,SERGIO RUBEN",7,"Temuco"]
[null,null,null,null,null,null,null,581,"GUERRERO RUMINO,ROSITA ELENA",7,"Temuco"]
[null,null,null,null,null,null,null,136,"ZURITA SEPULVEDA,JAZMINE DAHIANNE",38,"Corporate"]
[null,null,null,null,null,null,null,4650,"ZURITA SEPULVEDA,JAZMINE DAHIANNE",7,"Temuco"]
[null,null,null,null,null,null,null,7409,"SERVICIOS COMERCIALES CAVEM S.A.",78,"Casa Matriz Santiago Dealer"]
[null,null,null,null,null,null,null,7639,"GALLARDO ENCALADA,MARGARITA PAZ",2,"Iquique"]
[null,null,null,null,null,null,null,7640,"ILLANES LOPEZ,ALICIA GLORIA",2,"Iquique"]
[null,null,null,null,null,null,null,7647,"OCARANZA SALOMON,PERLA DEL CARMEN",2,"Iquique"]
[null,null,null,null,null,null,null,7654,"S.K. COMERCIAL",78,"Casa Matriz Santiago Dealer"]
[null,null,null,null,null,null,null,7661,"CAMAL MUSALEM T. Y CIA. LTDA.",63,"LaSerena Dealer"]
[null,null,null,null,null,null,null,7663,"FACUSE VELIZ,CARLOS ANTONIO",17,"La Serena"]
[null,null,null,null,null,null,null,7664,"GALLEGUILLOS ALVAREZ,LUIS ALBERTO",17,"La Serena"]
[null,null,null,null,null,null,null,7669,"COM. VALENTINI E HIJOS LTDA.",78,"Casa Matriz Santiago Dealer"]
[null,null,null,null,null,null,null,6948,"MARTINEZ PRAT,FRANCISCO ALEJANDRO",7,"Temuco"]
[null,null,null,null,null,null,null,4709,"MUIRHEAD  SHEIN, ELIZABETH SARA",53,"Partners"]
[null,null,null,null,null,null,null,171,"MUIRHEAD  SHEIN, ELIZABETH SARA",53,"Partners"]
[null,null,null,null,null,null,null,1053,"DIRECTO CASA MATRIZ",31,"HDI Club"]
[null,null,null,null,null,null,null,4710,"LEON WEISS,ISABEL ANDREA",38,"Corporate"]
[null,null,null,null,null,null,null,172,"LEON WEISS,ISABEL ANDREA",38,"Corporate"]
[null,null,null,null,null,null,null,173,"AIROLA WLACK,ITALO AQUILES",41,"Rancagua"]
[null,null,null,null,null,null,null,1041,"DIRECTO RANCAGUA",41,"Rancagua"]
[null,null,null,null,null,null,null,4711,"TRONCOSO SALAZAR,CLARA JACQUELINE",5,"Talca"]
[null,null,null,null,null,null,null,174,"TRONCOSO SALAZAR,CLARA JACQUELINE",5,"Talca"]
[null,null,null,null,null,null,null,175,"GAETE  NUÑEZ, ELIZABETH",5,"Talca"]
[null,null,null,null,null,null,null,1042,"DIRECTO CURICO",41,"Rancagua"]
[null,null,null,null,null,null,null,4712,"ALVAREZ ALVAREZ,MARIA ANTONIETA",44,"Los Angeles"]
[null,null,null,null,null,null,null,176,"ALVAREZ ALVAREZ,MARIA ANTONIETA",44,"Los Angeles"]
[null,null,null,null,null,null,null,1043,"DIRECTO CHILLAN",44,"Los Angeles"]
[null,null,null,null,null,null,null,4713,"RAMOS  TRONCOSO, SUSANA",44,"Los Angeles"]
[null,null,null,null,null,null,null,177,"RAMOS  TRONCOSO, SUSANA",44,"Los Angeles"]
[null,null,null,null,null,null,null,190,"JIMENEZ PULGAR,AURORA CECILIA",44,"Los Angeles"]
[null,null,null,null,null,null,null,598,"REYNA  PALMA, LOREN VANESSA",44,"Los Angeles"]
[null,null,null,null,null,null,null,226,"CAUCAO  MARQUEZ, XIMENA",9,"Puerto Montt"]
[null,null,null,null,null,null,null,599,"CAUCAO  MARQUEZ, XIMENA",9,"Puerto Montt"]
[null,null,null,null,null,null,null,455,"TRONCOSO SALAZAR,CLARA JACQUELINE",5,"Talca"]
[null,null,null,null,null,null,null,275,"SOLERVICENZ PINO,JESSICA",9,"Puerto Montt"]
[null,null,null,null,null,null,null,454,"SOLERVICENZ PINO,JESSICA",71,"Punta Arenas Dealer"]
[null,null,null,null,null,null,null,485,"LUCO AGUAYO,CAROLA VERONICA",41,"Rancagua"]
[null,null,null,null,null,null,null,5582,"MUÑOZ GANGA,PAOLA ANA",2,"Iquique"]
[null,null,null,null,null,null,null,5586,"ADASME INOSTROZA,REEMBERTO SEGUNDO",3,"Antofagasta"]
[null,null,null,null,null,null,null,492,"NEIRA ZAMBRA,JOCELYN ELENA",17,"La Serena"]
[null,null,null,null,null,null,null,8527,"COMERCIAL COLON LTDA.",78,"Casa Matriz Santiago Dealer"]
[null,null,null,null,null,null,null,8528,"AUTOMOTRIZ  ITALOAMERICANA  LTDA.",78,"Casa Matriz Santiago Dealer"]
[null,null,null,null,null,null,null,8529,"COMERCIAL AUTOMOTRIZ COADIG LTDA.",67,"Curico Dealer"]
[null,null,null,null,null,null,null,8530,"GELLONA AUTOS Y CIA LTDA",78,"Casa Matriz Santiago Dealer"]
[null,null,null,null,null,null,null,8531,"COMERCIAL AUTOMOTORA PRIME LIMITADA",56,"Antofagasta Dealer"]
[null,null,null,null,null,null,null,8532,"TUANE Y PAREDES LTDA.",78,"Casa Matriz Santiago Dealer"]
[null,null,null,null,null,null,null,8533,"COM.  Y PROD. DE EVENTOS  JEREMIAS LTDA.",78,"Casa Matriz Santiago Dealer"]
[null,null,null,null,null,null,null,8534,"AUTOM. Y COMERCIAL LA FORESTA LTDA.",78,"Casa Matriz Santiago Dealer"]
[null,null,null,null,null,null,null,8535,"AUT.CARMONA Y CIA.LTDA.",63,"LaSerena Dealer"]
[null,null,null,null,null,null,null,8536,"AUTOMOTORA GOMA LTDA.",78,"Casa Matriz Santiago Dealer"]
[null,null,null,null,null,null,null,8537,"AUTOMOTORA ALAMEDA LIMITADA",66,"Rancagua Dealer"]
[null,null,null,null,null,null,null,440,"CASTRO JAQUE,VALENTINA",53,"Partners"]
[null,null,null,null,null,null,null,5602,"DALANNAIS GONZALEZ,MARIA BERNARDITA",17,"La Serena"]
[null,null,null,null,null,null,null,5615,"MERCER CORREDORES DE SEGUROS LTDA.",38,"Corporate"]
[null,null,null,null,null,null,null,5953,"CHAMORRO IRIARTE,MARIA ANGELICA",5,"Talca"]
[null,null,null,null,null,null,null,5954,"TORRES PINTO,RODOLFO ALFREDO",5,"Talca"]
[null,null,null,null,null,null,null,7671,"ARRIAGADA DELGADO,SANDRA",15,"HDI Santiago"]
[null,null,null,null,null,null,null,7675,"AUTOMOTRIZ OMEGA LTDA.",78,"Casa Matriz Santiago Dealer"]
[null,null,null,null,null,null,null,7686,"TUPPER S.A.",78,"Casa Matriz Santiago Dealer"]
[null,null,null,null,null,null,null,7687,"REYES MAURAS,FRANCISCO ARMANDO",44,"Los Angeles"]
[null,null,null,null,null,null,null,7692,"IRRIBARRA VILLAGRAN,RUTH SOLEDAD",45,"Osorno"]
[null,null,null,null,null,null,null,7693,"ROSAS URIBE,MANUEL ALEJANDRO",45,"Osorno"]
[null,null,null,null,null,null,null,165,"HUGOT  PABST, MICHEL ADRIEN",15,"HDI Santiago"]
[null,null,null,null,null,null,null,166,"GAETE  NUÑEZ, ELIZABETH",5,"Talca"]
[null,null,null,null,null,null,null,271,"ARAVENA  QUINTANA, JANET FABIOLA",45,"Osorno"]
[null,null,null,null,null,null,null,620,"DIAZ  LLANCAPANI, EUGENIA CECILIA DEL PI",9,"Puerto Montt"]
[null,null,null,null,null,null,null,4716,"CERDA MUNOZ,LEONARDO PATRICIO",53,"Partners"]
[null,null,null,null,null,null,null,465,"CERDA MUNOZ,LEONARDO PATRICIO",53,"Partners"]
[null,null,null,null,null,null,null,8500,"RATTI MAURI,MARCO",66,"Rancagua Dealer"]
[null,null,null,null,null,null,null,8501,"PRODUCTORA DE SEGUROS J CAVIEDES LTDA",41,"Rancagua"]
[null,null,null,null,null,null,null,8502,"SUMMIT MOTORS S.A",78,"Casa Matriz Santiago Dealer"]
[null,null,null,null,null,null,null,8503,"AUTOMOTRIZ COVEMA LTDA",58,"Talca Dealer"]
[null,null,null,null,null,null,null,5613,"REYES MARTINEZ,CRISTIAN",15,"HDI Santiago"]
[null,null,null,null,null,null,null,421,"ORTEGA  DIAZ, ALEJANDRA XIMENA",5,"Talca"]
[null,null,null,null,null,null,null,5624,"FONTT VALENZUELA,CARLOS GUIDO",45,"Osorno"]
[null,null,null,null,null,null,null,5632,"GONZALEZ NORAMBUENA,SERGIO ENRIQUE",6,"Concepción"]
[null,null,null,null,null,null,null,630,"YAÑEZ CAMILO,BURGOS",53,"Partners"]
[null,null,null,null,null,null,null,401,"QUIROZ  CABEZAS, CLAUDIA PERLA",91,"CM Falabella"]
[null,null,null,null,null,null,null,475,"CONTRERAS  ASCUI, VANESSA LIDIA",15,"HDI Santiago"]
[null,null,null,null,null,null,null,476,"SALVADOR BARRIA,CLAUDIA",15,"HDI Santiago"]
[null,null,null,null,null,null,null,477,"BIGORRA CARRASCO,ARACELI CONSTANZA",15,"HDI Santiago"]
[null,null,null,null,null,null,null,478,"LOPEZ PIÑA,ANIBAL ANDRES",15,"HDI Santiago"]
[null,null,null,null,null,null,null,5648,"DE LA BARRA ALTAMIRANO,RAMON ALEJANDRO",45,"Osorno"]
[null,null,null,null,null,null,null,5653,"SOC COMERCIAL OK CORREDORES DE SEG LTDA.",7,"Temuco"]
[null,null,null,null,null,null,null,707,"RAMIREZ CHARME,MARTIN",38,"Corporate"]
[null,null,null,null,null,null,null,5656,"ASTABURUAGA Y CIA. CORRED. DE SEG. LTDA",15,"HDI Santiago"]
[null,null,null,null,null,null,null,810,"CATALAN VEGA,MASIEL",41,"Rancagua"]
[null,null,null,null,null,null,null,8027,"CELEDON FAUNDEZ,SERGIO MANUEL",6,"Concepción"]
[null,null,null,null,null,null,null,756,"CONTAC CENTER",31,"HDI Club"]
[null,null,null,null,null,null,null,5685,"PRODUCECHECK GROUP SPA",31,"HDI Club"]
[null,null,null,null,null,null,null,5694,"CORREDORES DE SEGUROS ESPACIOSEGURO SPA",15,"HDI Santiago"]
[null,null,null,null,null,null,null,5695,"GYC CORREDORES DE SEGUROS SPA",15,"HDI Santiago"]
[null,null,null,null,null,null,null,5723,"PRODUCTORA DE SEGUROS BRAMADOR LTDA.",4,"Viña del Mar"]
[null,null,null,null,null,null,null,850,"BAYOLO  FLORES, KAREM ANTONELLA",78,"Casa Matriz Santiago Dealer"]
[null,null,null,null,null,null,null,5736,"CORREDORA DE SEGUROS DEL SUR",45,"Osorno"]
[null,null,null,null,null,null,null,853,"VALENZUELA PADILLA,PAMELA SANDRA",90,"CM Central"]
[null,null,null,null,null,null,null,854,"VALENZUELA PADILLA,PAMELA SANDRA",90,"CM Central"]
[null,null,null,null,null,null,null,5738,"NEVERO SA",90,"CM Central"]
[null,null,null,null,null,null,null,5742,"MARIN MIRANDA,JACKELINE DEL CARMEN",2,"Iquique"]
[null,null,null,null,null,null,null,5743,"VALDIVIA ROJAS,MARIO",17,"La Serena"]
[null,null,null,null,null,null,null,860,"RIVEROS MAC LEAN,MARIA BEATRIZ",38,"Corporate"]
[null,null,null,null,null,null,null,227,"ARAVENA  QUINTANA, JANET FABIOLA",45,"Osorno"]
[null,null,null,null,null,null,null,604,"ALARCON VARGAS,CARMEN GLORIA",45,"Osorno"]
[null,null,null,null,null,null,null,8505,"DITALCAR",78,"Casa Matriz Santiago Dealer"]
[null,null,null,null,null,null,null,8506,"PORTILLO S.A.",78,"Casa Matriz Santiago Dealer"]
[null,null,null,null,null,null,null,8507,"SOC. ORIENTAL SERVICE LTDA.",55,"Iquique Dealer"]
[null,null,null,null,null,null,null,8508,"MARCELO FRONZA Y CIA. LTDA.",57,"Vina del Mar Dealer"]
[null,null,null,null,null,null,null,8509,"SERVICIOS  M Y M LTDA.",78,"Casa Matriz Santiago Dealer"]
[null,null,null,null,null,null,null,8510,"AUTOMOTRIZ PORTILLO S.A",78,"Casa Matriz Santiago Dealer"]
[null,null,null,null,null,null,null,8511,"AUTOMOVILES CHAMY HNOS.Y CIA.LTDA.",78,"Casa Matriz Santiago Dealer"]
[null,null,null,null,null,null,null,8512,"DERCOCENTER  S.A.",78,"Casa Matriz Santiago Dealer"]
[null,null,null,null,null,null,null,8513,"BRUNO FRITSCH S.A",78,"Casa Matriz Santiago Dealer"]
[null,null,null,null,null,null,null,8514,"IMPORTADORA NICOLAS LIMITADA",65,"Copiapo Dealer"]
[null,null,null,null,null,null,null,8515,"AUTOMOTRIZ YUTRONIC DAMIANIC LTDA",56,"Antofagasta Dealer"]
[null,null,null,null,null,null,null,8516,"SERV. AUT.  ANSA  LTDA.",78,"Casa Matriz Santiago Dealer"]
[null,null,null,null,null,null,null,8517,"AUTOMOTORA ARAUCO LTDA.",58,"Talca Dealer"]
[null,null,null,null,null,null,null,8518,"AUTOMOTORA COMERCIAL COSTABAL Y ECHENIQU",78,"Casa Matriz Santiago Dealer"]
[null,null,null,null,null,null,null,8519,"SALINAS Y FABRES S.A.",78,"Casa Matriz Santiago Dealer"]
[null,null,null,null,null,null,null,8520,"POMPEYO CARRASCO SPA",78,"Casa Matriz Santiago Dealer"]
[null,null,null,null,null,null,null,8521,"WILLIAMSON BALFOUR MOTORS S.A.",78,"Casa Matriz Santiago Dealer"]
[null,null,null,null,null,null,null,8522,"AUTO SUMMIT CHILE S.A.",78,"Casa Matriz Santiago Dealer"]
[null,null,null,null,null,null,null,8523,"COMERCIAL AUTOMOTRIZ SPA",78,"Casa Matriz Santiago Dealer"]
[null,null,null,null,null,null,null,180,"GONZALEZ  CHACON, VIVIAN ROSSI",53,"Partners"]
[null,null,null,null,null,null,null,5579,"GONZALEZ CID,PATRICIA VERONICA",9,"Puerto Montt"]
[null,null,null,null,null,null,null,5580,"PEREZ PEREZ,MARIA ELENA",45,"Osorno"]
[null,null,null,null,null,null,null,5581,"SANDOVAL HADDAD,LIDIA AVELINA",17,"La Serena"]
[null,null,null,null,null,null,null,5583,"PINTO MADARIAGA,ORIELE PATRICIA",2,"Iquique"]
[null,null,null,null,null,null,null,5587,"CORREDORA DE SEGUROS THONE LTDA",45,"Osorno"]
[null,null,null,null,null,null,null,284,"NEIRA ZAMBRA,JOCELYN ELENA",17,"La Serena"]
[null,null,null,null,null,null,null,8616,"AUTOMOTRIZ BALMACEDA LTDA.",63,"LaSerena Dealer"]
[null,null,null,null,null,null,null,8617,"MEC. Y AUT. CHIAPPE S.A.",57,"Vina del Mar Dealer"]
[null,null,null,null,null,null,null,8618,"EXEQUIEL BERRIOS SPA",61,"Puerto Montt Dealer"]
[null,null,null,null,null,null,null,8619,"SOC.COM.TOCORNAL AUTOS S.A.",57,"Vina del Mar Dealer"]
[null,null,null,null,null,null,null,8620,"AUTOMOTRIZ FORCENTER S.A.",78,"Casa Matriz Santiago Dealer"]
[null,null,null,null,null,null,null,8621,"COMERCIAL AUTOMOTRIZ SIGLO XXI LIMITADA",78,"Casa Matriz Santiago Dealer"]
[null,null,null,null,null,null,null,8622,"AUTOMOVILES CENTROSUR LTDA.",78,"Casa Matriz Santiago Dealer"]
[null,null,null,null,null,null,null,8623,"FULL CAR EIRL",61,"Puerto Montt Dealer"]
[null,null,null,null,null,null,null,8624,"AUTOMOTORA PUIG LIMITADA.",78,"Casa Matriz Santiago Dealer"]
[null,null,null,null,null,null,null,8625,"SOC. AUTOMOTRIZ COVALSA CENTER LTDA",63,"LaSerena Dealer"]
[null,null,null,null,null,null,null,8626,"SERVICIOS FRK LTDA",78,"Casa Matriz Santiago Dealer"]
[null,null,null,null,null,null,null,8627,"LIONEL KOVACS Y CIA.S.C.I.LTDA.",57,"Vina del Mar Dealer"]
[null,null,null,null,null,null,null,8628,"ING DE SERV AUTOMOTRIZ MACIAS Y CIA LTDA",78,"Casa Matriz Santiago Dealer"]
[null,null,null,null,null,null,null,8629,"COM.VEH. MOTORIZADO ARAUCO CHILE LTDA.",58,"Talca Dealer"]
[null,null,null,null,null,null,null,5604,"DB CORREDORA DE SEGUROS E.I.R.L",3,"Antofagasta"]
[null,null,null,null,null,null,null,4657,"LARRAIN YANEZ,ROBERTO JAIME",23,"HDI.CL"]
[null,null,null,null,null,null,null,8030,"BARRIENTOS ROSAS,RODOLFO ANDRES",9,"Puerto Montt"]
[null,null,null,null,null,null,null,5713,"ARANCIBIA SILVA,SERGIO EDUARDO",31,"HDI Club"]
[null,null,null,null,null,null,null,5727,"ROSAS MONARDES,OMAR",45,"Osorno"]
[null,null,null,null,null,null,null,5728,"CORREDORA DE SEGUROS OMAR ROSAS G. Y CIA",45,"Osorno"]
[null,null,null,null,null,null,null,5729,"VILLEGAS CEA,HERNAN EDUARDO",17,"La Serena"]
[null,null,null,null,null,null,null,5841,"SPARTACUS CORR.DE SEG. GEN.Y DE VIDA SPA",15,"HDI Santiago"]
[null,null,null,null,null,null,null,895,"LORCA ABARCA,DANIZA DANHAE",1,"Advance"]
[null,null,null,null,null,null,null,5857,"RUIZ-TAGLE Y CIA.CORRETAJE DE SEG. LTDA.",31,"HDI Club"]
[null,null,null,null,null,null,null,5862,"AGUERO TORRES,MARIA INES",45,"Osorno"]
[null,null,null,null,null,null,null,897,"SALDIAS CORNEJO,JUAN CARLOS",15,"HDI Santiago"]
[null,null,null,null,null,null,null,910,"BECERRA CASTILLO,JACQUELINE",12,"CM Ripley"]
[null,null,null,null,null,null,null,5870,"JVL CORREDORES DE SEGUROS LTDA.",31,"HDI Club"]
[null,null,null,null,null,null,null,951,"INOSTROZA  SILVA ,JOHANNA BERNARDETTE",9,"Puerto Montt"]
[null,null,null,null,null,null,null,980,"CATALAN VEGA,MASIEL",41,"Rancagua"]
[null,null,null,null,null,null,null,5907,"NUEVO CAPITAL CORREDORES DE SEGUROS LTDA",15,"HDI Santiago"]
[null,null,null,null,null,null,null,5917,"VENTA INTELIGENTE SPA",78,"Casa Matriz Santiago Dealer"]
[null,null,null,null,null,null,null,5920,"RAVANAL RODRIGUEZ,CECILIA BEATRIZ",5,"Talca"]
[null,null,null,null,null,null,null,994,"ALBORNOZ ORDINOLA,LUIS ANDRES",2,"Iquique"]
[null,null,null,null,null,null,null,5924,"SURE SPA",6,"Concepción"]
[null,null,null,null,null,null,null,5930,"SOC.CORR.DE SEGUROS CAMPOS Y POFFALD LTD",45,"Osorno"]
[null,null,null,null,null,null,null,1024,"PINO DIAZ,SOLEDAD",15,"HDI Santiago"]
[null,null,null,null,null,null,null,1025,"PINO DIAZ,SOLEDAD",15,"HDI Santiago"]
[null,null,null,null,null,null,null,1026,"PINO DIAZ,SOLEDAD",15,"HDI Santiago"]
[null,null,null,null,null,null,null,970,"CORREA MORAGA,NICOL ANDREA",38,"Corporate"]
[null,null,null,null,null,null,null,5963,"NAPOLITANO CORTÉS, EMILIA GLORIA",31,"HDI Club"]
[null,null,null,null,null,null,null,6012,"RAPPI CHILE SPA",21,"HDI Plus"]
[null,null,null,null,null,null,null,904,"RODRIGUEZ MATAMALA,EDITA",6,"Concepción"]
[null,null,null,null,null,null,null,5987,"CORREA DIAZ,LISETT",4,"Viña del Mar"]
[null,null,null,null,null,null,null,5992,"AUTOCRED SPA",21,"HDI Plus"]
[null,null,null,null,null,null,null,6009,"SOTO MARQUEZ,ELIZABETH MARICEL",9,"Puerto Montt"]
[null,null,null,null,null,null,null,6010,"CARCAMO GALLARDO,ROXANA",9,"Puerto Montt"]
[null,null,null,null,null,null,null,6008,"REYES ANDRADE,CESAR",94,"Banca Seguros"]
[null,null,null,null,null,null,null,5974,"DE LA CERDA GUZMAN,PEDRO",15,"HDI Santiago"]
[null,null,null,null,null,null,null,2309,"PRODUCTORA DE SEGUROS KINERET LTDA.",1,"Advance"]
[null,null,null,null,null,null,null,3913,"ATERO MONTES,JOHN WASHINGTON",7,"Temuco"]
[null,null,null,null,null,null,null,4250,"ESPINOSA VALENZUELA,FERNANDO ANDRES",7,"Temuco"]
[null,null,null,null,null,null,null,2707,"PARRA VILLOUTA,ANDRA ALICIA",15,"HDI Santiago"]
[null,null,null,null,null,null,null,2716,"BOBADILLA HERRADA,JOSE MANUEL CARLOS",15,"HDI Santiago"]
[null,null,null,null,null,null,null,2938,"SEPULVEDA SIBILIA,JORGE ALEJANDRO",3,"Antofagasta"]
[null,null,null,null,null,null,null,3123,"PRODUCTORA DE SEGUROS BON Y CIA. LTDA.",15,"HDI Santiago"]
[null,null,null,null,null,null,null,5244,"INZUNZA MATAMALA,VERONICA AGUSTINA",6,"Concepción"]
[null,null,null,null,null,null,null,6509,"CASTRO OLIVERA,SAMUEL",45,"Osorno"]
[null,null,null,null,null,null,null,5402,"MORENO ESCOBAR,VICTOR",31,"HDI Club"]
[null,null,null,null,null,null,null,6026,"ALEMPARTE E HIJOS CORREDORES DE SEGUROS",1,"Advance"]
[null,null,null,null,null,null,null,6073,"TAMI SOCIAL TECH SPA",21,"HDI Plus"]
[null,null,null,null,null,null,null,631,"SAN MARTIN MORALES,MARLEN",53,"Partners"]
[null,null,null,null,null,null,null,5981,"IBARRA TRONCOSO,LUIS ROLANDO",3,"Antofagasta"]
[null,null,null,null,null,null,null,7330,"SILVA ORELLANA,NELSON ALBERTO",2,"Iquique"]
[null,null,null,null,null,null,null,6042,"TIRADO  MIRANDA ,LUCIA LORENA",3,"Antofagasta"]

{"sheet":"Validaciones","index":3,"n_rows":40,"n_cols":14,"rows_kept":40,"cut":false,"hidden":true,"merged":[]}
[null,"Campo","Valores"]
[]
[]
["1.","DIA DE VENCIMIENTO",5]
[null,null,10]
[null,null,15]
[null,null,20]
[null,null,25]
[]
[]
[2,"Tipo facturacion","SIN FACTURA"]
[null,null,"FACTURA POST-PAGO"]
[null,null,"FACTURA PRE-PAGO"]
[]
[]
[3,"Forma de pago","PAC"]
[null,null,"TARJETA"]
[null,null,"BOLETIN"]
[null,null,"DESC% POR PLANILLA"]
[null,null,"PRE-PAGO"]
[4,"Tipo persona","Natural"]
[null,null,"Jurídica"]
[5,"Sexo","Masculino"]
[null,null,"Femenino"]
[6,"Grupo etario",18,49,"Grupo 1"]
[null,null,50,59,"Grupo 2"]
[null,null,60,69,"Grupo 3"]
[]
[null,null,"Comision de acuerdo a selección prima",null,null,null,null,null,null,"Limites",null,"% com"]
["Validador",{"$f":"Solicitud!E35*(1-Solicitud!#REF!)","v":{"$error":"#REF!"}},{"$f":"ROUND((Solicitud!E35/K30),2)-1+10%","v":-0.9},null,null,0.42,0.05,null,null,"P maxima",0.42,0]
[null,{"$f":"B30*1.1","v":{"$error":"#REF!"}},{"$f":"IF(C30>10%,10%,C30)","v":-0.9},"Comision a usar de acuerdo prima",null,{"$f":"F30*0.95","v":0.39899999999999997},null,null,null,"Pmin",{"$f":"K30*0.9","v":0.378},10,"debe ser 10 comision"]
[]
[]
["Vigencia maxima desde cotizacion",null,"Dias cot vs Días hoy","Días Limite",null,null,null,null,null,null,null,0.56999999999999995,{"$f":"1-L34","v":0.43000000000000005}]
[null,"Fecha hoy",{"$f":"(Solicitud!E31-TODAY())","v":-44357},10,null,null,null,null,null,null,null,"Hospitalizacion","Muerte"]
[null,null,null,null,null,null,null,null,null,"Prima de Riesgo",0.25,{"$f":"ROUND(K36*L34,3)","v":0.14299999999999999},{"$f":"K36-L36","v":0.10700000000000001},{"$f":"K36-L36-M36","v":0}]
[null,null,null,null,null,null,null,null,0.15,"Gastos",{"$f":"ROUND(K$36/(1-SUM($I$37:$I$39))*$I37,3)","v":5.8000000000000003E-2},{"$f":"ROUND(L$36/(1-SUM($I$37:$I$39))*$I37,3)","v":3.3000000000000002E-2},2.5000000000000001E-2,{"$f":"K37-L37-M37","v":0}]
[null,null,null,null,null,null,null,null,0.20399999999999999,"Margen",{"$f":"ROUND(K$36/(1-SUM($I$37:$I$39))*$I38,3)","v":7.9000000000000001E-2},4.4999999999999998E-2,{"$f":"ROUND(M$36/(1-SUM($I$37:$I$39))*$I38,3)","v":3.4000000000000002E-2},{"$f":"K38-L38-M38","v":0}]
[null,null,null,null,null,null,null,null,0,"Comision",{"$f":"ROUND(K$36/(1-SUM($I$37:$I$39))*$I39,3)","v":0},0,0,{"$f":"K39-L39-M39","v":0}]
[null,null,null,null,null,null,null,null,null,"Prima Neta",{"$f":"SUM(K36:K39)","v":0.38700000000000001},{"$f":"SUM(L36:L39)","v":0.22099999999999997},0.16600000000000001,{"$f":"K40-L40-M40","v":0}]